Workbook

Sheet User's instructions
C2: 1. Unblock the Excel file after downloading the Excel file from the Internet
C36: More detailed instructions are available on the following link: : https://www.buyexceltemplates.com/pages/excel-unblock-file-properties-windows-10-after-downloading-internet
C39: 2. Click on the "Refresh" button in the top left-hand corner of some graph sheets to refresh the graphs after updating the data (see example below).

Sheet Data Input
E2: =Profile!E2 -> Team leader | N2: PEFA CLIMATE ASSESSMENT
E3: =Profile!E3 -> Country | F3: Pefalia
E4: =Profile!E4 -> Year of assessment | F4: 2021
F6: Global score | G6: =IFERROR(AVERAGEIFS(J12:J36,$D12:$D36,"Indic",J12:J36,">0"),0) -> 1.25 | H6: =AVERAGEIFS(K12:K36,$D12:$D36,"Indic",K12:K36,">0") -> 1.214285714
F7: Global score | G7: =IF(G6>3.65,"A", IF(G6>=3.25,"B+", IF(G6>2.65,"B", IF(G6>=2.25,"C+", IF(G6>1.75,"C", IF(G6>1.25,"D+", IF(AND(G6<=1.25,G6>0),"D", "NA" ))))))) -> D | H7: =IF(H6>=3.25,"ADVANCED", IF(H6>=3,"GOOD", IF(H6>=2,"BASIC", IF(H6>=1,"BELOW BASIC", "" )))) -> BELOW BASIC
A9: Country | B9: ID | C9: Method | D9: Type | E9: Indic | F9: Label | G9: =IF(I4=""," ",I4) ->  | H9: =F4 -> 2021 | I9: Comparable | J9: ="Num_Temp" -> Num_Temp | K9: ="Num-"&$H9 -> Num-2021 | L9: ="Perf-"&$H9 -> Perf-2021 | M9: Evol | N9: Justification | O9: Legislation | P9: Procedures | Q9: Section
A10: =$F$3 -> Pefalia | B10: 1 | C10: M1 | D10: Indic | E10: CRPFM-1 | F10: =VLOOKUP(B10,'Dimension (UK)'!$A$2:$C$53,3,FALSE) -> 1 Budget alignment with climate change strategies | G10: =IF(G11="","",G11) ->  | H10: =IF(J10>3.65,"A", IF(J10>=3.25,"B+", IF(J10>2.65,"B", IF(J10>=2.25,"C+", IF(J10>1.75,"C", IF(J10>1.25,"D+", IF(AND(J10<=1.25,J10>0),"D", "NA" ))))))) -> B | I10: =I11 -> Yes | J10: =IF($C10="M1",IF(AVERAGE(J11)=MIN(J11),J11,MIN(J11)+0.5),AVERAGE(J11)) -> 3 | K10: =IF($H10="D",1, IF($H10="D+",1.5, IF($H10="C",2, IF($H10="C+",2.5, IF($H10="B",3, IF($H10="B+",3.5, IF($H10="A",4, ))))))) -> 3 | L10: =IF(H10="D","1. BELOW BASIC", IF(H10="D+","1. BELOW BASIC", IF(H10="C","2. BASIC", IF(H10="C+","2. BASIC", IF(H10="B+","3. SOUND", IF(H10="B","3. SOUND", IF(H10="A","4. HIGH",""))))))) -> 3. SOUND | Q10: =Q11 -> 1
A11: Pefalia | B11: 1.1 | D11: Comp | E11: CRPFM-1 | F11: =VLOOKUP(B11,'Dimension (UK)'!$A$2:$C$53,3,FALSE) -> 1.1 Budget alignment with climate change strategies | H11: B | I11: Yes | J11: =IF(TRIM(CLEAN(H11))="A",4)+IF(TRIM(CLEAN(H11))="B+",3.5)+IF(TRIM(CLEAN(H11))="B",3)+IF(TRIM(CLEAN(H11))="C+",2.5)+IF(TRIM(CLEAN(H11))="C",2)+IF(TRIM(CLEAN(H11))="D+",1.5)+IF(TRIM(CLEAN(H11))="D",1)+IF(TRIM(CLEAN(H11))="D*",1)+IF(TRIM(CLEAN(H11))="NU",0)+IF(TRIM(CLEAN(H11))="NA",0) -> 3 | K11: =IF(TRIM(CLEAN(H11))="A",4)+IF(TRIM(CLEAN(H11))="B+",3.5)+IF(TRIM(CLEAN(H11))="B",3)+IF(TRIM(CLEAN(H11))="C+",2.5)+IF(TRIM(CLEAN(H11))="C",2)+IF(TRIM(CLEAN(H11))="D+",1.5)+IF(TRIM(CLEAN(H11))="D",1)+IF(TRIM(CLEAN(H11))="D*",1)+IF(TRIM(CLEAN(H11))="NU",0)+IF(TRIM(CLEAN(H11))="NA",0) -> 3 | L11: 3. SOUND | M11: =IF(G11="","",IF(OR(G11="NA",H11="NA"),"N.C", IF(OR(G11="NU",H11="NU"),"N.C", IF(I11="Yes",IF(K11 -J11<0," -",IF(K11 -J11>0," +"," =")),"N.C")))) ->  | N11: Six elements are fulfilled: basic (i) sector strategic plans; (ii) costed projects in plans; (iii) climate projects in public investment plans; advanced (i) climate change policies apply to public corporations; (ii) climate strategies identify gaps; and (iii) there is a central point of coordination for CC strategies and implementation. | Q11: 1
A12: =$F$3 -> Pefalia | B12: 2 | C12: M1 | D12: Indic | E12: CRPFM-2 | F12: =VLOOKUP(B12,'Dimension (UK)'!$A$2:$C$53,3,FALSE) -> 2 Tracking climate related expenditure | G12: =IF(J12>3.65,"A", IF(J12>=3.25,"B+", IF(J12>2.65,"B", IF(J12>=2.25,"C+", IF(J12>1.75,"C", IF(J12>1.25,"D+", IF(AND(J12<=1.25,J12>0),"D", "" ))))))) -> D | H12: =IF(J12>3.65,"A", IF(J12>=3.25,"B+", IF(J12>2.65,"B", IF(J12>=2.25,"C+", IF(J12>1.75,"C", IF(J12>1.25,"D+", IF(AND(J12<=1.25,J12>0),"D", "NA" ))))))) -> D | I12: =I13 -> Yes | J12: =IF($C12="M1",IF(MIN(J13)=MIN(J13),J13,MIN(J13)+0.5),MIN(J13)) -> 1 | K12: =IF($H12="D",1, IF($H12="D+",1.5, IF($H12="C",2, IF($H12="C+",2.5, IF($H12="B",3, IF($H12="B+",3.5, IF($H12="A",4, ))))))) -> 1 | L12: 1. BELOW BASIC | Q12: =Q13 -> 3
A13: Pefalia | B13: 2.1 | D13: Comp | E13: CRPFM-2 | F13: =VLOOKUP(B13,'Dimension (UK)'!$A$2:$C$53,3,FALSE) -> 2.1 Tracking climate related expenditure | H13: D | I13: Yes | J13: =IF(TRIM(CLEAN(H13))="A",4)+IF(TRIM(CLEAN(H13))="B+",3.5)+IF(TRIM(CLEAN(H13))="B",3)+IF(TRIM(CLEAN(H13))="C+",2.5)+IF(TRIM(CLEAN(H13))="C",2)+IF(TRIM(CLEAN(H13))="D+",1.5)+IF(TRIM(CLEAN(H13))="D",1)+IF(TRIM(CLEAN(H13))="D*",1)+IF(TRIM(CLEAN(H13))="NU",0)+IF(TRIM(CLEAN(H13))="NA",0) -> 1 | K13: =IF(TRIM(CLEAN(H13))="A",4)+IF(TRIM(CLEAN(H13))="B+",3.5)+IF(TRIM(CLEAN(H13))="B",3)+IF(TRIM(CLEAN(H13))="C+",2.5)+IF(TRIM(CLEAN(H13))="C",2)+IF(TRIM(CLEAN(H13))="D+",1.5)+IF(TRIM(CLEAN(H13))="D",1)+IF(TRIM(CLEAN(H13))="D*",1)+IF(TRIM(CLEAN(H13))="NU",0)+IF(TRIM(CLEAN(H13))="NA",0) -> 1 | L13: 1. BELOW BASIC | N13: The mandatory basic element (1) has not been met and neither have any of the other basic or additional requirements met. | Q13: 3
A14: Pefalia | B14: 3 | C14: M1 | D14: Indic | E14: CRPFM-3 | F14: =VLOOKUP(B14,'Dimension (UK)'!$A$2:$C$53,3,FALSE) -> 3 Climate responsive budget circular | G14: =IF(J14>3.65,"A", IF(J14>=3.25,"B+", IF(J14>2.65,"B", IF(J14>=2.25,"C+", IF(J14>1.75,"C", IF(J14>1.25,"D+", IF(AND(J14<=1.25,J14>0),"D", "" ))))))) -> D | H14: =IF(J14>3.65,"A", IF(J14>=3.25,"B+", IF(J14>2.65,"B", IF(J14>=2.25,"C+", IF(J14>1.75,"C", IF(J14>1.25,"D+", IF(AND(J14<=1.25,J14>0),"D", "NA" ))))))) -> D | I14: =I15 -> Yes | J14: =IF($C14="M1",IF(MIN(J15)=MIN(J15),J15,MIN(J15)+0.5),MIN(J15)) -> 1 | K14: =IF($H14="D",1, IF($H14="D+",1.5, IF($H14="C",2, IF($H14="C+",2.5, IF($H14="B",3, IF($H14="B+",3.5, IF($H14="A",4, ))))))) -> 1 | L14: 1. BELOW BASIC | Q14: =Q15 -> 2
A15: Pefalia | B15: 3.1 | D15: Comp | E15: CRPFM-3 | F15: =VLOOKUP(B15,'Dimension (UK)'!$A$2:$C$53,3,FALSE) -> 3.1 Budget circular | H15: D | I15: Yes | J15: =IF(TRIM(CLEAN(H15))="A",4)+IF(TRIM(CLEAN(H15))="B+",3.5)+IF(TRIM(CLEAN(H15))="B",3)+IF(TRIM(CLEAN(H15))="C+",2.5)+IF(TRIM(CLEAN(H15))="C",2)+IF(TRIM(CLEAN(H15))="D+",1.5)+IF(TRIM(CLEAN(H15))="D",1)+IF(TRIM(CLEAN(H15))="D*",1)+IF(TRIM(CLEAN(H15))="NU",0)+IF(TRIM(CLEAN(H15))="NA",0) -> 1 | K15: =IF(TRIM(CLEAN(H15))="A",4)+IF(TRIM(CLEAN(H15))="B+",3.5)+IF(TRIM(CLEAN(H15))="B",3)+IF(TRIM(CLEAN(H15))="C+",2.5)+IF(TRIM(CLEAN(H15))="C",2)+IF(TRIM(CLEAN(H15))="D+",1.5)+IF(TRIM(CLEAN(H15))="D",1)+IF(TRIM(CLEAN(H15))="D*",1)+IF(TRIM(CLEAN(H15))="NU",0)+IF(TRIM(CLEAN(H15))="NA",0) -> 1 | L15: 1. BELOW BASIC | N15: The Budget Circular does not provide guidance on how to factor climate change mitigation or adaptation planned expenditure into budget proposals. | Q15: 2
A16: Pefalia | B16: 4 | C16: M2 | D16: Indic | E16: CRPFM-4 | F16: =VLOOKUP(B16,'Dimension (UK)'!$A$2:$C$53,3,FALSE) -> 4 Legislative scrutiny | G16: =IF(J16>3.65,"A", IF(J16>=3.25,"B+", IF(J16>2.65,"B", IF(J16>=2.25,"C+", IF(J16>1.75,"C", IF(J16>1.25,"D+", IF(AND(J16<=1.25,J16>0),"D", "" ))))))) -> D+ | H16: =IF(J16>3.65,"A", IF(J16>=3.25,"B+", IF(J16>2.65,"B", IF(J16>=2.25,"C+", IF(J16>1.75,"C", IF(J16>1.25,"D+", IF(AND(J16<=1.25,J16>0),"D", "NA" ))))))) -> D+ | I16: =IF(OR(I17="Yes",I18="Yes"),"Yes","Yes") -> Yes | J16: =IFERROR(IF($C16="M1",IF(ROUND(AVERAGEIF(J17:J18,">0"),1)=ROUND(MIN(IF(J17:J18>0,J17:J18)),1),J17,MIN(IF(J17:J18>0,J17:J18))+0.5),AVERAGEIF(J17:J18,">0")),0) -> 1.5 | K16: =IF($H16="D",1, IF($H16="D+",1.5, IF($H16="C",2, IF($H16="C+",2.5, IF($H16="B",3, IF($H16="B+",3.5, IF($H16="A",4, ))))))) -> 1.5 | L16: 1. BELOW BASIC | Q16: =Q17 -> 1
A17: Pefalia | B17: 4.1 | D17: Comp | E17: CRPFM-4 | F17: =VLOOKUP(B17,'Dimension (UK)'!$A$2:$C$53,3,FALSE) -> 4.1 Legislative scrutiny of budget | H17: D | I17: Yes | J17: =IF(TRIM(CLEAN(H17))="A",4)+IF(TRIM(CLEAN(H17))="B+",3.5)+IF(TRIM(CLEAN(H17))="B",3)+IF(TRIM(CLEAN(H17))="C+",2.5)+IF(TRIM(CLEAN(H17))="C",2)+IF(TRIM(CLEAN(H17))="D+",1.5)+IF(TRIM(CLEAN(H17))="D",1)+IF(TRIM(CLEAN(H17))="D*",1)+IF(TRIM(CLEAN(H17))="NU",0)+IF(TRIM(CLEAN(H17))="NA",0) -> 1 | K17: =IF(TRIM(CLEAN(H17))="A",4)+IF(TRIM(CLEAN(H17))="B+",3.5)+IF(TRIM(CLEAN(H17))="B",3)+IF(TRIM(CLEAN(H17))="C+",2.5)+IF(TRIM(CLEAN(H17))="C",2)+IF(TRIM(CLEAN(H17))="D+",1.5)+IF(TRIM(CLEAN(H17))="D",1)+IF(TRIM(CLEAN(H17))="D*",1)+IF(TRIM(CLEAN(H17))="NU",0)+IF(TRIM(CLEAN(H17))="NA",0) -> 1 | L17: 1. BELOW BASIC | N17: Legislative scrutiny of budget fulfills four elements: (ii) impact assessment review of CC programs; (iii) review of positive, neutral or negative contribution to CC of programs or actions not directly related to CC; (iv) review of climate related annual details of expenditure and revenue; and (v) review of climate related fiscal risks | Q17: 1
A18: Pefalia | B18: 4.2 | D18: Comp | E18: CRPFM-4 | F18: =VLOOKUP(B18,'Dimension (UK)'!$A$2:$C$53,3,FALSE) -> 4.2 Legislative scrutiny of audit and evaluation reports | H18: C | I18: Yes | J18: 2 | K18: =IF(TRIM(CLEAN(H18))="A",4)+IF(TRIM(CLEAN(H18))="B+",3.5)+IF(TRIM(CLEAN(H18))="B",3)+IF(TRIM(CLEAN(H18))="C+",2.5)+IF(TRIM(CLEAN(H18))="C",2)+IF(TRIM(CLEAN(H18))="D+",1.5)+IF(TRIM(CLEAN(H18))="D",1)+IF(TRIM(CLEAN(H18))="D*",1)+IF(TRIM(CLEAN(H18))="NU",0)+IF(TRIM(CLEAN(H18))="NA",0) -> 2 | L18: 2. BASIC | N18: Legislative scrutiny of audit and evaluation reports fulfills four elements: (i) technical support; (ii) review of climate related executed expenditure and revenue at a level comparable with the approved budget; (v) issuance of climate related recommendations; and (vi) follow-up of recommendations | Q18: 1
A19: Pefalia | B19: 5 | C19: M2 | D19: Indic | E19: CRPFM-5 | F19: =VLOOKUP(B19,'Dimension (UK)'!$A$2:$C$53,3,FALSE) -> 5 Climate responsive public investment management | G19: =IF(J19>3.65,"A", IF(J19>=3.25,"B+", IF(J19>2.65,"B", IF(J19>=2.25,"C+", IF(J19>1.75,"C", IF(J19>1.25,"D+", IF(AND(J19<=1.25,J19>0),"D", "" ))))))) -> D | H19: =IF(J19>3.65,"A", IF(J19>=3.25,"B+", IF(J19>2.65,"B", IF(J19>=2.25,"C+", IF(J19>1.75,"C", IF(J19>1.25,"D+", IF(AND(J19<=1.25,J19>0),"D", "NA" ))))))) -> D | I19: =IF(OR(I20="Yes",I21="Yes",I22="Yes",I23="Yes"),"Yes","Yes") -> Yes | J19: =IFERROR(IF($C19="M1",IF(ROUND(AVERAGEIF(J20:J23,">0"),1)=ROUND(MIN(IF(J20:J23>0,J20:J23)),1),MIN(J20:J23),MIN(IF(J20:J23>0,J20:J23))+0.5),AVERAGEIF(J20:J23,">0")),0) -> 1 | K19: =IF($H19="D",1, IF($H19="D+",1.5, IF($H19="C",2, IF($H19="C+",2.5, IF($H19="B",3, IF($H19="B+",3.5, IF($H19="A",4, ))))))) -> 1 | L19: 1. BELOW BASIC | Q19: =Q20 -> 1
A20: Pefalia | B20: 5.1 | D20: Comp | E20: CRPFM-5 | F20: =VLOOKUP(B20,'Dimension (UK)'!$A$2:$C$53,3,FALSE) -> 5.1 Climate related provisions in regulatory framework for public investment management | H20: D | I20: Yes | J20: =IF(TRIM(CLEAN(H20))="A",4)+IF(TRIM(CLEAN(H20))="B+",3.5)+IF(TRIM(CLEAN(H20))="B",3)+IF(TRIM(CLEAN(H20))="C+",2.5)+IF(TRIM(CLEAN(H20))="C",2)+IF(TRIM(CLEAN(H20))="D+",1.5)+IF(TRIM(CLEAN(H20))="D",1)+IF(TRIM(CLEAN(H20))="D*",1)+IF(TRIM(CLEAN(H20))="NU",0)+IF(TRIM(CLEAN(H20))="NA",0) -> 1 | K20: =IF(TRIM(CLEAN(H20))="A",4)+IF(TRIM(CLEAN(H20))="B+",3.5)+IF(TRIM(CLEAN(H20))="B",3)+IF(TRIM(CLEAN(H20))="C+",2.5)+IF(TRIM(CLEAN(H20))="C",2)+IF(TRIM(CLEAN(H20))="D+",1.5)+IF(TRIM(CLEAN(H20))="D",1)+IF(TRIM(CLEAN(H20))="D*",1)+IF(TRIM(CLEAN(H20))="NU",0)+IF(TRIM(CLEAN(H20))="NA",0) -> 1 | L20: 1. BELOW BASIC | N20: The CC Policy 2017 and SDS provide guidance on the objectives for CC adaptation and mitigation. | Q20: 1
B21: 5.2 | D21: Comp | E21: CRPFM-5 | F21: =VLOOKUP(B21,'Dimension (UK)'!$A$2:$C$53,3,FALSE) -> 5.2 Climate related project selection | H21: D | I21: Yes | J21: 1 | K21: 1 | L21: 1. BELOW BASIC | N21: Good guidance is available on how to consider and include national strategies and objectives into operational plans and projects. Identified infrastructure projects are screened against a prepared selection criterion, but the criteria do not assist in prioritization.
B22: 5.3 | D22: Comp | E22: CRPFM-5 | F22: =VLOOKUP(B22,'Dimension (UK)'!$A$2:$C$53,3,FALSE) -> 5.3 Climate related provisions for project appraisal | H22: D | I22: Yes | J22: 1 | K22: 1 | L22: 1. BELOW BASIC | N22: Identified infrastructure projects are screened against a prepared selection criterion. Many of the major infrastructure project design is done and/or supervised by major development partners which require screening for climate risk and inclusion of resilience measures. At a specific project level, The EIA do not specifically provide for appraisals to specifically evaluate CC (mitigation or adaptation) impacts of projects, but this may not be an appropriate instrument to do such screening and resilience measure.
B23: 5.4 | D23: Comp | E23: CRPFM-5 | F23: =VLOOKUP(B23,'Dimension (UK)'!$A$2:$C$53,3,FALSE) -> 5.4 Reporting from entities in charge of implementation | H23: D | I23: Yes | J23: 1 | K23: 1 | L23: 1. BELOW BASIC | N23: EBUs and public corporations produce statements of corporate objectives every three years and report back to the central government on an annual basis. Some entities (such as EPC and LTA) include climate objectives, targets and indicators. Statements of Corporate Intent and Annual reports don’t include reporting on funding for climate resilience or mitigation specifically
A24: Pefalia | B24: 6 | C24: M1 | D24: Indic | E24: CRPFM-6 | F24: =VLOOKUP(B24,'Dimension (UK)'!$A$2:$C$53,3,FALSE) -> 6 Climate responsive asset management | G24: =IF(J24>3.65,"A", IF(J24>=3.25,"B+", IF(J24>2.65,"B", IF(J24>=2.25,"C+", IF(J24>1.75,"C", IF(J24>1.25,"D+", IF(AND(J24<=1.25,J24>0),"D", "" ))))))) -> D | H24: =IF(J24>3.65,"A", IF(J24>=3.25,"B+", IF(J24>2.65,"B", IF(J24>=2.25,"C+", IF(J24>1.75,"C", IF(J24>1.25,"D+", IF(AND(J24<=1.25,J24>0),"D", "NA" ))))))) -> D | I24: =I25 -> Yes | J24: =IF($C24="M1",IF(MIN(J25)=MIN(J25),J25,MIN(J25)+0.5),MIN(J25)) -> 1 | K24: =IF($H24="D",1, IF($H24="D+",1.5, IF($H24="C",2, IF($H24="C+",2.5, IF($H24="B",3, IF($H24="B+",3.5, IF($H24="A",4, ))))))) -> 1 | L24: 1. BELOW BASIC | Q24: =Q25 -> 3
A25: Pefalia | B25: 6.1 | D25: Comp | E25: CRPFM-6 | F25: =VLOOKUP(B25,'Dimension (UK)'!$A$2:$C$53,3,FALSE) -> 6.1 Climate responsive non-financial assets management | H25: D | I25: Yes | J25: =IF(TRIM(CLEAN(H25))="A",4)+IF(TRIM(CLEAN(H25))="B+",3.5)+IF(TRIM(CLEAN(H25))="B",3)+IF(TRIM(CLEAN(H25))="C+",2.5)+IF(TRIM(CLEAN(H25))="C",2)+IF(TRIM(CLEAN(H25))="D+",1.5)+IF(TRIM(CLEAN(H25))="D",1)+IF(TRIM(CLEAN(H25))="D*",1)+IF(TRIM(CLEAN(H25))="NU",0)+IF(TRIM(CLEAN(H25))="NA",0) -> 1 | K25: =IF(TRIM(CLEAN(H25))="A",4)+IF(TRIM(CLEAN(H25))="B+",3.5)+IF(TRIM(CLEAN(H25))="B",3)+IF(TRIM(CLEAN(H25))="C+",2.5)+IF(TRIM(CLEAN(H25))="C",2)+IF(TRIM(CLEAN(H25))="D+",1.5)+IF(TRIM(CLEAN(H25))="D",1)+IF(TRIM(CLEAN(H25))="D*",1)+IF(TRIM(CLEAN(H25))="NU",0)+IF(TRIM(CLEAN(H25))="NA",0) -> 1 | L25: 1. BELOW BASIC | N25: Work has just commenced on establishing the asset register. The asset register is decentralized and the template does not require the recording of what is a climate sensitive asset, and it is not mentioned in the asset management strategy (AMS) | Q25: 3
A26: Pefalia | B26: 7 | C26: M2 | D26: Indic | E26: CRPFM-7 | F26: =VLOOKUP(B26,'Dimension (UK)'!$A$2:$C$53,3,FALSE) -> 7 Climate related liabilities | G26: =IF(J26>3.65,"A", IF(J26>=3.25,"B+", IF(J26>2.65,"B", IF(J26>=2.25,"C+", IF(J26>1.75,"C", IF(J26>1.25,"D+", IF(AND(J26<=1.25,J26>0),"D", "" ))))))) -> D+ | H26: =IF(J26>3.65,"A", IF(J26>=3.25,"B+", IF(J26>2.65,"B", IF(J26>=2.25,"C+", IF(J26>1.75,"C", IF(J26>1.25,"D+", IF(AND(J26<=1.25,J26>0),"D", "NA" ))))))) -> D+ | I26: =IF(OR(I27="Yes",I28="Yes"),"Yes","Yes") -> Yes | J26: =IFERROR(IF($C26="M1",IF(ROUND(AVERAGEIF(J27:J28,">0"),1)=ROUND(MIN(IF(J27:J28>0,J27:J28)),1),J27,MIN(IF(J27:J28>0,J27:J28))+0.5),AVERAGEIF(J27:J28,">0")),0) -> 1.5 | K26: =IF($H26="D",1, IF($H26="D+",1.5, IF($H26="C",2, IF($H26="C+",2.5, IF($H26="B",3, IF($H26="B+",3.5, IF($H26="A",4, ))))))) -> 1.5 | L26: 1. BELOW BASIC | Q26: =Q27 -> 2
A27: Pefalia | B27: 7.1 | D27: Comp | E27: CRPFM-7 | F27: =VLOOKUP(B27,'Dimension (UK)'!$A$2:$C$53,3,FALSE) -> 7.1 Climate related fiscal risks | H27: D | I27: Yes | J27: =IF(TRIM(CLEAN(H27))="A",4)+IF(TRIM(CLEAN(H27))="B+",3.5)+IF(TRIM(CLEAN(H27))="B",3)+IF(TRIM(CLEAN(H27))="C+",2.5)+IF(TRIM(CLEAN(H27))="C",2)+IF(TRIM(CLEAN(H27))="D+",1.5)+IF(TRIM(CLEAN(H27))="D",1)+IF(TRIM(CLEAN(H27))="D*",1)+IF(TRIM(CLEAN(H27))="NU",0)+IF(TRIM(CLEAN(H27))="NA",0) -> 1 | K27: =IF(TRIM(CLEAN(H27))="A",4)+IF(TRIM(CLEAN(H27))="B+",3.5)+IF(TRIM(CLEAN(H27))="B",3)+IF(TRIM(CLEAN(H27))="C+",2.5)+IF(TRIM(CLEAN(H27))="C",2)+IF(TRIM(CLEAN(H27))="D+",1.5)+IF(TRIM(CLEAN(H27))="D",1)+IF(TRIM(CLEAN(H27))="D*",1)+IF(TRIM(CLEAN(H27))="NU",0)+IF(TRIM(CLEAN(H27))="NA",0) -> 1 | L27: 1. BELOW BASIC | N27: The government does not produce a report which consolidates climate related fiscal risks. | Q27: 2
A28: Pefalia | B28: 7.2 | D28: Comp | E28: CRPFM-7 | F28: =VLOOKUP(B28,'Dimension (UK)'!$A$2:$C$53,3,FALSE) -> 7.2 Climate related debt and guarantees | H28: C | I28: Yes | J28: 2 | K28: =IF(TRIM(CLEAN(H28))="A",4)+IF(TRIM(CLEAN(H28))="B+",3.5)+IF(TRIM(CLEAN(H28))="B",3)+IF(TRIM(CLEAN(H28))="C+",2.5)+IF(TRIM(CLEAN(H28))="C",2)+IF(TRIM(CLEAN(H28))="D+",1.5)+IF(TRIM(CLEAN(H28))="D",1)+IF(TRIM(CLEAN(H28))="D*",1)+IF(TRIM(CLEAN(H28))="NU",0)+IF(TRIM(CLEAN(H28))="NA",0) -> 2 | L28: 2. BASIC | N28: There are no restrictions to government borrowing for climate related activities, this extends to public corporations. | Q28: 2
A29: Pefalia | B29: 8 | C29: M2 | D29: Indic | E29: CRPFM-8 | F29: =VLOOKUP(B29,'Dimension (UK)'!$A$2:$C$53,3,FALSE) -> 8 Climate responsive procurement | G29: =IF(J29>3.65,"A", IF(J29>=3.25,"B+", IF(J29>2.65,"B", IF(J29>=2.25,"C+", IF(J29>1.75,"C", IF(J29>1.25,"D+", IF(AND(J29<=1.25,J29>0),"D", "" ))))))) -> D+ | H29: =IF(J29>3.65,"A", IF(J29>=3.25,"B+", IF(J29>2.65,"B", IF(J29>=2.25,"C+", IF(J29>1.75,"C", IF(J29>1.25,"D+", IF(AND(J29<=1.25,J29>0),"D", "NA" ))))))) -> D+ | I29: =IF(OR(I30="Yes",I31="Yes",I32="Yes",I33="Yes"),"Yes","Yes") -> Yes | J29: =IFERROR(IF($C29="M1",IF(ROUND(AVERAGEIF(J30:J33,">0"),1)=ROUND(MIN(IF(J30:J33>0,J30:J33)),1),MIN(J30:J33),MIN(IF(J30:J33>0,J30:J33))+0.5),AVERAGEIF(J30:J33,">0")),0) -> 1.75 | K29: =IF($H29="D",1, IF($H29="D+",1.5, IF($H29="C",2, IF($H29="C+",2.5, IF($H29="B",3, IF($H29="B+",3.5, IF($H29="A",4, ))))))) -> 1.5 | L29: 1. BELOW BASIC | Q29: =Q30 -> 4
A30: Pefalia | B30: 8.1 | D30: Comp | E30: CRPFM-8 | F30: =VLOOKUP(B30,'Dimension (UK)'!$A$2:$C$53,3,FALSE) -> 8.1 Climate responsive procurement framework | H30: C | I30: Yes | J30: =IF(TRIM(CLEAN(H30))="A",4)+IF(TRIM(CLEAN(H30))="B+",3.5)+IF(TRIM(CLEAN(H30))="B",3)+IF(TRIM(CLEAN(H30))="C+",2.5)+IF(TRIM(CLEAN(H30))="C",2)+IF(TRIM(CLEAN(H30))="D+",1.5)+IF(TRIM(CLEAN(H30))="D",1)+IF(TRIM(CLEAN(H30))="D*",1)+IF(TRIM(CLEAN(H30))="NU",0)+IF(TRIM(CLEAN(H30))="NA",0) -> 2 | K30: =IF(TRIM(CLEAN(H30))="A",4)+IF(TRIM(CLEAN(H30))="B+",3.5)+IF(TRIM(CLEAN(H30))="B",3)+IF(TRIM(CLEAN(H30))="C+",2.5)+IF(TRIM(CLEAN(H30))="C",2)+IF(TRIM(CLEAN(H30))="D+",1.5)+IF(TRIM(CLEAN(H30))="D",1)+IF(TRIM(CLEAN(H30))="D*",1)+IF(TRIM(CLEAN(H30))="NU",0)+IF(TRIM(CLEAN(H30))="NA",0) -> 2 | L30: 2. BASIC | M30: =IF(G30="","",IF(OR(G30="NA",H30="NA"),"N.C", IF(OR(G30="NU",H30="NU"),"N.C", IF(I30="Yes",IF(K30 -J30<0," -",IF(K30 -J30>0," +"," =")),"N.C")))) ->  | N30: There are no means by which to verify whether contract awards and implementation are consistent with climate responsive specifications, procurement database does not store information on climate responsive aspects of the tenders. | Q30: 4
A31: Pefalia | B31: 8.2 | D31: Comp | E31: CRPFM-8 | F31: =VLOOKUP(B31,'Dimension (UK)'!$A$2:$C$53,3,FALSE) -> 8.2 Climate responsive public procurement operations | H31: C | I31: Yes | J31: 2 | K31: 2 | L31: 2. BASIC | N31: Simplified procedures exist to expedite procurement in response to climate induced disasters. Standard bidding templates do not set out any climate responsive standards. | Q31: 4
A32: Pefalia | B32: 8.3 | D32: Comp | E32: CRPFM-8 | F32: =VLOOKUP(B32,'Dimension (UK)'!$A$2:$C$53,3,FALSE) -> 8.3 Climate responsive public procurement monitoring | H32: C | I32: Yes | J32: 2 | K32: 2 | L32: 2. BASIC | N32: Procurement databases do not contain information on climate responsiveness but contain information on emergency procurement Compliance of contract awards. | Q32: 4
A33: Pefalia | B33: 8.4 | D33: Comp | E33: CRPFM-8 | F33: =VLOOKUP(B33,'Dimension (UK)'!$A$2:$C$53,3,FALSE) -> 8.4 Climate responsive public procurement reporting | H33: D* | I33: Yes | J33: 1 | K33: 1 | N33: No statistical reports are provided on climate responsive procurement and emergency procurement is not reported. | Q33: 4
A34: Pefalia | B34: 9 | C34: M2 | D34: Indic | E34: CRPFM-9 | F34: =VLOOKUP(B34,'Dimension (UK)'!$A$2:$C$53,3,FALSE) -> 9 Climate responsive revenue administration | G34: =IF(J34>3.65,"A", IF(J34>=3.25,"B+", IF(J34>2.65,"B", IF(J34>=2.25,"C+", IF(J34>1.75,"C", IF(J34>1.25,"D+", IF(AND(J34<=1.25,J34>0),"D", "" ))))))) ->  | H34: =IF(J34>3.65,"A", IF(J34>=3.25,"B+", IF(J34>2.65,"B", IF(J34>=2.25,"C+", IF(J34>1.75,"C", IF(J34>1.25,"D+", IF(AND(J34<=1.25,J34>0),"D", "NA" ))))))) -> NA | I34: =IF(OR(I35="Yes",I36="Yes"),"Yes","Yes") -> Yes | J34: =IFERROR(IF($C34="M1",IF(ROUND(AVERAGEIF(J35:J36,">0"),1)=ROUND(MIN(IF(J35:J36>0,J35:J36)),1),J35,MIN(IF(J35:J36>0,J35:J36))+0.5),AVERAGEIF(J35:J36,">0")),0) -> 0 | K34: =IF($H34="D",1, IF($H34="D+",1.5, IF($H34="C",2, IF($H34="C+",2.5, IF($H34="B",3, IF($H34="B+",3.5, IF($H34="A",4, ))))))) -> 0 | Q34: =Q35 -> 1
A35: Pefalia | B35: 9.1 | D35: Comp | E35: CRPFM-9 | F35: =VLOOKUP(B35,'Dimension (UK)'!$A$2:$C$53,3,FALSE) -> 9.1 Climate related tax management, audit and investigation | H35: NA | I35: Yes | J35: =IF(TRIM(CLEAN(H35))="A",4)+IF(TRIM(CLEAN(H35))="B+",3.5)+IF(TRIM(CLEAN(H35))="B",3)+IF(TRIM(CLEAN(H35))="C+",2.5)+IF(TRIM(CLEAN(H35))="C",2)+IF(TRIM(CLEAN(H35))="D+",1.5)+IF(TRIM(CLEAN(H35))="D",1)+IF(TRIM(CLEAN(H35))="D*",1)+IF(TRIM(CLEAN(H35))="NU",0)+IF(TRIM(CLEAN(H35))="NA",0) -> 0 | K35: =IF(TRIM(CLEAN(H35))="A",4)+IF(TRIM(CLEAN(H35))="B+",3.5)+IF(TRIM(CLEAN(H35))="B",3)+IF(TRIM(CLEAN(H35))="C+",2.5)+IF(TRIM(CLEAN(H35))="C",2)+IF(TRIM(CLEAN(H35))="D+",1.5)+IF(TRIM(CLEAN(H35))="D",1)+IF(TRIM(CLEAN(H35))="D*",1)+IF(TRIM(CLEAN(H35))="NU",0)+IF(TRIM(CLEAN(H35))="NA",0) -> 0 | N35: There are currently no climate related taxes in place in Pefalia. | Q35: 1
A36: Pefalia | B36: 9.2 | D36: Comp | E36: CRPFM-9 | F36: =VLOOKUP(B36,'Dimension (UK)'!$A$2:$C$53,3,FALSE) -> 9.2 Climate related tax arrears | H36: NA | I36: Yes | J36: 0 | K36: =IF(TRIM(CLEAN(H36))="A",4)+IF(TRIM(CLEAN(H36))="B+",3.5)+IF(TRIM(CLEAN(H36))="B",3)+IF(TRIM(CLEAN(H36))="C+",2.5)+IF(TRIM(CLEAN(H36))="C",2)+IF(TRIM(CLEAN(H36))="D+",1.5)+IF(TRIM(CLEAN(H36))="D",1)+IF(TRIM(CLEAN(H36))="D*",1)+IF(TRIM(CLEAN(H36))="NU",0)+IF(TRIM(CLEAN(H36))="NA",0) -> 0 | N36: There are currently no climate related taxes in place in Pefalia. | Q36: 1
A37: Pefalia | B37: 10 | C37: M2 | D37: Indic | E37: CRPFM-10 | F37: =VLOOKUP(B37,'Dimension (UK)'!$A$2:$C$53,3,FALSE) -> 10 Compliance of climate related expenditure | G37: =IF(J37>3.65,"A", IF(J37>=3.25,"B+", IF(J37>2.65,"B", IF(J37>=2.25,"C+", IF(J37>1.75,"C", IF(J37>1.25,"D+", IF(AND(J37<=1.25,J37>0),"D", "" ))))))) -> C+ | H37: =IF(J37>3.65,"A", IF(J37>=3.25,"B+", IF(J37>2.65,"B", IF(J37>=2.25,"C+", IF(J37>1.75,"C", IF(J37>1.25,"D+", IF(AND(J37<=1.25,J37>0),"D", "NA" ))))))) -> C+ | I37: =IF(OR(I38="Yes",I39="Yes"),"Yes","Yes") -> Yes | J37: =IFERROR(IF($C37="M1",IF(ROUND(AVERAGEIF(J38:J39,">0"),1)=ROUND(MIN(IF(J38:J39>0,J38:J39)),1),J38,MIN(IF(J38:J39>0,J38:J39))+0.5),AVERAGEIF(J38:J39,">0")),0) -> 2.5 | K37: =IF($H37="D",1, IF($H37="D+",1.5, IF($H37="C",2, IF($H37="C+",2.5, IF($H37="B",3, IF($H37="B+",3.5, IF($H37="A",4, ))))))) -> 2.5 | L37: 2. BASIC | Q37: =Q38 -> 3
A38: Pefalia | B38: 10.1 | D38: Comp | E38: CRPFM-10 | F38: =VLOOKUP(B38,'Dimension (UK)'!$A$2:$C$53,3,FALSE) -> 10.1 Effectiveness of the systems of controls | H38: C | I38: Yes | J38: =IF(TRIM(CLEAN(H38))="A",4)+IF(TRIM(CLEAN(H38))="B+",3.5)+IF(TRIM(CLEAN(H38))="B",3)+IF(TRIM(CLEAN(H38))="C+",2.5)+IF(TRIM(CLEAN(H38))="C",2)+IF(TRIM(CLEAN(H38))="D+",1.5)+IF(TRIM(CLEAN(H38))="D",1)+IF(TRIM(CLEAN(H38))="D*",1)+IF(TRIM(CLEAN(H38))="NU",0)+IF(TRIM(CLEAN(H38))="NA",0) -> 2 | K38: =IF(TRIM(CLEAN(H38))="A",4)+IF(TRIM(CLEAN(H38))="B+",3.5)+IF(TRIM(CLEAN(H38))="B",3)+IF(TRIM(CLEAN(H38))="C+",2.5)+IF(TRIM(CLEAN(H38))="C",2)+IF(TRIM(CLEAN(H38))="D+",1.5)+IF(TRIM(CLEAN(H38))="D",1)+IF(TRIM(CLEAN(H38))="D*",1)+IF(TRIM(CLEAN(H38))="NU",0)+IF(TRIM(CLEAN(H38))="NA",0) -> 2 | L38: 2. BASIC | N38: A comprehensive system of ex-ante control in is place that ensures that climate related transactions, along with all other transaction types and categories are compliant with their budget intent, and procedures and approval requirements. There is however no evidence of any audit of the systems of control in the last three fiscal years. | Q38: 3
A39: Pefalia | B39: 10.2 | D39: Comp | E39: CRPFM-10 | F39: =VLOOKUP(B39,'Dimension (UK)'!$A$2:$C$53,3,FALSE) -> 10.2 Compliance of transactions | H39: B | I39: Yes | J39: 3 | K39: =IF(TRIM(CLEAN(H39))="A",4)+IF(TRIM(CLEAN(H39))="B+",3.5)+IF(TRIM(CLEAN(H39))="B",3)+IF(TRIM(CLEAN(H39))="C+",2.5)+IF(TRIM(CLEAN(H39))="C",2)+IF(TRIM(CLEAN(H39))="D+",1.5)+IF(TRIM(CLEAN(H39))="D",1)+IF(TRIM(CLEAN(H39))="D*",1)+IF(TRIM(CLEAN(H39))="NU",0)+IF(TRIM(CLEAN(H39))="NA",0) -> 3 | L39: 3. SOUND | N39: There is comprehensive full coverage of each and every transaction, so it is reasonably assumed that climate related transactions, like all other categories and type of transactions, are subject to any audit and fraud investigation, and recovery procedure. | Q39: 3
A40: Pefalia | B40: 11 | C40: M2 | D40: Indic | E40: CRPFM-11 | F40: =VLOOKUP(B40,'Dimension (UK)'!$A$2:$C$53,3,FALSE) -> 11 Climate responsive fiscal decentralization framework | G40: =IF(J40>3.65,"A", IF(J40>=3.25,"B+", IF(J40>2.65,"B", IF(J40>=2.25,"C+", IF(J40>1.75,"C", IF(J40>1.25,"D+", IF(AND(J40<=1.25,J40>0),"D", "" ))))))) ->  | H40: =IF(J40>3.65,"A", IF(J40>=3.25,"B+", IF(J40>2.65,"B", IF(J40>=2.25,"C+", IF(J40>1.75,"C", IF(J40>1.25,"D+", IF(AND(J40<=1.25,J40>0),"D", "NA" ))))))) -> NA | I40: =IF(OR(I41="Yes",I42="Yes",I43="Yes"),"Yes","Yes") -> Yes | J40: =IFERROR((IF($C40="M1",IF(ROUND(AVERAGEIF(J41:J43,">0"),1)=ROUND(MIN(IF(J41:J43>0,J41:J43)),1),MIN(J41:J43),MIN(IF(J41:J43>0,J41:J43))+0.5),AVERAGEIF(J41:J43,">0"))),0) -> 0 | K40: =IF($H40="D",1, IF($H40="D+",1.5, IF($H40="C",2, IF($H40="C+",2.5, IF($H40="B",3, IF($H40="B+",3.5, IF($H40="A",4, ))))))) -> 0 | Q40: =Q41 -> 4
A41: Pefalia | B41: 11.1 | D41: Comp | E41: CRPFM-11 | F41: =VLOOKUP(B41,'Dimension (UK)'!$A$2:$C$53,3,FALSE) -> 11.1 Climate responsive fiscal decentralization arrangements | H41: NA | I41: Yes | J41: =IF(TRIM(CLEAN(H41))="A",4)+IF(TRIM(CLEAN(H41))="B+",3.5)+IF(TRIM(CLEAN(H41))="B",3)+IF(TRIM(CLEAN(H41))="C+",2.5)+IF(TRIM(CLEAN(H41))="C",2)+IF(TRIM(CLEAN(H41))="D+",1.5)+IF(TRIM(CLEAN(H41))="D",1)+IF(TRIM(CLEAN(H41))="D*",1)+IF(TRIM(CLEAN(H41))="NU",0)+IF(TRIM(CLEAN(H41))="NA",0) -> 0 | K41: =IF(TRIM(CLEAN(H41))="A",4)+IF(TRIM(CLEAN(H41))="B+",3.5)+IF(TRIM(CLEAN(H41))="B",3)+IF(TRIM(CLEAN(H41))="C+",2.5)+IF(TRIM(CLEAN(H41))="C",2)+IF(TRIM(CLEAN(H41))="D+",1.5)+IF(TRIM(CLEAN(H41))="D",1)+IF(TRIM(CLEAN(H41))="D*",1)+IF(TRIM(CLEAN(H41))="NU",0)+IF(TRIM(CLEAN(H41))="NA",0) -> 0 | M41: =IF(G41="","",IF(OR(G41="NA",H41="NA"),"N.C", IF(OR(G41="NU",H41="NU"),"N.C", IF(I41="Yes",IF(K41 -J41<0," -",IF(K41 -J41>0," +"," =")),"N.C")))) ->  | N41: There is no decentralization in Pefalia. | Q41: 4
A42: Pefalia | B42: 11.2 | D42: Comp | E42: CRPFM-11 | F42: =VLOOKUP(B42,'Dimension (UK)'!$A$2:$C$53,3,FALSE) -> 11.2 Climate responsive fiscal transfers | H42: NA | I42: Yes | J42: 0 | K42: 0 | N42: There is no decentralization in Pefalia. | Q42: 4
A43: Pefalia | B43: 11.3 | D43: Comp | E43: CRPFM-11 | F43: =VLOOKUP(B43,'Dimension (UK)'!$A$2:$C$53,3,FALSE) -> 11.3 Climate responsive PFM arrangements applied by subnational governments | H43: NA | I43: Yes | J43: 0 | K43: 0 | N43: There is no decentralization in Pefalia. | Q43: 4
A44: Pefalia | B44: 12 | C44: M2 | D44: Indic | E44: CRPFM-12 | F44: =VLOOKUP(B44,'Dimension (UK)'!$A$2:$C$53,3,FALSE) -> 12 Climate related performance information | G44: =IF(J44>3.65,"A", IF(J44>=3.25,"B+", IF(J44>2.65,"B", IF(J44>=2.25,"C+", IF(J44>1.75,"C", IF(J44>1.25,"D+", IF(AND(J44<=1.25,J44>0),"D", "" ))))))) -> C+ | H44: =IF(J44>3.65,"A", IF(J44>=3.25,"B+", IF(J44>2.65,"B", IF(J44>=2.25,"C+", IF(J44>1.75,"C", IF(J44>1.25,"D+", IF(AND(J44<=1.25,J44>0),"D", "NA" ))))))) -> C+ | I44: =IF(OR(I45="Yes",I46="Yes"),"Yes","Yes") -> Yes | J44: =IFERROR(IF($C44="M1",IF(ROUND(AVERAGEIF(J45:J46,">0"),1)=ROUND(MIN(IF(J45:J46>0,J45:J46)),1),J45,MIN(IF(J45:J46>0,J45:J46))+0.5),AVERAGEIF(J45:J46,">0")),0) -> 2.5 | K44: =IF($H44="D",1, IF($H44="D+",1.5, IF($H44="C",2, IF($H44="C+",2.5, IF($H44="B",3, IF($H44="B+",3.5, IF($H44="A",4, ))))))) -> 2.5 | L44: 2. BASIC | Q44: =Q45 -> 3
A45: Pefalia | B45: 12.1 | D45: Comp | E45: CRPFM-12 | F45: =VLOOKUP(B45,'Dimension (UK)'!$A$2:$C$53,3,FALSE) -> 12.1 Climate related information in performance plans | H45: B | I45: Yes | J45: =IF(TRIM(CLEAN(H45))="A",4)+IF(TRIM(CLEAN(H45))="B+",3.5)+IF(TRIM(CLEAN(H45))="B",3)+IF(TRIM(CLEAN(H45))="C+",2.5)+IF(TRIM(CLEAN(H45))="C",2)+IF(TRIM(CLEAN(H45))="D+",1.5)+IF(TRIM(CLEAN(H45))="D",1)+IF(TRIM(CLEAN(H45))="D*",1)+IF(TRIM(CLEAN(H45))="NU",0)+IF(TRIM(CLEAN(H45))="NA",0) -> 3 | K45: =IF(TRIM(CLEAN(H45))="A",4)+IF(TRIM(CLEAN(H45))="B+",3.5)+IF(TRIM(CLEAN(H45))="B",3)+IF(TRIM(CLEAN(H45))="C+",2.5)+IF(TRIM(CLEAN(H45))="C",2)+IF(TRIM(CLEAN(H45))="D+",1.5)+IF(TRIM(CLEAN(H45))="D",1)+IF(TRIM(CLEAN(H45))="D*",1)+IF(TRIM(CLEAN(H45))="NU",0)+IF(TRIM(CLEAN(H45))="NA",0) -> 3 | L45: 3. SOUND | N45: Performance indicators by output are provided in the 2020/21 budget document. For both MoF and MNRE. This includes an indicator directly related to objectives in the SDS and NDC for renewable energy targets. This is submitted to the Legislative Assembly and published. | Q45: 3
A46: Pefalia | B46: 12.2 | D46: Comp | E46: CRPFM-12 | F46: =VLOOKUP(B46,'Dimension (UK)'!$A$2:$C$53,3,FALSE) -> 12.2 Climate related information in performance reports | H46: C | I46: Yes | J46: 2 | K46: 2 | L46: 2. BASIC | N46: Performance indicator, targets and achieved outputs are reported in the 2020/21 budget document for some sectors including fisheries and community resilience. EPC report to the parliament also provides performance and achieved outputs on the renewable energy targets. | Q46: 3
A47: Pefalia | B47: 13 | C47: M2 | D47: Indic | E47: CRPFM-13 | F47: =VLOOKUP(B47,'Dimension (UK)'!$A$2:$C$53,3,FALSE) -> 13 Climate related performance evaluation | G47: =IF(J47>3.65,"A", IF(J47>=3.25,"B+", IF(J47>2.65,"B", IF(J47>=2.25,"C+", IF(J47>1.75,"C", IF(J47>1.25,"D+", IF(AND(J47<=1.25,J47>0),"D", "" ))))))) -> D+ | H47: =IF(J47>3.65,"A", IF(J47>=3.25,"B+", IF(J47>2.65,"B", IF(J47>=2.25,"C+", IF(J47>1.75,"C", IF(J47>1.25,"D+", IF(AND(J47<=1.25,J47>0),"D", "NA" ))))))) -> D+ | I47: =IF(OR(I49="Yes",I48="Yes"),"Yes","Yes") -> Yes | J47: =IFERROR(IF($C47="M1",IF(ROUND(AVERAGEIF(J48:J49,">0"),1)=ROUND(MIN(IF(J48:J49>0,J48:J49)),1),J49,MIN(IF(J48:J49>0,J48:J49))+0.5),AVERAGEIF(J48:J49,">0")),0) -> 1.5 | K47: =IF($H47="D",1, IF($H47="D+",1.5, IF($H47="C",2, IF($H47="C+",2.5, IF($H47="B",3, IF($H47="B+",3.5, IF($H47="A",4, ))))))) -> 1.5 | L47: 1. BELOW BASIC | Q47: =Q49 -> 3
A48: Pefalia | B48: 13.2 | D48: Comp | E48: CRPFM-13 | F48: =VLOOKUP(B48,'Dimension (UK)'!$A$2:$C$53,3,FALSE) -> 13.2 Climate related evaluation of taxes | H48: C | I48: Yes | J48: =IF(TRIM(CLEAN(H48))="A",4)+IF(TRIM(CLEAN(H48))="B+",3.5)+IF(TRIM(CLEAN(H48))="B",3)+IF(TRIM(CLEAN(H48))="C+",2.5)+IF(TRIM(CLEAN(H48))="C",2)+IF(TRIM(CLEAN(H48))="D+",1.5)+IF(TRIM(CLEAN(H48))="D",1)+IF(TRIM(CLEAN(H48))="D*",1)+IF(TRIM(CLEAN(H48))="NU",0)+IF(TRIM(CLEAN(H48))="NA",0) -> 2 | K48: =IF(TRIM(CLEAN(H48))="A",4)+IF(TRIM(CLEAN(H48))="B+",3.5)+IF(TRIM(CLEAN(H48))="B",3)+IF(TRIM(CLEAN(H48))="C+",2.5)+IF(TRIM(CLEAN(H48))="C",2)+IF(TRIM(CLEAN(H48))="D+",1.5)+IF(TRIM(CLEAN(H48))="D",1)+IF(TRIM(CLEAN(H48))="D*",1)+IF(TRIM(CLEAN(H48))="NU",0)+IF(TRIM(CLEAN(H48))="NA",0) -> 2 | L48: 2. BASIC | M48: =IF(G48="","",IF(OR(G48="NA",H48="NA"),"N.C", IF(OR(G48="NU",H48="NU"),"N.C", IF(I48="Yes",IF(K48 -J48<0," -",IF(K48 -J48>0," +"," =")),"N.C")))) ->  | Q48: 3
A49: Pefalia | B49: 13.1 | D49: Comp | E49: CRPFM-13 | F49: =VLOOKUP(B49,'Dimension (UK)'!$A$2:$C$53,3,FALSE) -> 13.1 Climate related evaluation of expenditure | H49: D | I49: Yes | J49: 1 | K49: =IF(TRIM(CLEAN(H49))="A",4)+IF(TRIM(CLEAN(H49))="B+",3.5)+IF(TRIM(CLEAN(H49))="B",3)+IF(TRIM(CLEAN(H49))="C+",2.5)+IF(TRIM(CLEAN(H49))="C",2)+IF(TRIM(CLEAN(H49))="D+",1.5)+IF(TRIM(CLEAN(H49))="D",1)+IF(TRIM(CLEAN(H49))="D*",1)+IF(TRIM(CLEAN(H49))="NU",0)+IF(TRIM(CLEAN(H49))="NA",0) -> 1 | L49: 1. BELOW BASIC | M49: =IF(G49="","",IF(OR(G49="NA",H49="NA"),"N.C", IF(OR(G49="NU",H49="NU"),"N.C", IF(I49="Yes",IF(K49 -J49<0," -",IF(K49 -J49>0," +"," =")),"N.C")))) ->  | N49: There has been no partial or full evaluation of the overall tax and customs policy in respect to climate change objectives. | Q49: 3
A50: Pefalia | B50: 14 | C50: M2 | D50: Indic | E50: CRPFM-14 | F50: =VLOOKUP(B50,'Dimension (UK)'!$A$2:$C$53,3,FALSE) -> 14 Expenditure outturn for climate activities | G50: =IF(J50>3.65,"A", IF(J50>=3.25,"B+", IF(J50>2.65,"B", IF(J50>=2.25,"C+", IF(J50>1.75,"C", IF(J50>1.25,"D+", IF(AND(J50<=1.25,J50>0),"D", "" ))))))) ->  | H50: =IF(J50>3.65,"A", IF(J50>=3.25,"B+", IF(J50>2.65,"B", IF(J50>=2.25,"C+", IF(J50>1.75,"C", IF(J50>1.25,"D+", IF(AND(J50<=1.25,J50>0),"D", "NA" ))))))) -> NA | I50: =IF(OR(I51="Yes",I52="Yes"),"Yes","Yes") -> Yes | J50: =IFERROR(IF($C50="M1",IF(ROUND(AVERAGEIF(J51:J52,">0"),1)=ROUND(MIN(IF(J51:J52>0,J51:J52)),1),J51,MIN(IF(J51:J52>0,J51:J52))+0.5),AVERAGEIF(J51:J52,">0")),0) -> 0 | K50: =IF($H50="D",1, IF($H50="D+",1.5, IF($H50="C",2, IF($H50="C+",2.5, IF($H50="B",3, IF($H50="B+",3.5, IF($H50="A",4, ))))))) -> 0 | Q50: =Q51 -> 3
A51: Pefalia | B51: 14.1 | D51: Comp | E51: CRPFM-14 | F51: =VLOOKUP(B51,'Dimension (UK)'!$A$2:$C$53,3,FALSE) -> 14.1 Aggregate climate related expenditure outturn | H51: NA | I51: Yes | J51: =IF(TRIM(CLEAN(H51))="A",4)+IF(TRIM(CLEAN(H51))="B+",3.5)+IF(TRIM(CLEAN(H51))="B",3)+IF(TRIM(CLEAN(H51))="C+",2.5)+IF(TRIM(CLEAN(H51))="C",2)+IF(TRIM(CLEAN(H51))="D+",1.5)+IF(TRIM(CLEAN(H51))="D",1)+IF(TRIM(CLEAN(H51))="D*",1)+IF(TRIM(CLEAN(H51))="NU",0)+IF(TRIM(CLEAN(H51))="NA",0) -> 0 | K51: =IF(TRIM(CLEAN(H51))="A",4)+IF(TRIM(CLEAN(H51))="B+",3.5)+IF(TRIM(CLEAN(H51))="B",3)+IF(TRIM(CLEAN(H51))="C+",2.5)+IF(TRIM(CLEAN(H51))="C",2)+IF(TRIM(CLEAN(H51))="D+",1.5)+IF(TRIM(CLEAN(H51))="D",1)+IF(TRIM(CLEAN(H51))="D*",1)+IF(TRIM(CLEAN(H51))="NU",0)+IF(TRIM(CLEAN(H51))="NA",0) -> 0 | M51: =IF(G51="","",IF(OR(G51="NA",H51="NA"),"N.C", IF(OR(G51="NU",H51="NU"),"N.C", IF(I51="Yes",IF(K51 -J51<0," -",IF(K51 -J51>0," +"," =")),"N.C")))) ->  | Q51: 3
A52: Pefalia | B52: 14.2 | D52: Comp | E52: CRPFM-14 | F52: =VLOOKUP(B52,'Dimension (UK)'!$A$2:$C$53,3,FALSE) -> 14.2 Climate related expenditure composition outturn | H52: NA | I52: Yes | J52: 0 | K52: =IF(TRIM(CLEAN(H52))="A",4)+IF(TRIM(CLEAN(H52))="B+",3.5)+IF(TRIM(CLEAN(H52))="B",3)+IF(TRIM(CLEAN(H52))="C+",2.5)+IF(TRIM(CLEAN(H52))="C",2)+IF(TRIM(CLEAN(H52))="D+",1.5)+IF(TRIM(CLEAN(H52))="D",1)+IF(TRIM(CLEAN(H52))="D*",1)+IF(TRIM(CLEAN(H52))="NU",0)+IF(TRIM(CLEAN(H52))="NA",0) -> 0 | M52: =IF(G52="","",IF(OR(G52="NA",H52="NA"),"N.C", IF(OR(G52="NU",H52="NU"),"N.C", IF(I52="Yes",IF(K52 -J52<0," -",IF(K52 -J52>0," +"," =")),"N.C")))) ->  | Q52: 3

Sheet Data (hidden)
A1: Country | B1: Fmk | C1: Year | D1: Period | E1: Type | F1: ID | G1: ID_Ind_Num | H1: ID-Ind | I1: ID_Comp | J1: Method | K1: ID_Pilar | L1: Pilar | M1: Label | N1: Score | O1: Score Num | P1: Performance | Q1: AVG Num | R1: Min Num | S1: Min NumC | T1: Score PEFA | U1: Justification
A2: ='Data Input'!$F$3 -> Pefalia | B2: Climat | C2: ='Data Input'!$F$4 -> 2021 | D2: Current | E2: Indic | F2: 1 | G2: 1 | H2: ="CRPFM-"&G2 -> CRPFM-1 | J2: M2 | N2: =IF($D2="Current",VLOOKUP(F2,'Data Input'!$B$9:$N$52,7,FALSE),VLOOKUP(F2,'Data Input'!$B$9:$N$52,6,FALSE)) -> B | O2: =IFERROR(IF($B2="Climat",IF($D2="Current",VLOOKUP($F2,'Data Input'!$B$9:$N$52,10,FALSE),VLOOKUP($F2,'Data Input'!$B$9:$N$52,9,FALSE)),IF($D2="Current",VLOOKUP($F2,'Data Input'!$B$12:$N$53,10,FALSE),VLOOKUP($F2,'Data Input'!$B$12:$N$53,9,FALSE))),"") -> 3 | P2: =IF(O2>=3.25,"4. HIGH", IF(O2>=3,"3. SOUND", IF(O2>=2,"2. BASIC", IF(O2>=1,"1. BELOW BASIC", "" )))) -> 3. SOUND | Q2: =IFERROR(AVERAGEIFS($O$2:$O$44,$B$2:$B$44,$B2,$G$2:$G$44,$G2,$C$2:$C$44,$C2,$E$2:$E$44,"Comp",$O$2:$O$44,">0"),0) -> 3 | R2: =MIN(IF($O$2:$O$45>0,IF($B$2:$B$45=$B2,IF($C$2:$C$45=$C2,IF($H$2:$H$45=$H2,$O$2:$O$45))))) -> 3 | S2: =IF($Q2=$R2,$Q2,$R2+0.5) -> 3 | T2: =(IF($J2="M1",$S2,$Q2)) -> 3
A3: ='Data Input'!$F$3 -> Pefalia | B3: Climat | C3: ='Data Input'!$F$4 -> 2021 | D3: Current | E3: Comp | F3: 1.1 | G3: 1 | H3: ="CRPFM-"&G3 -> CRPFM-1 | I3: 1 | K3: =VLOOKUP($F3,'Dimension (FR)'!$A$2:$G$52,5,FALSE) -> 1 - Alignement du budget sur les stratégies climat | L3: =VLOOKUP($F3,'Dimension (FR)'!$A$2:$G$52,6,FALSE) -> IV | M3: =VLOOKUP($F3,'Dimension (FR)'!$A$2:$G$52,2,FALSE) -> 1.1 | N3: =IF($B3="Climat",IF($D3="Current",VLOOKUP($F3,'Data Input'!$B$9:$N$52,7,FALSE),VLOOKUP($F3,'Data Input'!$B$9:$N$52,6,FALSE)),IF($D3="Current",VLOOKUP($F3,'Data Input'!$B$12:$N$53,7,FALSE),VLOOKUP($F3,'Data Input'!$B$12:$N$53,6,FALSE))) -> B | O3: =IFERROR(IF($B3="Climat",IF($D3="Current",VLOOKUP($F3,'Data Input'!$B$9:$N$52,10,FALSE),VLOOKUP($F3,'Data Input'!$B$9:$N$52,9,FALSE)),IF($D3="Current",VLOOKUP($F3,'Data Input'!$B$12:$N$53,10,FALSE),VLOOKUP($F3,'Data Input'!$B$12:$N$53,9,FALSE))),"") -> 3 | P3: 3. SOUND | Q3: 3 | R3: =MIN(IF($O$2:$O$45>0,IF($B$2:$B$45=$B3,IF($C$2:$C$45=$C3,IF($H$2:$H$45=$H3,$O$2:$O$45))))) -> 3 | S3: 3 | T3: 3 | U3: =IF($D3="Current",VLOOKUP($F3,'Data Input'!$B$9:$N$52,12,FALSE),"") -> 
A4: ='Data Input'!$F$3 -> Pefalia | B4: Climat | C4: ='Data Input'!$F$4 -> 2021 | D4: Current | E4: Indic | F4: 2 | G4: 2 | H4: CRPFM-2 | J4: M2 | N4: =IF($D4="Current",VLOOKUP(F4,'Data Input'!$B$9:$N$52,7,FALSE),VLOOKUP(F4,'Data Input'!$B$9:$N$52,6,FALSE)) -> D | O4: =IFERROR(IF($B4="Climat",IF($D4="Current",VLOOKUP($F4,'Data Input'!$B$9:$N$52,10,FALSE),VLOOKUP($F4,'Data Input'!$B$9:$N$52,9,FALSE)),IF($D4="Current",VLOOKUP($F4,'Data Input'!$B$12:$N$53,10,FALSE),VLOOKUP($F4,'Data Input'!$B$12:$N$53,9,FALSE))),"") -> 1 | P4: 1. BELOW BASIC | Q4: 1 | R4: =MIN(IF($O$2:$O$45>0,IF($B$2:$B$45=$B4,IF($C$2:$C$45=$C4,IF($H$2:$H$45=$H4,$O$2:$O$45))))) -> 1 | S4: 1 | T4: 1
A5: ='Data Input'!$F$3 -> Pefalia | B5: Climat | C5: ='Data Input'!$F$4 -> 2021 | D5: Current | E5: Comp | F5: 2.1 | G5: 2 | H5: CRPFM-2 | I5: 1 | K5: =VLOOKUP($F5,'Dimension (FR)'!$A$2:$G$52,5,FALSE) -> 2 - Suivi des dépenses liées au climat | L5: =VLOOKUP($F5,'Dimension (FR)'!$A$2:$G$52,6,FALSE) -> II | M5: =VLOOKUP($F5,'Dimension (FR)'!$A$2:$G$52,2,FALSE) -> 2.1 | N5: =IF($B5="Climat",IF($D5="Current",VLOOKUP($F5,'Data Input'!$B$9:$N$52,7,FALSE),VLOOKUP($F5,'Data Input'!$B$9:$N$52,6,FALSE)),IF($D5="Current",VLOOKUP($F5,'Data Input'!$B$12:$N$53,7,FALSE),VLOOKUP($F5,'Data Input'!$B$12:$N$53,6,FALSE))) -> D | O5: =IFERROR(IF($B5="Climat",IF($D5="Current",VLOOKUP($F5,'Data Input'!$B$9:$N$52,10,FALSE),VLOOKUP($F5,'Data Input'!$B$9:$N$52,9,FALSE)),IF($D5="Current",VLOOKUP($F5,'Data Input'!$B$12:$N$53,10,FALSE),VLOOKUP($F5,'Data Input'!$B$12:$N$53,9,FALSE))),"") -> 1 | P5: 1. BELOW BASIC | Q5: 1 | R5: =MIN(IF($O$2:$O$45>0,IF($B$2:$B$45=$B5,IF($C$2:$C$45=$C5,IF($H$2:$H$45=$H5,$O$2:$O$45))))) -> 1 | S5: 1 | T5: 1 | U5: =IF($D5="Current",VLOOKUP($F5,'Data Input'!$B$9:$N$52,12,FALSE),"") -> 
A6: ='Data Input'!$F$3 -> Pefalia | B6: Climat | C6: ='Data Input'!$F$4 -> 2021 | D6: Current | E6: Indic | F6: 3 | G6: 3 | H6: CRPFM-3 | J6: M2 | N6: =IF($D6="Current",VLOOKUP(F6,'Data Input'!$B$9:$N$52,7,FALSE),VLOOKUP(F6,'Data Input'!$B$9:$N$52,6,FALSE)) -> D | O6: =IFERROR(IF($B6="Climat",IF($D6="Current",VLOOKUP($F6,'Data Input'!$B$9:$N$52,10,FALSE),VLOOKUP($F6,'Data Input'!$B$9:$N$52,9,FALSE)),IF($D6="Current",VLOOKUP($F6,'Data Input'!$B$12:$N$53,10,FALSE),VLOOKUP($F6,'Data Input'!$B$12:$N$53,9,FALSE))),"") -> 1 | P6: 1. BELOW BASIC | Q6: 1 | R6: =MIN(IF($O$2:$O$45>0,IF($B$2:$B$45=$B6,IF($C$2:$C$45=$C6,IF($H$2:$H$45=$H6,$O$2:$O$45))))) -> 1 | S6: 1 | T6: 1
A7: ='Data Input'!$F$3 -> Pefalia | B7: Climat | C7: ='Data Input'!$F$4 -> 2021 | D7: Current | E7: Comp | F7: 3.1 | G7: 3 | H7: CRPFM-3 | I7: 1 | K7: =VLOOKUP($F7,'Dimension (FR)'!$A$2:$G$52,5,FALSE) -> 3 - Circulaire budgétaire sensible au climat | L7: =VLOOKUP($F7,'Dimension (FR)'!$A$2:$G$52,6,FALSE) -> IV | M7: =VLOOKUP($F7,'Dimension (FR)'!$A$2:$G$52,2,FALSE) -> 3.1 | N7: =IF($B7="Climat",IF($D7="Current",VLOOKUP($F7,'Data Input'!$B$9:$N$52,7,FALSE),VLOOKUP($F7,'Data Input'!$B$9:$N$52,6,FALSE)),IF($D7="Current",VLOOKUP($F7,'Data Input'!$B$12:$N$53,7,FALSE),VLOOKUP($F7,'Data Input'!$B$12:$N$53,6,FALSE))) -> D | O7: =IFERROR(IF($B7="Climat",IF($D7="Current",VLOOKUP($F7,'Data Input'!$B$9:$N$52,10,FALSE),VLOOKUP($F7,'Data Input'!$B$9:$N$52,9,FALSE)),IF($D7="Current",VLOOKUP($F7,'Data Input'!$B$12:$N$53,10,FALSE),VLOOKUP($F7,'Data Input'!$B$12:$N$53,9,FALSE))),"") -> 1 | P7: 1. BELOW BASIC | Q7: 1 | R7: =MIN(IF($O$2:$O$45>0,IF($B$2:$B$45=$B7,IF($C$2:$C$45=$C7,IF($H$2:$H$45=$H7,$O$2:$O$45))))) -> 1 | S7: 1 | T7: 1 | U7: =IF($D7="Current",VLOOKUP($F7,'Data Input'!$B$9:$N$52,12,FALSE),"") -> 
A8: ='Data Input'!$F$3 -> Pefalia | B8: Climat | C8: ='Data Input'!$F$4 -> 2021 | D8: Current | E8: Indic | F8: 4 | G8: 4 | H8: CRPFM-4 | J8: M2 | N8: =IF($D8="Current",VLOOKUP(F8,'Data Input'!$B$9:$N$52,7,FALSE),VLOOKUP(F8,'Data Input'!$B$9:$N$52,6,FALSE)) -> D+ | O8: =IFERROR(IF($B8="Climat",IF($D8="Current",VLOOKUP($F8,'Data Input'!$B$9:$N$52,10,FALSE),VLOOKUP($F8,'Data Input'!$B$9:$N$52,9,FALSE)),IF($D8="Current",VLOOKUP($F8,'Data Input'!$B$12:$N$53,10,FALSE),VLOOKUP($F8,'Data Input'!$B$12:$N$53,9,FALSE))),"") -> 1.5 | P8: 1. BELOW BASIC | Q8: 1.5 | R8: =MIN(IF($O$2:$O$45>0,IF($B$2:$B$45=$B8,IF($C$2:$C$45=$C8,IF($H$2:$H$45=$H8,$O$2:$O$45))))) -> 1 | S8: 1.5 | T8: 1.5
A9: ='Data Input'!$F$3 -> Pefalia | B9: Climat | C9: ='Data Input'!$F$4 -> 2021 | D9: Current | E9: Comp | F9: 4.1 | G9: 4 | H9: CRPFM-4 | I9: 1 | K9: =VLOOKUP($F9,'Dimension (FR)'!$A$2:$G$52,5,FALSE) -> 4 - Examen par le pouvoir législatif | L9: =VLOOKUP($F9,'Dimension (FR)'!$A$2:$G$52,6,FALSE) -> IV | M9: =VLOOKUP($F9,'Dimension (FR)'!$A$2:$G$52,2,FALSE) -> 4.1 | N9: =IF($B9="Climat",IF($D9="Current",VLOOKUP($F9,'Data Input'!$B$9:$N$52,7,FALSE),VLOOKUP($F9,'Data Input'!$B$9:$N$52,6,FALSE)),IF($D9="Current",VLOOKUP($F9,'Data Input'!$B$12:$N$53,7,FALSE),VLOOKUP($F9,'Data Input'!$B$12:$N$53,6,FALSE))) -> D | O9: =IFERROR(IF($B9="Climat",IF($D9="Current",VLOOKUP($F9,'Data Input'!$B$9:$N$52,10,FALSE),VLOOKUP($F9,'Data Input'!$B$9:$N$52,9,FALSE)),IF($D9="Current",VLOOKUP($F9,'Data Input'!$B$12:$N$53,10,FALSE),VLOOKUP($F9,'Data Input'!$B$12:$N$53,9,FALSE))),"") -> 1 | P9: 1. BELOW BASIC | Q9: 1.5 | R9: =MIN(IF($O$2:$O$45>0,IF($B$2:$B$45=$B9,IF($C$2:$C$45=$C9,IF($H$2:$H$45=$H9,$O$2:$O$45))))) -> 1 | S9: 1.5 | T9: 1.5 | U9: =IF($D9="Current",VLOOKUP($F9,'Data Input'!$B$9:$N$52,12,FALSE),"") -> 
A10: ='Data Input'!$F$3 -> Pefalia | B10: Climat | C10: ='Data Input'!$F$4 -> 2021 | D10: Current | E10: Comp | F10: 4.2 | G10: 4 | H10: CRPFM-4 | I10: 2 | K10: =VLOOKUP($F10,'Dimension (FR)'!$A$2:$G$52,5,FALSE) -> 4 - Examen par le pouvoir législatif | L10: =VLOOKUP($F10,'Dimension (FR)'!$A$2:$G$52,6,FALSE) -> VII | M10: =VLOOKUP($F10,'Dimension (FR)'!$A$2:$G$52,2,FALSE) -> 4.2 | N10: =IF($B10="Climat",IF($D10="Current",VLOOKUP($F10,'Data Input'!$B$9:$N$52,7,FALSE),VLOOKUP($F10,'Data Input'!$B$9:$N$52,6,FALSE)),IF($D10="Current",VLOOKUP($F10,'Data Input'!$B$12:$N$53,7,FALSE),VLOOKUP($F10,'Data Input'!$B$12:$N$53,6,FALSE))) -> C | O10: =IFERROR(IF($B10="Climat",IF($D10="Current",VLOOKUP($F10,'Data Input'!$B$9:$N$52,10,FALSE),VLOOKUP($F10,'Data Input'!$B$9:$N$52,9,FALSE)),IF($D10="Current",VLOOKUP($F10,'Data Input'!$B$12:$N$53,10,FALSE),VLOOKUP($F10,'Data Input'!$B$12:$N$53,9,FALSE))),"") -> 2 | P10: 2. BASIC | Q10: 1.5 | R10: =MIN(IF($O$2:$O$45>0,IF($B$2:$B$45=$B10,IF($C$2:$C$45=$C10,IF($H$2:$H$45=$H10,$O$2:$O$45))))) -> 1 | S10: 1.5 | T10: 1.5 | U10: =IF($D10="Current",VLOOKUP($F10,'Data Input'!$B$9:$N$52,12,FALSE),"") -> 
A11: ='Data Input'!$F$3 -> Pefalia | B11: Climat | C11: ='Data Input'!$F$4 -> 2021 | D11: Current | E11: Indic | F11: 5 | G11: 5 | H11: CRPFM-5 | J11: M2 | N11: =IF($D11="Current",VLOOKUP(F11,'Data Input'!$B$9:$N$52,7,FALSE),VLOOKUP(F11,'Data Input'!$B$9:$N$52,6,FALSE)) -> D | O11: =IFERROR(IF($B11="Climat",IF($D11="Current",VLOOKUP($F11,'Data Input'!$B$9:$N$52,10,FALSE),VLOOKUP($F11,'Data Input'!$B$9:$N$52,9,FALSE)),IF($D11="Current",VLOOKUP($F11,'Data Input'!$B$12:$N$53,10,FALSE),VLOOKUP($F11,'Data Input'!$B$12:$N$53,9,FALSE))),"") -> 1 | P11: 1. BELOW BASIC | Q11: 1 | R11: =MIN(IF($O$2:$O$45>0,IF($B$2:$B$45=$B11,IF($C$2:$C$45=$C11,IF($H$2:$H$45=$H11,$O$2:$O$45))))) -> 1 | S11: 1 | T11: 1
A12: ='Data Input'!$F$3 -> Pefalia | B12: Climat | C12: ='Data Input'!$F$4 -> 2021 | D12: Current | E12: Comp | F12: 5.1 | G12: 5 | H12: CRPFM-5 | I12: 1 | K12: =VLOOKUP($F12,'Dimension (FR)'!$A$2:$G$52,5,FALSE) -> 5 - Gestion sensible au climat des investissements publics | L12: =VLOOKUP($F12,'Dimension (FR)'!$A$2:$G$52,6,FALSE) -> III | M12: =VLOOKUP($F12,'Dimension (FR)'!$A$2:$G$52,2,FALSE) -> 5.1 | N12: =IF($B12="Climat",IF($D12="Current",VLOOKUP($F12,'Data Input'!$B$9:$N$52,7,FALSE),VLOOKUP($F12,'Data Input'!$B$9:$N$52,6,FALSE)),IF($D12="Current",VLOOKUP($F12,'Data Input'!$B$12:$N$53,7,FALSE),VLOOKUP($F12,'Data Input'!$B$12:$N$53,6,FALSE))) -> D | O12: =IFERROR(IF($B12="Climat",IF($D12="Current",VLOOKUP($F12,'Data Input'!$B$9:$N$52,10,FALSE),VLOOKUP($F12,'Data Input'!$B$9:$N$52,9,FALSE)),IF($D12="Current",VLOOKUP($F12,'Data Input'!$B$12:$N$53,10,FALSE),VLOOKUP($F12,'Data Input'!$B$12:$N$53,9,FALSE))),"") -> 1 | P12: 1. BELOW BASIC | Q12: 1 | R12: =MIN(IF($O$2:$O$45>0,IF($B$2:$B$45=$B12,IF($C$2:$C$45=$C12,IF($H$2:$H$45=$H12,$O$2:$O$45))))) -> 1 | S12: 1 | T12: 1 | U12: =IF($D12="Current",VLOOKUP($F12,'Data Input'!$B$9:$N$52,12,FALSE),"") -> 
A13: ='Data Input'!$F$3 -> Pefalia | B13: Climat | C13: ='Data Input'!$F$4 -> 2021 | D13: Current | E13: Comp | F13: 5.2 | G13: 5 | H13: CRPFM-5 | I13: 2 | K13: =VLOOKUP($F13,'Dimension (FR)'!$A$2:$G$52,5,FALSE) -> 5 - Gestion sensible au climat des investissements publics | L13: =VLOOKUP($F13,'Dimension (FR)'!$A$2:$G$52,6,FALSE) -> III | M13: =VLOOKUP($F13,'Dimension (FR)'!$A$2:$G$52,2,FALSE) -> 5.2 | N13: =IF($B13="Climat",IF($D13="Current",VLOOKUP($F13,'Data Input'!$B$9:$N$52,7,FALSE),VLOOKUP($F13,'Data Input'!$B$9:$N$52,6,FALSE)),IF($D13="Current",VLOOKUP($F13,'Data Input'!$B$12:$N$53,7,FALSE),VLOOKUP($F13,'Data Input'!$B$12:$N$53,6,FALSE))) -> D | O13: =IFERROR(IF($B13="Climat",IF($D13="Current",VLOOKUP($F13,'Data Input'!$B$9:$N$52,10,FALSE),VLOOKUP($F13,'Data Input'!$B$9:$N$52,9,FALSE)),IF($D13="Current",VLOOKUP($F13,'Data Input'!$B$12:$N$53,10,FALSE),VLOOKUP($F13,'Data Input'!$B$12:$N$53,9,FALSE))),"") -> 1 | P13: 1. BELOW BASIC | Q13: 1 | R13: =MIN(IF($O$2:$O$45>0,IF($B$2:$B$45=$B13,IF($C$2:$C$45=$C13,IF($H$2:$H$45=$H13,$O$2:$O$45))))) -> 1 | S13: 1 | T13: 1 | U13: =IF($D13="Current",VLOOKUP($F13,'Data Input'!$B$9:$N$52,12,FALSE),"") -> 
A14: ='Data Input'!$F$3 -> Pefalia | B14: Climat | C14: ='Data Input'!$F$4 -> 2021 | D14: Current | E14: Comp | F14: 5.3 | G14: 5 | H14: CRPFM-5 | I14: 3 | K14: =VLOOKUP($F14,'Dimension (FR)'!$A$2:$G$52,5,FALSE) -> 5 - Gestion sensible au climat des investissements publics | L14: =VLOOKUP($F14,'Dimension (FR)'!$A$2:$G$52,6,FALSE) -> III | M14: =VLOOKUP($F14,'Dimension (FR)'!$A$2:$G$52,2,FALSE) -> 5.3 | N14: =IF($B14="Climat",IF($D14="Current",VLOOKUP($F14,'Data Input'!$B$9:$N$52,7,FALSE),VLOOKUP($F14,'Data Input'!$B$9:$N$52,6,FALSE)),IF($D14="Current",VLOOKUP($F14,'Data Input'!$B$12:$N$53,7,FALSE),VLOOKUP($F14,'Data Input'!$B$12:$N$53,6,FALSE))) -> D | O14: =IFERROR(IF($B14="Climat",IF($D14="Current",VLOOKUP($F14,'Data Input'!$B$9:$N$52,10,FALSE),VLOOKUP($F14,'Data Input'!$B$9:$N$52,9,FALSE)),IF($D14="Current",VLOOKUP($F14,'Data Input'!$B$12:$N$53,10,FALSE),VLOOKUP($F14,'Data Input'!$B$12:$N$53,9,FALSE))),"") -> 1 | P14: 1. BELOW BASIC | Q14: 1 | R14: =MIN(IF($O$2:$O$45>0,IF($B$2:$B$45=$B14,IF($C$2:$C$45=$C14,IF($H$2:$H$45=$H14,$O$2:$O$45))))) -> 1 | S14: 1 | T14: 1 | U14: =IF($D14="Current",VLOOKUP($F14,'Data Input'!$B$9:$N$52,12,FALSE),"") -> 
A15: ='Data Input'!$F$3 -> Pefalia | B15: Climat | C15: ='Data Input'!$F$4 -> 2021 | D15: Current | E15: Comp | F15: 5.4 | G15: 5 | H15: CRPFM-5 | I15: 4 | K15: =VLOOKUP($F15,'Dimension (FR)'!$A$2:$G$52,5,FALSE) -> 5 - Gestion sensible au climat des investissements publics | L15: =VLOOKUP($F15,'Dimension (FR)'!$A$2:$G$52,6,FALSE) -> III | M15: =VLOOKUP($F15,'Dimension (FR)'!$A$2:$G$52,2,FALSE) -> 5.4 | N15: =IF($B15="Climat",IF($D15="Current",VLOOKUP($F15,'Data Input'!$B$9:$N$52,7,FALSE),VLOOKUP($F15,'Data Input'!$B$9:$N$52,6,FALSE)),IF($D15="Current",VLOOKUP($F15,'Data Input'!$B$12:$N$53,7,FALSE),VLOOKUP($F15,'Data Input'!$B$12:$N$53,6,FALSE))) -> D | O15: =IFERROR(IF($B15="Climat",IF($D15="Current",VLOOKUP($F15,'Data Input'!$B$9:$N$52,10,FALSE),VLOOKUP($F15,'Data Input'!$B$9:$N$52,9,FALSE)),IF($D15="Current",VLOOKUP($F15,'Data Input'!$B$12:$N$53,10,FALSE),VLOOKUP($F15,'Data Input'!$B$12:$N$53,9,FALSE))),"") -> 1 | P15: 1. BELOW BASIC | Q15: 1 | R15: =MIN(IF($O$2:$O$45>0,IF($B$2:$B$45=$B15,IF($C$2:$C$45=$C15,IF($H$2:$H$45=$H15,$O$2:$O$45))))) -> 1 | S15: 1 | T15: 1 | U15: =IF($D15="Current",VLOOKUP($F15,'Data Input'!$B$9:$N$52,12,FALSE),"") -> 
A16: ='Data Input'!$F$3 -> Pefalia | B16: Climat | C16: ='Data Input'!$F$4 -> 2021 | D16: Current | E16: Indic | F16: 6 | G16: 6 | H16: CRPFM-6 | J16: M2 | N16: =IF($D16="Current",VLOOKUP(F16,'Data Input'!$B$9:$N$52,7,FALSE),VLOOKUP(F16,'Data Input'!$B$9:$N$52,6,FALSE)) -> D | O16: =IFERROR(IF($B16="Climat",IF($D16="Current",VLOOKUP($F16,'Data Input'!$B$9:$N$52,10,FALSE),VLOOKUP($F16,'Data Input'!$B$9:$N$52,9,FALSE)),IF($D16="Current",VLOOKUP($F16,'Data Input'!$B$12:$N$53,10,FALSE),VLOOKUP($F16,'Data Input'!$B$12:$N$53,9,FALSE))),"") -> 1 | P16: 1. BELOW BASIC | Q16: 1 | R16: =MIN(IF($O$2:$O$45>0,IF($B$2:$B$45=$B16,IF($C$2:$C$45=$C16,IF($H$2:$H$45=$H16,$O$2:$O$45))))) -> 1 | S16: 1 | T16: 1
A17: ='Data Input'!$F$3 -> Pefalia | B17: Climat | C17: ='Data Input'!$F$4 -> 2021 | D17: Current | E17: Comp | F17: 6.1 | G17: 6 | H17: CRPFM-6 | I17: 1 | K17: =VLOOKUP($F17,'Dimension (FR)'!$A$2:$G$52,5,FALSE) -> 6 - Gestion sensible au climat des actifs non financiers | L17: =VLOOKUP($F17,'Dimension (FR)'!$A$2:$G$52,6,FALSE) -> III | M17: =VLOOKUP($F17,'Dimension (FR)'!$A$2:$G$52,2,FALSE) -> 6.1 | N17: =IF($B17="Climat",IF($D17="Current",VLOOKUP($F17,'Data Input'!$B$9:$N$52,7,FALSE),VLOOKUP($F17,'Data Input'!$B$9:$N$52,6,FALSE)),IF($D17="Current",VLOOKUP($F17,'Data Input'!$B$12:$N$53,7,FALSE),VLOOKUP($F17,'Data Input'!$B$12:$N$53,6,FALSE))) -> D | O17: =IFERROR(IF($B17="Climat",IF($D17="Current",VLOOKUP($F17,'Data Input'!$B$9:$N$52,10,FALSE),VLOOKUP($F17,'Data Input'!$B$9:$N$52,9,FALSE)),IF($D17="Current",VLOOKUP($F17,'Data Input'!$B$12:$N$53,10,FALSE),VLOOKUP($F17,'Data Input'!$B$12:$N$53,9,FALSE))),"") -> 1 | P17: 1. BELOW BASIC | Q17: 1 | R17: =MIN(IF($O$2:$O$45>0,IF($B$2:$B$45=$B17,IF($C$2:$C$45=$C17,IF($H$2:$H$45=$H17,$O$2:$O$45))))) -> 1 | S17: 1 | T17: 1 | U17: =IF($D17="Current",VLOOKUP($F17,'Data Input'!$B$9:$N$52,12,FALSE),"") -> 
A18: ='Data Input'!$F$3 -> Pefalia | B18: Climat | C18: ='Data Input'!$F$4 -> 2021 | D18: Current | E18: Indic | F18: 7 | G18: 7 | H18: CRPFM-7 | J18: M2 | N18: =IF($D18="Current",VLOOKUP(F18,'Data Input'!$B$9:$N$52,7,FALSE),VLOOKUP(F18,'Data Input'!$B$9:$N$52,6,FALSE)) -> D+ | O18: =IFERROR(IF($B18="Climat",IF($D18="Current",VLOOKUP($F18,'Data Input'!$B$9:$N$52,10,FALSE),VLOOKUP($F18,'Data Input'!$B$9:$N$52,9,FALSE)),IF($D18="Current",VLOOKUP($F18,'Data Input'!$B$12:$N$53,10,FALSE),VLOOKUP($F18,'Data Input'!$B$12:$N$53,9,FALSE))),"") -> 1.5 | P18: 1. BELOW BASIC | Q18: 1.5 | R18: =MIN(IF($O$2:$O$45>0,IF($B$2:$B$45=$B18,IF($C$2:$C$45=$C18,IF($H$2:$H$45=$H18,$O$2:$O$45))))) -> 1 | S18: 1.5 | T18: 1.5
A19: ='Data Input'!$F$3 -> Pefalia | B19: Climat | C19: ='Data Input'!$F$4 -> 2021 | D19: Current | E19: Comp | F19: 7.1 | G19: 7 | H19: CRPFM-7 | I19: 1 | K19: =VLOOKUP($F19,'Dimension (FR)'!$A$2:$G$52,5,FALSE) -> 7 - Passifs liés au climat | L19: =VLOOKUP($F19,'Dimension (FR)'!$A$2:$G$52,6,FALSE) -> III | M19: =VLOOKUP($F19,'Dimension (FR)'!$A$2:$G$52,2,FALSE) -> 7.1 | N19: =IF($B19="Climat",IF($D19="Current",VLOOKUP($F19,'Data Input'!$B$9:$N$52,7,FALSE),VLOOKUP($F19,'Data Input'!$B$9:$N$52,6,FALSE)),IF($D19="Current",VLOOKUP($F19,'Data Input'!$B$12:$N$53,7,FALSE),VLOOKUP($F19,'Data Input'!$B$12:$N$53,6,FALSE))) -> D | O19: =IFERROR(IF($B19="Climat",IF($D19="Current",VLOOKUP($F19,'Data Input'!$B$9:$N$52,10,FALSE),VLOOKUP($F19,'Data Input'!$B$9:$N$52,9,FALSE)),IF($D19="Current",VLOOKUP($F19,'Data Input'!$B$12:$N$53,10,FALSE),VLOOKUP($F19,'Data Input'!$B$12:$N$53,9,FALSE))),"") -> 1 | P19: 1. BELOW BASIC | Q19: 1.5 | R19: =MIN(IF($O$2:$O$45>0,IF($B$2:$B$45=$B19,IF($C$2:$C$45=$C19,IF($H$2:$H$45=$H19,$O$2:$O$45))))) -> 1 | S19: 1.5 | T19: 1.5 | U19: =IF($D19="Current",VLOOKUP($F19,'Data Input'!$B$9:$N$52,12,FALSE),"") -> 
A20: ='Data Input'!$F$3 -> Pefalia | B20: Climat | C20: ='Data Input'!$F$4 -> 2021 | D20: Current | E20: Comp | F20: 7.2 | G20: 7 | H20: CRPFM-7 | I20: 2 | K20: =VLOOKUP($F20,'Dimension (FR)'!$A$2:$G$52,5,FALSE) -> 7 - Passifs liés au climat | L20: =VLOOKUP($F20,'Dimension (FR)'!$A$2:$G$52,6,FALSE) -> III | M20: =VLOOKUP($F20,'Dimension (FR)'!$A$2:$G$52,2,FALSE) -> 7.2 | N20: =IF($B20="Climat",IF($D20="Current",VLOOKUP($F20,'Data Input'!$B$9:$N$52,7,FALSE),VLOOKUP($F20,'Data Input'!$B$9:$N$52,6,FALSE)),IF($D20="Current",VLOOKUP($F20,'Data Input'!$B$12:$N$53,7,FALSE),VLOOKUP($F20,'Data Input'!$B$12:$N$53,6,FALSE))) -> C | O20: =IFERROR(IF($B20="Climat",IF($D20="Current",VLOOKUP($F20,'Data Input'!$B$9:$N$52,10,FALSE),VLOOKUP($F20,'Data Input'!$B$9:$N$52,9,FALSE)),IF($D20="Current",VLOOKUP($F20,'Data Input'!$B$12:$N$53,10,FALSE),VLOOKUP($F20,'Data Input'!$B$12:$N$53,9,FALSE))),"") -> 2 | P20: 2. BASIC | Q20: 1.5 | R20: =MIN(IF($O$2:$O$45>0,IF($B$2:$B$45=$B20,IF($C$2:$C$45=$C20,IF($H$2:$H$45=$H20,$O$2:$O$45))))) -> 1 | S20: 1.5 | T20: 1.5 | U20: =IF($D20="Current",VLOOKUP($F20,'Data Input'!$B$9:$N$52,12,FALSE),"") -> 
A21: ='Data Input'!$F$3 -> Pefalia | B21: Climat | C21: ='Data Input'!$F$4 -> 2021 | D21: Current | E21: Indic | F21: 8 | G21: 8 | H21: CRPFM-8 | J21: M2 | N21: =IF($D21="Current",VLOOKUP(F21,'Data Input'!$B$9:$N$52,7,FALSE),VLOOKUP(F21,'Data Input'!$B$9:$N$52,6,FALSE)) -> D+ | O21: =IFERROR(IF($B21="Climat",IF($D21="Current",VLOOKUP($F21,'Data Input'!$B$9:$N$52,10,FALSE),VLOOKUP($F21,'Data Input'!$B$9:$N$52,9,FALSE)),IF($D21="Current",VLOOKUP($F21,'Data Input'!$B$12:$N$53,10,FALSE),VLOOKUP($F21,'Data Input'!$B$12:$N$53,9,FALSE))),"") -> 1.5 | P21: 1. BELOW BASIC | Q21: 1.75 | R21: =MIN(IF($O$2:$O$45>0,IF($B$2:$B$45=$B21,IF($C$2:$C$45=$C21,IF($H$2:$H$45=$H21,$O$2:$O$45))))) -> 1 | S21: 1.5 | T21: 1.75
A22: ='Data Input'!$F$3 -> Pefalia | B22: Climat | C22: ='Data Input'!$F$4 -> 2021 | D22: Current | E22: Comp | F22: 8.1 | G22: 8 | H22: CRPFM-8 | I22: 1 | K22: =VLOOKUP($F22,'Dimension (FR)'!$A$2:$G$52,5,FALSE) -> 8 - Marchés publics sensibles au climat | L22: =VLOOKUP($F22,'Dimension (FR)'!$A$2:$G$52,6,FALSE) -> V | M22: =VLOOKUP($F22,'Dimension (FR)'!$A$2:$G$52,2,FALSE) -> 8.1 | N22: =IF($B22="Climat",IF($D22="Current",VLOOKUP($F22,'Data Input'!$B$9:$N$52,7,FALSE),VLOOKUP($F22,'Data Input'!$B$9:$N$52,6,FALSE)),IF($D22="Current",VLOOKUP($F22,'Data Input'!$B$12:$N$53,7,FALSE),VLOOKUP($F22,'Data Input'!$B$12:$N$53,6,FALSE))) -> C | O22: =IFERROR(IF($B22="Climat",IF($D22="Current",VLOOKUP($F22,'Data Input'!$B$9:$N$52,10,FALSE),VLOOKUP($F22,'Data Input'!$B$9:$N$52,9,FALSE)),IF($D22="Current",VLOOKUP($F22,'Data Input'!$B$12:$N$53,10,FALSE),VLOOKUP($F22,'Data Input'!$B$12:$N$53,9,FALSE))),"") -> 2 | P22: 2. BASIC | Q22: 1.75 | R22: =MIN(IF($O$2:$O$45>0,IF($B$2:$B$45=$B22,IF($C$2:$C$45=$C22,IF($H$2:$H$45=$H22,$O$2:$O$45))))) -> 1 | S22: 1.5 | T22: 1.75 | U22: =IF($D22="Current",VLOOKUP($F22,'Data Input'!$B$9:$N$52,12,FALSE),"") -> 
A23: ='Data Input'!$F$3 -> Pefalia | B23: Climat | C23: ='Data Input'!$F$4 -> 2021 | D23: Current | E23: Comp | F23: 8.2 | G23: 8 | H23: CRPFM-8 | I23: 2 | K23: =VLOOKUP($F23,'Dimension (FR)'!$A$2:$G$52,5,FALSE) -> 8 - Marchés publics sensibles au climat | L23: =VLOOKUP($F23,'Dimension (FR)'!$A$2:$G$52,6,FALSE) -> V | M23: =VLOOKUP($F23,'Dimension (FR)'!$A$2:$G$52,2,FALSE) -> 8.2 | N23: =IF($B23="Climat",IF($D23="Current",VLOOKUP($F23,'Data Input'!$B$9:$N$52,7,FALSE),VLOOKUP($F23,'Data Input'!$B$9:$N$52,6,FALSE)),IF($D23="Current",VLOOKUP($F23,'Data Input'!$B$12:$N$53,7,FALSE),VLOOKUP($F23,'Data Input'!$B$12:$N$53,6,FALSE))) -> C | O23: =IFERROR(IF($B23="Climat",IF($D23="Current",VLOOKUP($F23,'Data Input'!$B$9:$N$52,10,FALSE),VLOOKUP($F23,'Data Input'!$B$9:$N$52,9,FALSE)),IF($D23="Current",VLOOKUP($F23,'Data Input'!$B$12:$N$53,10,FALSE),VLOOKUP($F23,'Data Input'!$B$12:$N$53,9,FALSE))),"") -> 2 | P23: 2. BASIC | Q23: 1.75 | R23: =MIN(IF($O$2:$O$45>0,IF($B$2:$B$45=$B23,IF($C$2:$C$45=$C23,IF($H$2:$H$45=$H23,$O$2:$O$45))))) -> 1 | S23: 1.5 | T23: 1.75 | U23: =IF($D23="Current",VLOOKUP($F23,'Data Input'!$B$9:$N$52,12,FALSE),"") -> 
A24: ='Data Input'!$F$3 -> Pefalia | B24: Climat | C24: ='Data Input'!$F$4 -> 2021 | D24: Current | E24: Comp | F24: 8.3 | G24: 8 | H24: CRPFM-8 | I24: 3 | K24: =VLOOKUP($F24,'Dimension (FR)'!$A$2:$G$52,5,FALSE) -> 8 - Marchés publics sensibles au climat | L24: =VLOOKUP($F24,'Dimension (FR)'!$A$2:$G$52,6,FALSE) -> V | M24: =VLOOKUP($F24,'Dimension (FR)'!$A$2:$G$52,2,FALSE) -> 8.3 | N24: =IF($B24="Climat",IF($D24="Current",VLOOKUP($F24,'Data Input'!$B$9:$N$52,7,FALSE),VLOOKUP($F24,'Data Input'!$B$9:$N$52,6,FALSE)),IF($D24="Current",VLOOKUP($F24,'Data Input'!$B$12:$N$53,7,FALSE),VLOOKUP($F24,'Data Input'!$B$12:$N$53,6,FALSE))) -> C | O24: =IFERROR(IF($B24="Climat",IF($D24="Current",VLOOKUP($F24,'Data Input'!$B$9:$N$52,10,FALSE),VLOOKUP($F24,'Data Input'!$B$9:$N$52,9,FALSE)),IF($D24="Current",VLOOKUP($F24,'Data Input'!$B$12:$N$53,10,FALSE),VLOOKUP($F24,'Data Input'!$B$12:$N$53,9,FALSE))),"") -> 2 | P24: 2. BASIC | Q24: 1.75 | R24: =MIN(IF($O$2:$O$45>0,IF($B$2:$B$45=$B24,IF($C$2:$C$45=$C24,IF($H$2:$H$45=$H24,$O$2:$O$45))))) -> 1 | S24: 1.5 | T24: 1.75 | U24: =IF($D24="Current",VLOOKUP($F24,'Data Input'!$B$9:$N$52,12,FALSE),"") -> 
A25: ='Data Input'!$F$3 -> Pefalia | B25: Climat | C25: ='Data Input'!$F$4 -> 2021 | D25: Current | E25: Comp | F25: 8.4 | G25: 8 | H25: CRPFM-8 | I25: 4 | K25: =VLOOKUP($F25,'Dimension (FR)'!$A$2:$G$52,5,FALSE) -> 8 - Marchés publics sensibles au climat | L25: =VLOOKUP($F25,'Dimension (FR)'!$A$2:$G$52,6,FALSE) -> V | M25: =VLOOKUP($F25,'Dimension (FR)'!$A$2:$G$52,2,FALSE) -> 8.4 | N25: =IF($B25="Climat",IF($D25="Current",VLOOKUP($F25,'Data Input'!$B$9:$N$52,7,FALSE),VLOOKUP($F25,'Data Input'!$B$9:$N$52,6,FALSE)),IF($D25="Current",VLOOKUP($F25,'Data Input'!$B$12:$N$53,7,FALSE),VLOOKUP($F25,'Data Input'!$B$12:$N$53,6,FALSE))) -> D* | O25: =IFERROR(IF($B25="Climat",IF($D25="Current",VLOOKUP($F25,'Data Input'!$B$9:$N$52,10,FALSE),VLOOKUP($F25,'Data Input'!$B$9:$N$52,9,FALSE)),IF($D25="Current",VLOOKUP($F25,'Data Input'!$B$12:$N$53,10,FALSE),VLOOKUP($F25,'Data Input'!$B$12:$N$53,9,FALSE))),"") -> 1 | P25: 1. BELOW BASIC | Q25: 1.75 | R25: =MIN(IF($O$2:$O$45>0,IF($B$2:$B$45=$B25,IF($C$2:$C$45=$C25,IF($H$2:$H$45=$H25,$O$2:$O$45))))) -> 1 | S25: 1.5 | T25: 1.75 | U25: =IF($D25="Current",VLOOKUP($F25,'Data Input'!$B$9:$N$52,12,FALSE),"") -> 
A26: ='Data Input'!$F$3 -> Pefalia | B26: Climat | C26: ='Data Input'!$F$4 -> 2021 | D26: Current | E26: Indic | F26: 9 | G26: 9 | H26: ="CRPFM-"&G26 -> CRPFM-9 | J26: M2 | N26: =IF($D26="Current",VLOOKUP(F26,'Data Input'!$B$9:$N$52,7,FALSE),VLOOKUP(F26,'Data Input'!$B$9:$N$52,6,FALSE)) -> NA | O26: =IFERROR(IF($B26="Climat",IF($D26="Current",VLOOKUP($F26,'Data Input'!$B$9:$N$52,10,FALSE),VLOOKUP($F26,'Data Input'!$B$9:$N$52,9,FALSE)),IF($D26="Current",VLOOKUP($F26,'Data Input'!$B$12:$N$53,10,FALSE),VLOOKUP($F26,'Data Input'!$B$12:$N$53,9,FALSE))),"") -> 0 | Q26: 0 | R26: =MIN(IF($O$2:$O$45>0,IF($B$2:$B$45=$B26,IF($C$2:$C$45=$C26,IF($H$2:$H$45=$H26,$O$2:$O$45))))) -> 0 | S26: 0 | T26: 0
A27: ='Data Input'!$F$3 -> Pefalia | B27: Climat | C27: ='Data Input'!$F$4 -> 2021 | D27: Current | E27: Comp | F27: 9.1 | G27: 9 | H27: ="CRPFM-"&G27 -> CRPFM-9 | I27: 1 | K27: =VLOOKUP($F27,'Dimension (FR)'!$A$2:$G$52,5,FALSE) -> 9 - Gestion des recettes de la fiscalité climat | L27: =VLOOKUP($F27,'Dimension (FR)'!$A$2:$G$52,6,FALSE) -> V | M27: =VLOOKUP($F27,'Dimension (FR)'!$A$2:$G$52,2,FALSE) -> 9.1 | N27: =IF($B27="Climat",IF($D27="Current",VLOOKUP($F27,'Data Input'!$B$9:$N$52,7,FALSE),VLOOKUP($F27,'Data Input'!$B$9:$N$52,6,FALSE)),IF($D27="Current",VLOOKUP($F27,'Data Input'!$B$12:$N$53,7,FALSE),VLOOKUP($F27,'Data Input'!$B$12:$N$53,6,FALSE))) -> NA | O27: =IFERROR(IF($B27="Climat",IF($D27="Current",VLOOKUP($F27,'Data Input'!$B$9:$N$52,10,FALSE),VLOOKUP($F27,'Data Input'!$B$9:$N$52,9,FALSE)),IF($D27="Current",VLOOKUP($F27,'Data Input'!$B$12:$N$53,10,FALSE),VLOOKUP($F27,'Data Input'!$B$12:$N$53,9,FALSE))),"") -> 0 | Q27: 0 | R27: =MIN(IF($O$2:$O$45>0,IF($B$2:$B$45=$B27,IF($C$2:$C$45=$C27,IF($H$2:$H$45=$H27,$O$2:$O$45))))) -> 0 | S27: 0 | T27: 0 | U27: =IF($D27="Current",VLOOKUP($F27,'Data Input'!$B$9:$N$52,12,FALSE),"") -> 
A28: ='Data Input'!$F$3 -> Pefalia | B28: Climat | C28: ='Data Input'!$F$4 -> 2021 | D28: Current | E28: Comp | F28: 9.2 | G28: 9 | H28: ="CRPFM-"&G28 -> CRPFM-9 | I28: 2 | K28: =VLOOKUP($F28,'Dimension (FR)'!$A$2:$G$52,5,FALSE) -> 9 - Gestion des recettes de la fiscalité climat | L28: =VLOOKUP($F28,'Dimension (FR)'!$A$2:$G$52,6,FALSE) -> V | M28: =VLOOKUP($F28,'Dimension (FR)'!$A$2:$G$52,2,FALSE) -> 9.2 | N28: =IF($B28="Climat",IF($D28="Current",VLOOKUP($F28,'Data Input'!$B$9:$N$52,7,FALSE),VLOOKUP($F28,'Data Input'!$B$9:$N$52,6,FALSE)),IF($D28="Current",VLOOKUP($F28,'Data Input'!$B$12:$N$53,7,FALSE),VLOOKUP($F28,'Data Input'!$B$12:$N$53,6,FALSE))) -> NA | O28: =IFERROR(IF($B28="Climat",IF($D28="Current",VLOOKUP($F28,'Data Input'!$B$9:$N$52,10,FALSE),VLOOKUP($F28,'Data Input'!$B$9:$N$52,9,FALSE)),IF($D28="Current",VLOOKUP($F28,'Data Input'!$B$12:$N$53,10,FALSE),VLOOKUP($F28,'Data Input'!$B$12:$N$53,9,FALSE))),"") -> 0 | Q28: 0 | R28: =MIN(IF($O$2:$O$45>0,IF($B$2:$B$45=$B28,IF($C$2:$C$45=$C28,IF($H$2:$H$45=$H28,$O$2:$O$45))))) -> 0 | S28: 0 | T28: 0 | U28: =IF($D28="Current",VLOOKUP($F28,'Data Input'!$B$9:$N$52,12,FALSE),"") -> 
A29: ='Data Input'!$F$3 -> Pefalia | B29: Climat | C29: ='Data Input'!$F$4 -> 2021 | D29: Current | E29: Indic | F29: 10 | G29: 10 | H29: CRPFM-10 | J29: M2 | N29: =IF($D29="Current",VLOOKUP(F29,'Data Input'!$B$9:$N$52,7,FALSE),VLOOKUP(F29,'Data Input'!$B$9:$N$52,6,FALSE)) -> C+ | O29: =IFERROR(IF($B29="Climat",IF($D29="Current",VLOOKUP($F29,'Data Input'!$B$9:$N$52,10,FALSE),VLOOKUP($F29,'Data Input'!$B$9:$N$52,9,FALSE)),IF($D29="Current",VLOOKUP($F29,'Data Input'!$B$12:$N$53,10,FALSE),VLOOKUP($F29,'Data Input'!$B$12:$N$53,9,FALSE))),"") -> 2.5 | P29: 2. BASIC | Q29: 2.5 | R29: =MIN(IF($O$2:$O$45>0,IF($B$2:$B$45=$B29,IF($C$2:$C$45=$C29,IF($H$2:$H$45=$H29,$O$2:$O$45))))) -> 2 | S29: 2.5 | T29: 2.5
A30: ='Data Input'!$F$3 -> Pefalia | B30: Climat | C30: ='Data Input'!$F$4 -> 2021 | D30: Current | E30: Comp | F30: 10.1 | G30: 10 | H30: CRPFM-10 | I30: 1 | K30: =VLOOKUP($F30,'Dimension (FR)'!$A$2:$G$52,5,FALSE) -> 10 - Conformité des dépenses liées au climat | L30: =VLOOKUP($F30,'Dimension (FR)'!$A$2:$G$52,6,FALSE) -> V | M30: =VLOOKUP($F30,'Dimension (FR)'!$A$2:$G$52,2,FALSE) -> 10.1 | N30: =IF($B30="Climat",IF($D30="Current",VLOOKUP($F30,'Data Input'!$B$9:$N$52,7,FALSE),VLOOKUP($F30,'Data Input'!$B$9:$N$52,6,FALSE)),IF($D30="Current",VLOOKUP($F30,'Data Input'!$B$12:$N$53,7,FALSE),VLOOKUP($F30,'Data Input'!$B$12:$N$53,6,FALSE))) -> C | O30: =IFERROR(IF($B30="Climat",IF($D30="Current",VLOOKUP($F30,'Data Input'!$B$9:$N$52,10,FALSE),VLOOKUP($F30,'Data Input'!$B$9:$N$52,9,FALSE)),IF($D30="Current",VLOOKUP($F30,'Data Input'!$B$12:$N$53,10,FALSE),VLOOKUP($F30,'Data Input'!$B$12:$N$53,9,FALSE))),"") -> 2 | P30: 2. BASIC | Q30: 2.5 | R30: =MIN(IF($O$2:$O$45>0,IF($B$2:$B$45=$B30,IF($C$2:$C$45=$C30,IF($H$2:$H$45=$H30,$O$2:$O$45))))) -> 2 | S30: 2.5 | T30: 2.5 | U30: =IF($D30="Current",VLOOKUP($F30,'Data Input'!$B$9:$N$52,12,FALSE),"") -> 
A31: ='Data Input'!$F$3 -> Pefalia | B31: Climat | C31: ='Data Input'!$F$4 -> 2021 | D31: Current | E31: Comp | F31: 10.2 | G31: 10 | H31: CRPFM-10 | I31: 2 | K31: =VLOOKUP($F31,'Dimension (FR)'!$A$2:$G$52,5,FALSE) -> 10 - Conformité des dépenses liées au climat | L31: =VLOOKUP($F31,'Dimension (FR)'!$A$2:$G$52,6,FALSE) -> V | M31: =VLOOKUP($F31,'Dimension (FR)'!$A$2:$G$52,2,FALSE) -> 10.2 | N31: =IF($B31="Climat",IF($D31="Current",VLOOKUP($F31,'Data Input'!$B$9:$N$52,7,FALSE),VLOOKUP($F31,'Data Input'!$B$9:$N$52,6,FALSE)),IF($D31="Current",VLOOKUP($F31,'Data Input'!$B$12:$N$53,7,FALSE),VLOOKUP($F31,'Data Input'!$B$12:$N$53,6,FALSE))) -> B | O31: =IFERROR(IF($B31="Climat",IF($D31="Current",VLOOKUP($F31,'Data Input'!$B$9:$N$52,10,FALSE),VLOOKUP($F31,'Data Input'!$B$9:$N$52,9,FALSE)),IF($D31="Current",VLOOKUP($F31,'Data Input'!$B$12:$N$53,10,FALSE),VLOOKUP($F31,'Data Input'!$B$12:$N$53,9,FALSE))),"") -> 3 | P31: 3. SOUND | Q31: 2.5 | R31: =MIN(IF($O$2:$O$45>0,IF($B$2:$B$45=$B31,IF($C$2:$C$45=$C31,IF($H$2:$H$45=$H31,$O$2:$O$45))))) -> 2 | S31: 2.5 | T31: 2.5 | U31: =IF($D31="Current",VLOOKUP($F31,'Data Input'!$B$9:$N$52,12,FALSE),"") -> 
A32: ='Data Input'!$F$3 -> Pefalia | B32: Climat | C32: ='Data Input'!$F$4 -> 2021 | D32: Current | E32: Indic | F32: 11 | G32: 11 | H32: CRPFM-11 | J32: M2 | N32: =IF($D32="Current",VLOOKUP(F32,'Data Input'!$B$9:$N$52,7,FALSE),VLOOKUP(F32,'Data Input'!$B$9:$N$52,6,FALSE)) -> NA | O32: =IFERROR(IF($B32="Climat",IF($D32="Current",VLOOKUP($F32,'Data Input'!$B$9:$N$52,10,FALSE),VLOOKUP($F32,'Data Input'!$B$9:$N$52,9,FALSE)),IF($D32="Current",VLOOKUP($F32,'Data Input'!$B$12:$N$53,10,FALSE),VLOOKUP($F32,'Data Input'!$B$12:$N$53,9,FALSE))),"") -> 0 | Q32: 0 | R32: =MIN(IF($O$2:$O$45>0,IF($B$2:$B$45=$B32,IF($C$2:$C$45=$C32,IF($H$2:$H$45=$H32,$O$2:$O$45))))) -> 0 | S32: 0 | T32: 0
A33: ='Data Input'!$F$3 -> Pefalia | B33: Climat | C33: ='Data Input'!$F$4 -> 2021 | D33: Current | E33: Comp | F33: 11.1 | G33: 11 | H33: CRPFM-11 | I33: 1 | K33: =VLOOKUP($F33,'Dimension (FR)'!$A$2:$G$52,5,FALSE) -> 11 - Cadre de décentralisation budgétaire sensible au climat | L33: =VLOOKUP($F33,'Dimension (FR)'!$A$2:$G$52,6,FALSE) -> II | M33: =VLOOKUP($F33,'Dimension (FR)'!$A$2:$G$52,2,FALSE) -> 11.1 | N33: =IF($B33="Climat",IF($D33="Current",VLOOKUP($F33,'Data Input'!$B$9:$N$52,7,FALSE),VLOOKUP($F33,'Data Input'!$B$9:$N$52,6,FALSE)),IF($D33="Current",VLOOKUP($F33,'Data Input'!$B$12:$N$53,7,FALSE),VLOOKUP($F33,'Data Input'!$B$12:$N$53,6,FALSE))) -> NA | O33: =IFERROR(IF($B33="Climat",IF($D33="Current",VLOOKUP($F33,'Data Input'!$B$9:$N$52,10,FALSE),VLOOKUP($F33,'Data Input'!$B$9:$N$52,9,FALSE)),IF($D33="Current",VLOOKUP($F33,'Data Input'!$B$12:$N$53,10,FALSE),VLOOKUP($F33,'Data Input'!$B$12:$N$53,9,FALSE))),"") -> 0 | Q33: 0 | R33: =MIN(IF($O$2:$O$45>0,IF($B$2:$B$45=$B33,IF($C$2:$C$45=$C33,IF($H$2:$H$45=$H33,$O$2:$O$45))))) -> 0 | S33: 0 | T33: 0 | U33: =IF($D33="Current",VLOOKUP($F33,'Data Input'!$B$9:$N$52,12,FALSE),"") -> 
A34: ='Data Input'!$F$3 -> Pefalia | B34: Climat | C34: ='Data Input'!$F$4 -> 2021 | D34: Current | E34: Comp | F34: 11.2 | G34: 11 | H34: CRPFM-11 | I34: 2 | K34: =VLOOKUP($F34,'Dimension (FR)'!$A$2:$G$52,5,FALSE) -> 11 - Cadre de décentralisation budgétaire sensible au climat | L34: =VLOOKUP($F34,'Dimension (FR)'!$A$2:$G$52,6,FALSE) -> II | M34: =VLOOKUP($F34,'Dimension (FR)'!$A$2:$G$52,2,FALSE) -> 11.2 | N34: =IF($B34="Climat",IF($D34="Current",VLOOKUP($F34,'Data Input'!$B$9:$N$52,7,FALSE),VLOOKUP($F34,'Data Input'!$B$9:$N$52,6,FALSE)),IF($D34="Current",VLOOKUP($F34,'Data Input'!$B$12:$N$53,7,FALSE),VLOOKUP($F34,'Data Input'!$B$12:$N$53,6,FALSE))) -> NA | O34: =IFERROR(IF($B34="Climat",IF($D34="Current",VLOOKUP($F34,'Data Input'!$B$9:$N$52,10,FALSE),VLOOKUP($F34,'Data Input'!$B$9:$N$52,9,FALSE)),IF($D34="Current",VLOOKUP($F34,'Data Input'!$B$12:$N$53,10,FALSE),VLOOKUP($F34,'Data Input'!$B$12:$N$53,9,FALSE))),"") -> 0 | Q34: 0 | R34: =MIN(IF($O$2:$O$45>0,IF($B$2:$B$45=$B34,IF($C$2:$C$45=$C34,IF($H$2:$H$45=$H34,$O$2:$O$45))))) -> 0 | S34: 0 | T34: 0 | U34: =IF($D34="Current",VLOOKUP($F34,'Data Input'!$B$9:$N$52,12,FALSE),"") -> 
A35: ='Data Input'!$F$3 -> Pefalia | B35: Climat | C35: ='Data Input'!$F$4 -> 2021 | D35: Current | E35: Comp | F35: 11.3 | G35: 11 | H35: CRPFM-11 | I35: 3 | K35: =VLOOKUP($F35,'Dimension (FR)'!$A$2:$G$52,5,FALSE) -> 11 - Cadre de décentralisation budgétaire sensible au climat | L35: =VLOOKUP($F35,'Dimension (FR)'!$A$2:$G$52,6,FALSE) -> II | M35: =VLOOKUP($F35,'Dimension (FR)'!$A$2:$G$52,2,FALSE) -> 11.3 | N35: =IF($B35="Climat",IF($D35="Current",VLOOKUP($F35,'Data Input'!$B$9:$N$52,7,FALSE),VLOOKUP($F35,'Data Input'!$B$9:$N$52,6,FALSE)),IF($D35="Current",VLOOKUP($F35,'Data Input'!$B$12:$N$53,7,FALSE),VLOOKUP($F35,'Data Input'!$B$12:$N$53,6,FALSE))) -> NA | O35: =IFERROR(IF($B35="Climat",IF($D35="Current",VLOOKUP($F35,'Data Input'!$B$9:$N$52,10,FALSE),VLOOKUP($F35,'Data Input'!$B$9:$N$52,9,FALSE)),IF($D35="Current",VLOOKUP($F35,'Data Input'!$B$12:$N$53,10,FALSE),VLOOKUP($F35,'Data Input'!$B$12:$N$53,9,FALSE))),"") -> 0 | Q35: 0 | R35: =MIN(IF($O$2:$O$45>0,IF($B$2:$B$45=$B35,IF($C$2:$C$45=$C35,IF($H$2:$H$45=$H35,$O$2:$O$45))))) -> 0 | S35: 0 | T35: 0 | U35: =IF($D35="Current",VLOOKUP($F35,'Data Input'!$B$9:$N$52,12,FALSE),"") -> 
A36: ='Data Input'!$F$3 -> Pefalia | B36: Climat | C36: ='Data Input'!$F$4 -> 2021 | D36: Current | E36: Indic | F36: 12 | G36: 12 | H36: CRPFM-12 | J36: M2 | N36: =IF($D36="Current",VLOOKUP(F36,'Data Input'!$B$9:$N$52,7,FALSE),VLOOKUP(F36,'Data Input'!$B$9:$N$52,6,FALSE)) -> C+ | O36: =IFERROR(IF($B36="Climat",IF($D36="Current",VLOOKUP($F36,'Data Input'!$B$9:$N$52,10,FALSE),VLOOKUP($F36,'Data Input'!$B$9:$N$52,9,FALSE)),IF($D36="Current",VLOOKUP($F36,'Data Input'!$B$12:$N$53,10,FALSE),VLOOKUP($F36,'Data Input'!$B$12:$N$53,9,FALSE))),"") -> 2.5 | P36: 2. BASIC | Q36: 2.5 | R36: =MIN(IF($O$2:$O$45>0,IF($B$2:$B$45=$B36,IF($C$2:$C$45=$C36,IF($H$2:$H$45=$H36,$O$2:$O$45))))) -> 2 | S36: 2.5 | T36: 2.5
A37: ='Data Input'!$F$3 -> Pefalia | B37: Climat | C37: ='Data Input'!$F$4 -> 2021 | D37: Current | E37: Comp | F37: 12.1 | G37: 12 | H37: CRPFM-12 | I37: 1 | K37: =VLOOKUP($F37,'Dimension (FR)'!$A$2:$G$52,5,FALSE) -> 12 - Informations sur les performances liées au climat | L37: =VLOOKUP($F37,'Dimension (FR)'!$A$2:$G$52,6,FALSE) -> II | M37: =VLOOKUP($F37,'Dimension (FR)'!$A$2:$G$52,2,FALSE) -> 12.1 | N37: =IF($B37="Climat",IF($D37="Current",VLOOKUP($F37,'Data Input'!$B$9:$N$52,7,FALSE),VLOOKUP($F37,'Data Input'!$B$9:$N$52,6,FALSE)),IF($D37="Current",VLOOKUP($F37,'Data Input'!$B$12:$N$53,7,FALSE),VLOOKUP($F37,'Data Input'!$B$12:$N$53,6,FALSE))) -> B | O37: =IFERROR(IF($B37="Climat",IF($D37="Current",VLOOKUP($F37,'Data Input'!$B$9:$N$52,10,FALSE),VLOOKUP($F37,'Data Input'!$B$9:$N$52,9,FALSE)),IF($D37="Current",VLOOKUP($F37,'Data Input'!$B$12:$N$53,10,FALSE),VLOOKUP($F37,'Data Input'!$B$12:$N$53,9,FALSE))),"") -> 3 | P37: 3. SOUND | Q37: 2.5 | R37: =MIN(IF($O$2:$O$45>0,IF($B$2:$B$45=$B37,IF($C$2:$C$45=$C37,IF($H$2:$H$45=$H37,$O$2:$O$45))))) -> 2 | S37: 2.5 | T37: 2.5 | U37: =IF($D37="Current",VLOOKUP($F37,'Data Input'!$B$9:$N$52,12,FALSE),"") -> 
A38: ='Data Input'!$F$3 -> Pefalia | B38: Climat | C38: ='Data Input'!$F$4 -> 2021 | D38: Current | E38: Comp | F38: 12.2 | G38: 12 | H38: CRPFM-12 | I38: 2 | K38: =VLOOKUP($F38,'Dimension (FR)'!$A$2:$G$52,5,FALSE) -> 12 - Informations sur les performances liées au climat | L38: =VLOOKUP($F38,'Dimension (FR)'!$A$2:$G$52,6,FALSE) -> II | M38: =VLOOKUP($F38,'Dimension (FR)'!$A$2:$G$52,2,FALSE) -> 12.2 | N38: =IF($B38="Climat",IF($D38="Current",VLOOKUP($F38,'Data Input'!$B$9:$N$52,7,FALSE),VLOOKUP($F38,'Data Input'!$B$9:$N$52,6,FALSE)),IF($D38="Current",VLOOKUP($F38,'Data Input'!$B$12:$N$53,7,FALSE),VLOOKUP($F38,'Data Input'!$B$12:$N$53,6,FALSE))) -> C | O38: =IFERROR(IF($B38="Climat",IF($D38="Current",VLOOKUP($F38,'Data Input'!$B$9:$N$52,10,FALSE),VLOOKUP($F38,'Data Input'!$B$9:$N$52,9,FALSE)),IF($D38="Current",VLOOKUP($F38,'Data Input'!$B$12:$N$53,10,FALSE),VLOOKUP($F38,'Data Input'!$B$12:$N$53,9,FALSE))),"") -> 2 | P38: 2. BASIC | Q38: 2.5 | R38: =MIN(IF($O$2:$O$45>0,IF($B$2:$B$45=$B38,IF($C$2:$C$45=$C38,IF($H$2:$H$45=$H38,$O$2:$O$45))))) -> 2 | S38: 2.5 | T38: 2.5 | U38: =IF($D38="Current",VLOOKUP($F38,'Data Input'!$B$9:$N$52,12,FALSE),"") -> 
A39: ='Data Input'!$F$3 -> Pefalia | B39: Climat | C39: ='Data Input'!$F$4 -> 2021 | D39: Current | E39: Indic | F39: 13 | G39: 13 | H39: CRPFM-13 | J39: M2 | N39: =IF($D39="Current",VLOOKUP(F39,'Data Input'!$B$9:$N$52,7,FALSE),VLOOKUP(F39,'Data Input'!$B$9:$N$52,6,FALSE)) -> D+ | O39: =IFERROR(IF($B39="Climat",IF($D39="Current",VLOOKUP($F39,'Data Input'!$B$9:$N$52,10,FALSE),VLOOKUP($F39,'Data Input'!$B$9:$N$52,9,FALSE)),IF($D39="Current",VLOOKUP($F39,'Data Input'!$B$12:$N$53,10,FALSE),VLOOKUP($F39,'Data Input'!$B$12:$N$53,9,FALSE))),"") -> 1.5 | P39: 1. BELOW BASIC | Q39: 1.5 | R39: =MIN(IF($O$2:$O$45>0,IF($B$2:$B$45=$B39,IF($C$2:$C$45=$C39,IF($H$2:$H$45=$H39,$O$2:$O$45))))) -> 1 | S39: 1.5 | T39: 1.5
A40: ='Data Input'!$F$3 -> Pefalia | B40: Climat | C40: ='Data Input'!$F$4 -> 2021 | D40: Current | E40: Comp | F40: 13.1 | G40: 13 | H40: CRPFM-13 | I40: 1 | K40: =VLOOKUP($F40,'Dimension (FR)'!$A$2:$G$52,5,FALSE) -> 13 - Evaluation liée au climat | L40: =VLOOKUP($F40,'Dimension (FR)'!$A$2:$G$52,6,FALSE) -> II | M40: =VLOOKUP($F40,'Dimension (FR)'!$A$2:$G$52,2,FALSE) -> 13.1 | N40: =IF($B40="Climat",IF($D40="Current",VLOOKUP($F40,'Data Input'!$B$9:$N$52,7,FALSE),VLOOKUP($F40,'Data Input'!$B$9:$N$52,6,FALSE)),IF($D40="Current",VLOOKUP($F40,'Data Input'!$B$12:$N$53,7,FALSE),VLOOKUP($F40,'Data Input'!$B$12:$N$53,6,FALSE))) -> D | O40: =IFERROR(IF($B40="Climat",IF($D40="Current",VLOOKUP($F40,'Data Input'!$B$9:$N$52,10,FALSE),VLOOKUP($F40,'Data Input'!$B$9:$N$52,9,FALSE)),IF($D40="Current",VLOOKUP($F40,'Data Input'!$B$12:$N$53,10,FALSE),VLOOKUP($F40,'Data Input'!$B$12:$N$53,9,FALSE))),"") -> 1 | P40: 1. BELOW BASIC | Q40: 1.5 | R40: =MIN(IF($O$2:$O$45>0,IF($B$2:$B$45=$B40,IF($C$2:$C$45=$C40,IF($H$2:$H$45=$H40,$O$2:$O$45))))) -> 1 | S40: 1.5 | T40: 1.5 | U40: =IF($D40="Current",VLOOKUP($F40,'Data Input'!$B$9:$N$52,12,FALSE),"") -> 
A41: ='Data Input'!$F$3 -> Pefalia | B41: Climat | C41: ='Data Input'!$F$4 -> 2021 | D41: Current | E41: Comp | F41: 13.2 | G41: 13 | H41: CRPFM-13 | I41: 2 | K41: =VLOOKUP($F41,'Dimension (FR)'!$A$2:$G$52,5,FALSE) -> 13 - Evaluation liée au climat | L41: =VLOOKUP($F41,'Dimension (FR)'!$A$2:$G$52,6,FALSE) -> VII | M41: =VLOOKUP($F41,'Dimension (FR)'!$A$2:$G$52,2,FALSE) -> 13.2 | N41: =IF($B41="Climat",IF($D41="Current",VLOOKUP($F41,'Data Input'!$B$9:$N$52,7,FALSE),VLOOKUP($F41,'Data Input'!$B$9:$N$52,6,FALSE)),IF($D41="Current",VLOOKUP($F41,'Data Input'!$B$12:$N$53,7,FALSE),VLOOKUP($F41,'Data Input'!$B$12:$N$53,6,FALSE))) -> C | O41: =IFERROR(IF($B41="Climat",IF($D41="Current",VLOOKUP($F41,'Data Input'!$B$9:$N$52,10,FALSE),VLOOKUP($F41,'Data Input'!$B$9:$N$52,9,FALSE)),IF($D41="Current",VLOOKUP($F41,'Data Input'!$B$12:$N$53,10,FALSE),VLOOKUP($F41,'Data Input'!$B$12:$N$53,9,FALSE))),"") -> 2 | P41: 2. BASIC | Q41: 1.5 | R41: =MIN(IF($O$2:$O$45>0,IF($B$2:$B$45=$B41,IF($C$2:$C$45=$C41,IF($H$2:$H$45=$H41,$O$2:$O$45))))) -> 1 | S41: 1.5 | T41: 1.5 | U41: =IF($D41="Current",VLOOKUP($F41,'Data Input'!$B$9:$N$52,12,FALSE),"") -> 
A42: ='Data Input'!$F$3 -> Pefalia | B42: Climat | C42: ='Data Input'!$F$4 -> 2021 | D42: Current | E42: Indic | F42: 14 | G42: 14 | H42: CRPFM-14 | J42: M2 | N42: =IF($D42="Current",VLOOKUP(F42,'Data Input'!$B$9:$N$52,7,FALSE),VLOOKUP(F42,'Data Input'!$B$9:$N$52,6,FALSE)) -> NA | O42: =IFERROR(IF($B42="Climat",IF($D42="Current",VLOOKUP($F42,'Data Input'!$B$9:$N$52,10,FALSE),VLOOKUP($F42,'Data Input'!$B$9:$N$52,9,FALSE)),IF($D42="Current",VLOOKUP($F42,'Data Input'!$B$12:$N$53,10,FALSE),VLOOKUP($F42,'Data Input'!$B$12:$N$53,9,FALSE))),"") -> 0 | Q42: 0 | R42: =MIN(IF($O$2:$O$45>0,IF($B$2:$B$45=$B42,IF($C$2:$C$45=$C42,IF($H$2:$H$45=$H42,$O$2:$O$45))))) -> 0 | S42: 0 | T42: 0
A43: ='Data Input'!$F$3 -> Pefalia | B43: Climat | C43: ='Data Input'!$F$4 -> 2021 | D43: Current | E43: Comp | F43: 14.1 | G43: 14 | H43: CRPFM-14 | I43: 1 | K43: =VLOOKUP($F43,'Dimension (FR)'!$A$2:$G$52,5,FALSE) -> 14 - Résultat des dépenses pour les actions climatiques | L43: =VLOOKUP($F43,'Dimension (FR)'!$A$2:$G$52,6,FALSE) -> I | M43: =VLOOKUP($F43,'Dimension (FR)'!$A$2:$G$52,2,FALSE) -> 14.1 | N43: =IF($B43="Climat",IF($D43="Current",VLOOKUP($F43,'Data Input'!$B$9:$N$52,7,FALSE),VLOOKUP($F43,'Data Input'!$B$9:$N$52,6,FALSE)),IF($D43="Current",VLOOKUP($F43,'Data Input'!$B$12:$N$53,7,FALSE),VLOOKUP($F43,'Data Input'!$B$12:$N$53,6,FALSE))) -> NA | O43: =IFERROR(IF($B43="Climat",IF($D43="Current",VLOOKUP($F43,'Data Input'!$B$9:$N$52,10,FALSE),VLOOKUP($F43,'Data Input'!$B$9:$N$52,9,FALSE)),IF($D43="Current",VLOOKUP($F43,'Data Input'!$B$12:$N$53,10,FALSE),VLOOKUP($F43,'Data Input'!$B$12:$N$53,9,FALSE))),"") -> 0 | Q43: 0 | R43: =MIN(IF($O$2:$O$45>0,IF($B$2:$B$45=$B43,IF($C$2:$C$45=$C43,IF($H$2:$H$45=$H43,$O$2:$O$45))))) -> 0 | S43: 0 | T43: 0 | U43: =IF($D43="Current",VLOOKUP($F43,'Data Input'!$B$9:$N$52,12,FALSE),"") -> 
A44: ='Data Input'!$F$3 -> Pefalia | B44: Climat | C44: ='Data Input'!$F$4 -> 2021 | D44: Current | E44: Comp | F44: 14.2 | G44: 14 | H44: CRPFM-14 | I44: 2 | K44: =VLOOKUP($F44,'Dimension (FR)'!$A$2:$G$52,5,FALSE) -> 14 - Résultat des dépenses pour les actions climatiques | L44: =VLOOKUP($F44,'Dimension (FR)'!$A$2:$G$52,6,FALSE) -> I | M44: =VLOOKUP($F44,'Dimension (FR)'!$A$2:$G$52,2,FALSE) -> 14.2 | N44: =IF($B44="Climat",IF($D44="Current",VLOOKUP($F44,'Data Input'!$B$9:$N$52,7,FALSE),VLOOKUP($F44,'Data Input'!$B$9:$N$52,6,FALSE)),IF($D44="Current",VLOOKUP($F44,'Data Input'!$B$12:$N$53,7,FALSE),VLOOKUP($F44,'Data Input'!$B$12:$N$53,6,FALSE))) -> NA | O44: =IFERROR(IF($B44="Climat",IF($D44="Current",VLOOKUP($F44,'Data Input'!$B$9:$N$52,10,FALSE),VLOOKUP($F44,'Data Input'!$B$9:$N$52,9,FALSE)),IF($D44="Current",VLOOKUP($F44,'Data Input'!$B$12:$N$53,10,FALSE),VLOOKUP($F44,'Data Input'!$B$12:$N$53,9,FALSE))),"") -> 0 | Q44: 0 | R44: =MIN(IF($O$2:$O$45>0,IF($B$2:$B$45=$B44,IF($C$2:$C$45=$C44,IF($H$2:$H$45=$H44,$O$2:$O$45))))) -> 0 | S44: 0 | T44: 0 | U44: =IF($D44="Current",VLOOKUP($F44,'Data Input'!$B$9:$N$52,12,FALSE),"") -> 

Sheet ES-Indic
X1: Indic | Y1: Indic | Z1: Indic
X2: AD | Y2: AD | Z2: AD | AL2: AD
AD4: 4 | AE4: 0 | AF4: A
AD5: 3.5 | AE5: 0 | AF5: B+
AD6: 3 | AE6: 0 | AF6: B+
Z7: xyChart | AA7: Value | AD7: 2.5 | AE7: 0 | AF7: C+
Z8: 1 | AA8: 0 | AD8: 2 | AE8: 0 | AF8: C
Z9: 1.5 | AA9: 0 | AD9: 1.5 | AE9: 0 | AF9: D+
Z10: 2 | AA10: 0 | AD10: 1 | AE10: 0 | AF10: D
Z11: 2.5 | AA11: 0 | AD11: 0.5 | AE11: 0 | AF11: D*
Z12: 3 | AA12: 0 | AD12: 0 | AE12: 0 | AF12: NA
Z13: 3.5 | AA13: 0 | AD13: 0 | AF13: NU
Z14: 4 | AA14: 0 | AB14: A
C41: ID | D41: Indic | E41: 4. HIGH | F41: 3. SOUND | G41: 2. BASIC | H41: 1. BELOW BASIC | I41: Score Num
C42: 1 | D42: ="CRPFM-"&C42 -> CRPFM-1 | E42: =IF($I42>3.5,$I42,"") ->  | F42: =IF(AND($I42<3.5,$I42>=3),$I42,"") -> 3 | G42: =IF(AND($I42<3,$I42>=2),$I42,"") ->  | H42: =IF(AND($I42<1.75,$I42>=1),$I42,"") ->  | I42: =VLOOKUP(C42,'Data Input'!$B$9:$K$52,10,FALSE) -> 3
C43: 2 | D43: ="CRPFM-"&C43 -> CRPFM-2 | H43: =IF(AND($I43<1.75,$I43>=1),$I43,"") -> 1 | I43: =VLOOKUP(C43,'Data Input'!$B$9:$K$52,10,FALSE) -> 1
C44: 3 | D44: CRPFM-3 | H44: 1 | I44: =VLOOKUP(C44,'Data Input'!$B$9:$K$52,10,FALSE) -> 1
C45: 4 | D45: CRPFM-4 | H45: 1.5 | I45: =VLOOKUP(C45,'Data Input'!$B$9:$K$52,10,FALSE) -> 1.5
C46: 5 | D46: CRPFM-5 | H46: 1 | I46: =VLOOKUP(C46,'Data Input'!$B$9:$K$52,10,FALSE) -> 1
C47: 6 | D47: CRPFM-6 | H47: 1 | I47: =VLOOKUP(C47,'Data Input'!$B$9:$K$52,10,FALSE) -> 1
C48: 7 | D48: CRPFM-7 | H48: 1.5 | I48: =VLOOKUP(C48,'Data Input'!$B$9:$K$52,10,FALSE) -> 1.5
C49: 8 | D49: CRPFM-8 | H49: 1.5 | I49: =VLOOKUP(C49,'Data Input'!$B$9:$K$52,10,FALSE) -> 1.5
C50: 9 | D50: CRPFM-9 | I50: =VLOOKUP(C50,'Data Input'!$B$9:$K$52,10,FALSE) -> 0
C51: 10 | D51: CRPFM-10 | G51: 2.5 | I51: =VLOOKUP(C51,'Data Input'!$B$9:$K$52,10,FALSE) -> 2.5
C52: 11 | D52: CRPFM-11 | I52: =VLOOKUP(C52,'Data Input'!$B$9:$K$52,10,FALSE) -> 0
C53: 12 | D53: CRPFM-12 | G53: 2.5 | I53: =VLOOKUP(C53,'Data Input'!$B$9:$K$52,10,FALSE) -> 2.5
C54: 13 | D54: CRPFM-13 | H54: 1.5 | I54: =VLOOKUP(C54,'Data Input'!$B$9:$K$52,10,FALSE) -> 1.5
C55: 14 | D55: CRPFM-14 | I55: =VLOOKUP(C55,'Data Input'!$B$9:$K$52,10,FALSE) -> 0
D181: SCORE | E181: PERF | F181: NB
D182: NU | E182: NON USED | F182: 1
D183: NA | E183: NON USED | F183: 1
D184: D* | E184: 1. BELOW BASIC | F184: 1
D185: D | E185: 1. BELOW BASIC | F185: 1
D186: D+ | E186: 1. BELOW BASIC | F186: 1
D187: C | E187: 2. BASIC | F187: 1
D188: C+ | E188: 2. BASIC | F188: 1
D189: B | E189: 3. BON | F189: 1
D190: B+ | E190: 3. BON | F190: 1
D191: A | E191: 4. TRES BON | F191: 1

Sheet ES-Scores
B3: ID-Ind | C3: ='Data Input'!$G$9 ->  | D3: ='Data Input'!$H$9 -> 2021
B4: A | C4: =COUNTIFS('Data Input'!$D$12:$D$49,"Indic",'Data Input'!$G$12:$G$49,"A") -> 0 | D4: =COUNTIFS('Data Input'!$D$10:$D$54,"Indic",'Data Input'!$H$10:$H$54,"A") -> 0
B5: B+ | C5: =COUNTIFS('Data Input'!$D$12:$D$49,"Indic",'Data Input'!$G$12:$G$49,"B+") -> 0 | D5: =COUNTIFS('Data Input'!$D$10:$D$54,"Indic",'Data Input'!$H$10:$H$54,"B+") -> 0
B6: B | C6: =COUNTIFS('Data Input'!$D$12:$D$49,"Indic",'Data Input'!$G$12:$G$49,"B") -> 0 | D6: =COUNTIFS('Data Input'!$D$10:$D$54,"Indic",'Data Input'!$H$10:$H$54,"B") -> 1
B7: C+ | C7: =COUNTIFS('Data Input'!$D$12:$D$49,"Indic",'Data Input'!$G$12:$G$49,"C+") -> 2 | D7: =COUNTIFS('Data Input'!$D$10:$D$54,"Indic",'Data Input'!$H$10:$H$54,"C+") -> 2
B8: C | C8: =COUNTIFS('Data Input'!$D$12:$D$49,"Indic",'Data Input'!$G$12:$G$49,"C") -> 0 | D8: =COUNTIFS('Data Input'!$D$10:$D$54,"Indic",'Data Input'!$H$10:$H$54,"C") -> 0
B9: D+ | C9: =COUNTIFS('Data Input'!$D$12:$D$49,"Indic",'Data Input'!$G$12:$G$49,"D+") -> 4 | D9: =COUNTIFS('Data Input'!$D$10:$D$54,"Indic",'Data Input'!$H$10:$H$54,"D+") -> 4
B10: D | C10: =COUNTIFS('Data Input'!$D$12:$D$49,"Indic",'Data Input'!$G$12:$G$49,"D") -> 4 | D10: =COUNTIFS('Data Input'!$D$10:$D$54,"Indic",'Data Input'!$H$10:$H$54,"D") -> 4
B11: NU | C11: =COUNTIFS('Data Input'!$D$12:$D$49,"Indic",'Data Input'!$G$12:$G$49,"NU") -> 0 | D11: =COUNTIFS('Data Input'!$D$10:$D$54,"Indic",'Data Input'!$H$10:$H$54,"NU") -> 0
B12: NA | C12: =COUNTIFS('Data Input'!$D$12:$D$49,"Indic",'Data Input'!$G$12:$G$49,"NA") -> 0 | D12: =COUNTIFS('Data Input'!$D$10:$D$54,"Indic",'Data Input'!$H$10:$H$54,"NA") -> 3
B13: Total | C13: =SUM(C4:C12) -> 10 | D13: =SUM(D4:D12) -> 14
B20: ID-Comp | C20: ='Data Input'!$G$9 ->  | D20: ='Data Input'!$H$9 -> 2021
B21: A | C21: =COUNTIFS('Data Input'!$D$12:$D$49,"Comp",'Data Input'!$G$12:$G$49,"A") -> 0 | D21: =COUNTIFS('Data Input'!$D$10:$D$54,"Comp",'Data Input'!$H$10:$H$54,"A") -> 0
B22: B | C22: =COUNTIFS('Data Input'!$D$12:$D$49,"Comp",'Data Input'!$G$12:$G$49,"B") -> 0 | D22: =COUNTIFS('Data Input'!$D$10:$D$54,"Comp",'Data Input'!$H$10:$H$54,"B") -> 3
B23: C | C23: =COUNTIFS('Data Input'!$D$12:$D$49,"Comp",'Data Input'!$G$12:$G$49,"C") -> 0 | D23: =COUNTIFS('Data Input'!$D$10:$D$54,"Comp",'Data Input'!$H$10:$H$54,"C") -> 8
B24: D | C24: =COUNTIFS('Data Input'!$D$12:$D$49,"Comp",'Data Input'!$G$12:$G$49,"D") -> 0 | D24: =COUNTIFS('Data Input'!$D$10:$D$54,"Comp",'Data Input'!$H$10:$H$54,"D") -> 10
B25: D* | C25: =COUNTIFS('Data Input'!$D$12:$D$49,"Comp",'Data Input'!$G$12:$G$49,"D*")-C24 -> 0 | D25: =COUNTIFS('Data Input'!$D$10:$D$54,"Comp",'Data Input'!$H$10:$H$54,"D*")-COUNTIFS('Data Input'!$D$10:$D$54,"Comp",'Data Input'!$H$10:$H$54,"D") -> 1
B26: NU | C26: =COUNTIFS('Data Input'!$D$12:$D$49,"Comp",'Data Input'!$G$12:$G$49,"NU") -> 0 | D26: =COUNTIFS('Data Input'!$D$10:$D$54,"Comp",'Data Input'!$H$10:$H$54,"NU") -> 0
B27: NA | C27: =COUNTIFS('Data Input'!$D$12:$D$49,"Comp",'Data Input'!$G$12:$G$49,"NA") -> 0 | D27: =COUNTIFS('Data Input'!$D$10:$D$54,"Comp",'Data Input'!$H$10:$H$54,"NA") -> 7
B28: Total | C28: =SUM(C21:C27) -> 0 | D28: =SUM(D21:D27) -> 29
B37: ID-Ind | C37: Evol
B38: - | C38: =COUNTIFS('Data Input'!$D$12:$D$49,"Indic",'Data Input'!$M$12:$M$49," -") -> 0 | D38: -
B39: + | C39: =COUNTIFS('Data Input'!$D$12:$D$49,"Indic",'Data Input'!$M$12:$M$49," +") -> 0
B40: = | C40: =COUNTIFS('Data Input'!$D$12:$D$49,"Indic",'Data Input'!$M$12:$M$49," =") -> 0
B41: N.C | C41: =COUNTIFS('Data Input'!$D$12:$D$49,"Indic",'Data Input'!$M$12:$M$49,"N.C") -> 0
B42: Total | C42: =SUM(C38:C41) -> 0
B53: ID-Comp | C53: Evol
B54: - | C54: =COUNTIFS('Data Input'!$D$12:$D$49,"Comp",'Data Input'!$M$12:$M$49," -") -> 0
B55: + | C55: =COUNTIFS('Data Input'!$D$12:$D$49,"Comp",'Data Input'!$M$12:$M$49," +") -> 0
B56: = | C56: =COUNTIFS('Data Input'!$D$12:$D$49,"Comp",'Data Input'!$M$12:$M$49," =") -> 0
B57: N.C | C57: =COUNTIFS('Data Input'!$D$12:$D$49,"Comp",'Data Input'!$M$12:$M$49,"N.C") -> 0
B58: Total | C58: =SUM(C54:C57) -> 0

Sheet ES-Synth table
E1: ="PEFA climat "&'Data Input'!F3&" - Year "&'Data Input'!F4 -> PEFA climat Pefalia - Year 2021
A3: M2 | C3: Performance Indicator | E3: Indicator | F3: 1 | G3: 2 | H3: 3 | I3: 4
A4: Method | C4: 1 | D4: ="CRPFM-"&C4 -> CRPFM-1 | E4: =VLOOKUP(C4,'Dimension (UK)'!$A$2:$C$52,3,FALSE) -> 1 Budget alignment with climate change strategies | F4: =_xlfn.IFNA(INDEX(Data!$N$2:$N$44, MATCH(1,(F$3=Data!$I$2:$I$44)*($C4=Data!$G$2:$G$44), 0)),"") -> B | G4: =_xlfn.IFNA(INDEX(Data!$N$2:$N$44, MATCH(1,(G$3=Data!$I$2:$I$44)*($C4=Data!$G$2:$G$44), 0)),"") ->  | H4: =_xlfn.IFNA(INDEX(Data!$N$2:$N$44, MATCH(1,(H$3=Data!$I$2:$I$44)*($C4=Data!$G$2:$G$44), 0)),"") ->  | I4: =_xlfn.IFNA(INDEX(Data!$N$2:$N$44, MATCH(1,(I$3=Data!$I$2:$I$44)*($C4=Data!$G$2:$G$44), 0)),"") ->  | J4: =_xlfn.IFNA(INDEX(Data!$N$2:$N$44, MATCH(1,(J$3=Data!$I$2:$I$44)*($C4=Data!$G$2:$G$44), 0)),"") -> B
A5: M2 | C5: 2 | D5: CRPFM-2 | E5: =VLOOKUP(C5,'Dimension (UK)'!$A$2:$C$52,3,FALSE) -> 2 Tracking climate related expenditure | F5: =_xlfn.IFNA(INDEX(Data!$N$2:$N$44, MATCH(1,(F$3=Data!$I$2:$I$44)*($C5=Data!$G$2:$G$44), 0)),"") -> D | G5: =_xlfn.IFNA(INDEX(Data!$N$2:$N$44, MATCH(1,(G$3=Data!$I$2:$I$44)*($C5=Data!$G$2:$G$44), 0)),"") ->  | H5: =_xlfn.IFNA(INDEX(Data!$N$2:$N$44, MATCH(1,(H$3=Data!$I$2:$I$44)*($C5=Data!$G$2:$G$44), 0)),"") ->  | I5: =_xlfn.IFNA(INDEX(Data!$N$2:$N$44, MATCH(1,(I$3=Data!$I$2:$I$44)*($C5=Data!$G$2:$G$44), 0)),"") ->  | J5: =_xlfn.IFNA(INDEX(Data!$N$2:$N$44, MATCH(1,(J$3=Data!$I$2:$I$44)*($C5=Data!$G$2:$G$44), 0)),"") -> D
A6: M2 | C6: 3 | D6: CRPFM-3 | E6: =VLOOKUP(C6,'Dimension (UK)'!$A$2:$C$52,3,FALSE) -> 3 Climate responsive budget circular | F6: =_xlfn.IFNA(INDEX(Data!$N$2:$N$44, MATCH(1,(F$3=Data!$I$2:$I$44)*($C6=Data!$G$2:$G$44), 0)),"") -> D | G6: =_xlfn.IFNA(INDEX(Data!$N$2:$N$44, MATCH(1,(G$3=Data!$I$2:$I$44)*($C6=Data!$G$2:$G$44), 0)),"") ->  | H6: =_xlfn.IFNA(INDEX(Data!$N$2:$N$44, MATCH(1,(H$3=Data!$I$2:$I$44)*($C6=Data!$G$2:$G$44), 0)),"") ->  | I6: =_xlfn.IFNA(INDEX(Data!$N$2:$N$44, MATCH(1,(I$3=Data!$I$2:$I$44)*($C6=Data!$G$2:$G$44), 0)),"") ->  | J6: =_xlfn.IFNA(INDEX(Data!$N$2:$N$44, MATCH(1,(J$3=Data!$I$2:$I$44)*($C6=Data!$G$2:$G$44), 0)),"") -> D
A7: M1 | C7: 4 | D7: CRPFM-4 | E7: =VLOOKUP(C7,'Dimension (UK)'!$A$2:$C$52,3,FALSE) -> 4 Legislative scrutiny | F7: =_xlfn.IFNA(INDEX(Data!$N$2:$N$44, MATCH(1,(F$3=Data!$I$2:$I$44)*($C7=Data!$G$2:$G$44), 0)),"") -> D | G7: =_xlfn.IFNA(INDEX(Data!$N$2:$N$44, MATCH(1,(G$3=Data!$I$2:$I$44)*($C7=Data!$G$2:$G$44), 0)),"") -> C | H7: =_xlfn.IFNA(INDEX(Data!$N$2:$N$44, MATCH(1,(H$3=Data!$I$2:$I$44)*($C7=Data!$G$2:$G$44), 0)),"") ->  | I7: =_xlfn.IFNA(INDEX(Data!$N$2:$N$44, MATCH(1,(I$3=Data!$I$2:$I$44)*($C7=Data!$G$2:$G$44), 0)),"") ->  | J7: =_xlfn.IFNA(INDEX(Data!$N$2:$N$44, MATCH(1,(J$3=Data!$I$2:$I$44)*($C7=Data!$G$2:$G$44), 0)),"") -> D+
A8: M1 | C8: 5 | D8: CRPFM-5 | E8: =VLOOKUP(C8,'Dimension (UK)'!$A$2:$C$52,3,FALSE) -> 5 Climate responsive public investment management | F8: =_xlfn.IFNA(INDEX(Data!$N$2:$N$44, MATCH(1,(F$3=Data!$I$2:$I$44)*($C8=Data!$G$2:$G$44), 0)),"") -> D | G8: =_xlfn.IFNA(INDEX(Data!$N$2:$N$44, MATCH(1,(G$3=Data!$I$2:$I$44)*($C8=Data!$G$2:$G$44), 0)),"") -> D | H8: =_xlfn.IFNA(INDEX(Data!$N$2:$N$44, MATCH(1,(H$3=Data!$I$2:$I$44)*($C8=Data!$G$2:$G$44), 0)),"") -> D | I8: =_xlfn.IFNA(INDEX(Data!$N$2:$N$44, MATCH(1,(I$3=Data!$I$2:$I$44)*($C8=Data!$G$2:$G$44), 0)),"") -> D | J8: =_xlfn.IFNA(INDEX(Data!$N$2:$N$44, MATCH(1,(J$3=Data!$I$2:$I$44)*($C8=Data!$G$2:$G$44), 0)),"") -> D
A9: M2 | C9: 6 | D9: CRPFM-6 | E9: =VLOOKUP(C9,'Dimension (UK)'!$A$2:$C$52,3,FALSE) -> 6 Climate responsive asset management | F9: =_xlfn.IFNA(INDEX(Data!$N$2:$N$44, MATCH(1,(F$3=Data!$I$2:$I$44)*($C9=Data!$G$2:$G$44), 0)),"") -> D | G9: =_xlfn.IFNA(INDEX(Data!$N$2:$N$44, MATCH(1,(G$3=Data!$I$2:$I$44)*($C9=Data!$G$2:$G$44), 0)),"") ->  | H9: =_xlfn.IFNA(INDEX(Data!$N$2:$N$44, MATCH(1,(H$3=Data!$I$2:$I$44)*($C9=Data!$G$2:$G$44), 0)),"") ->  | I9: =_xlfn.IFNA(INDEX(Data!$N$2:$N$44, MATCH(1,(I$3=Data!$I$2:$I$44)*($C9=Data!$G$2:$G$44), 0)),"") ->  | J9: =_xlfn.IFNA(INDEX(Data!$N$2:$N$44, MATCH(1,(J$3=Data!$I$2:$I$44)*($C9=Data!$G$2:$G$44), 0)),"") -> D
A10: M1 | C10: 7 | D10: CRPFM-7 | E10: =VLOOKUP(C10,'Dimension (UK)'!$A$2:$C$52,3,FALSE) -> 7 Climate related liabilities | F10: =_xlfn.IFNA(INDEX(Data!$N$2:$N$44, MATCH(1,(F$3=Data!$I$2:$I$44)*($C10=Data!$G$2:$G$44), 0)),"") -> D | G10: =_xlfn.IFNA(INDEX(Data!$N$2:$N$44, MATCH(1,(G$3=Data!$I$2:$I$44)*($C10=Data!$G$2:$G$44), 0)),"") -> C | H10: =_xlfn.IFNA(INDEX(Data!$N$2:$N$44, MATCH(1,(H$3=Data!$I$2:$I$44)*($C10=Data!$G$2:$G$44), 0)),"") ->  | I10: =_xlfn.IFNA(INDEX(Data!$N$2:$N$44, MATCH(1,(I$3=Data!$I$2:$I$44)*($C10=Data!$G$2:$G$44), 0)),"") ->  | J10: =_xlfn.IFNA(INDEX(Data!$N$2:$N$44, MATCH(1,(J$3=Data!$I$2:$I$44)*($C10=Data!$G$2:$G$44), 0)),"") -> D+
A11: M2 | C11: 8 | D11: CRPFM-8 | E11: =VLOOKUP(C11,'Dimension (UK)'!$A$2:$C$52,3,FALSE) -> 8 Climate responsive procurement | F11: =_xlfn.IFNA(INDEX(Data!$N$2:$N$44, MATCH(1,(F$3=Data!$I$2:$I$44)*($C11=Data!$G$2:$G$44), 0)),"") -> C | G11: =_xlfn.IFNA(INDEX(Data!$N$2:$N$44, MATCH(1,(G$3=Data!$I$2:$I$44)*($C11=Data!$G$2:$G$44), 0)),"") -> C | H11: =_xlfn.IFNA(INDEX(Data!$N$2:$N$44, MATCH(1,(H$3=Data!$I$2:$I$44)*($C11=Data!$G$2:$G$44), 0)),"") -> C | I11: =_xlfn.IFNA(INDEX(Data!$N$2:$N$44, MATCH(1,(I$3=Data!$I$2:$I$44)*($C11=Data!$G$2:$G$44), 0)),"") -> D* | J11: =_xlfn.IFNA(INDEX(Data!$N$2:$N$44, MATCH(1,(J$3=Data!$I$2:$I$44)*($C11=Data!$G$2:$G$44), 0)),"") -> D+
A12: M1 | C12: 9 | D12: CRPFM-9 | E12: =VLOOKUP(C12,'Dimension (UK)'!$A$2:$C$52,3,FALSE) -> 9 Climate responsive revenue administration | F12: =_xlfn.IFNA(INDEX(Data!$N$2:$N$44, MATCH(1,(F$3=Data!$I$2:$I$44)*($C12=Data!$G$2:$G$44), 0)),"") -> NA | G12: =_xlfn.IFNA(INDEX(Data!$N$2:$N$44, MATCH(1,(G$3=Data!$I$2:$I$44)*($C12=Data!$G$2:$G$44), 0)),"") -> NA | H12: =_xlfn.IFNA(INDEX(Data!$N$2:$N$44, MATCH(1,(H$3=Data!$I$2:$I$44)*($C12=Data!$G$2:$G$44), 0)),"") ->  | I12: =_xlfn.IFNA(INDEX(Data!$N$2:$N$44, MATCH(1,(I$3=Data!$I$2:$I$44)*($C12=Data!$G$2:$G$44), 0)),"") ->  | J12: =_xlfn.IFNA(INDEX(Data!$N$2:$N$44, MATCH(1,(J$3=Data!$I$2:$I$44)*($C12=Data!$G$2:$G$44), 0)),"") -> NA
A13: M2 | C13: 10 | D13: CRPFM-10 | E13: =VLOOKUP(C13,'Dimension (UK)'!$A$2:$C$52,3,FALSE) -> 10 Compliance of climate related expenditure | F13: =_xlfn.IFNA(INDEX(Data!$N$2:$N$44, MATCH(1,(F$3=Data!$I$2:$I$44)*($C13=Data!$G$2:$G$44), 0)),"") -> C | G13: =_xlfn.IFNA(INDEX(Data!$N$2:$N$44, MATCH(1,(G$3=Data!$I$2:$I$44)*($C13=Data!$G$2:$G$44), 0)),"") -> B | H13: =_xlfn.IFNA(INDEX(Data!$N$2:$N$44, MATCH(1,(H$3=Data!$I$2:$I$44)*($C13=Data!$G$2:$G$44), 0)),"") ->  | I13: =_xlfn.IFNA(INDEX(Data!$N$2:$N$44, MATCH(1,(I$3=Data!$I$2:$I$44)*($C13=Data!$G$2:$G$44), 0)),"") ->  | J13: =_xlfn.IFNA(INDEX(Data!$N$2:$N$44, MATCH(1,(J$3=Data!$I$2:$I$44)*($C13=Data!$G$2:$G$44), 0)),"") -> C+
A14: M1 | C14: 11 | D14: CRPFM-11 | E14: =VLOOKUP(C14,'Dimension (UK)'!$A$2:$C$52,3,FALSE) -> 11 Climate responsive fiscal decentralization framework | F14: =_xlfn.IFNA(INDEX(Data!$N$2:$N$44, MATCH(1,(F$3=Data!$I$2:$I$44)*($C14=Data!$G$2:$G$44), 0)),"") -> NA | G14: =_xlfn.IFNA(INDEX(Data!$N$2:$N$44, MATCH(1,(G$3=Data!$I$2:$I$44)*($C14=Data!$G$2:$G$44), 0)),"") -> NA | H14: =_xlfn.IFNA(INDEX(Data!$N$2:$N$44, MATCH(1,(H$3=Data!$I$2:$I$44)*($C14=Data!$G$2:$G$44), 0)),"") -> NA | I14: =_xlfn.IFNA(INDEX(Data!$N$2:$N$44, MATCH(1,(I$3=Data!$I$2:$I$44)*($C14=Data!$G$2:$G$44), 0)),"") ->  | J14: =_xlfn.IFNA(INDEX(Data!$N$2:$N$44, MATCH(1,(J$3=Data!$I$2:$I$44)*($C14=Data!$G$2:$G$44), 0)),"") -> NA
A15: M2 | C15: 12 | D15: CRPFM-12 | E15: =VLOOKUP(C15,'Dimension (UK)'!$A$2:$C$52,3,FALSE) -> 12 Climate related performance information | F15: =_xlfn.IFNA(INDEX(Data!$N$2:$N$44, MATCH(1,(F$3=Data!$I$2:$I$44)*($C15=Data!$G$2:$G$44), 0)),"") -> B | G15: =_xlfn.IFNA(INDEX(Data!$N$2:$N$44, MATCH(1,(G$3=Data!$I$2:$I$44)*($C15=Data!$G$2:$G$44), 0)),"") -> C | H15: =_xlfn.IFNA(INDEX(Data!$N$2:$N$44, MATCH(1,(H$3=Data!$I$2:$I$44)*($C15=Data!$G$2:$G$44), 0)),"") ->  | I15: =_xlfn.IFNA(INDEX(Data!$N$2:$N$44, MATCH(1,(I$3=Data!$I$2:$I$44)*($C15=Data!$G$2:$G$44), 0)),"") ->  | J15: =_xlfn.IFNA(INDEX(Data!$N$2:$N$44, MATCH(1,(J$3=Data!$I$2:$I$44)*($C15=Data!$G$2:$G$44), 0)),"") -> C+
A16: M2 | C16: 13 | D16: CRPFM-13 | E16: =VLOOKUP(C16,'Dimension (UK)'!$A$2:$C$52,3,FALSE) -> 13 Climate related performance evaluation | F16: =_xlfn.IFNA(INDEX(Data!$N$2:$N$44, MATCH(1,(F$3=Data!$I$2:$I$44)*($C16=Data!$G$2:$G$44), 0)),"") -> D | G16: =_xlfn.IFNA(INDEX(Data!$N$2:$N$44, MATCH(1,(G$3=Data!$I$2:$I$44)*($C16=Data!$G$2:$G$44), 0)),"") -> C | H16: =_xlfn.IFNA(INDEX(Data!$N$2:$N$44, MATCH(1,(H$3=Data!$I$2:$I$44)*($C16=Data!$G$2:$G$44), 0)),"") ->  | I16: =_xlfn.IFNA(INDEX(Data!$N$2:$N$44, MATCH(1,(I$3=Data!$I$2:$I$44)*($C16=Data!$G$2:$G$44), 0)),"") ->  | J16: =_xlfn.IFNA(INDEX(Data!$N$2:$N$44, MATCH(1,(J$3=Data!$I$2:$I$44)*($C16=Data!$G$2:$G$44), 0)),"") -> D+
A17: M1 | C17: 14 | D17: CRPFM-14 | E17: =VLOOKUP(C17,'Dimension (UK)'!$A$2:$C$52,3,FALSE) -> 14 Expenditure outturn for climate activities | F17: =_xlfn.IFNA(INDEX(Data!$N$2:$N$44, MATCH(1,(F$3=Data!$I$2:$I$44)*($C17=Data!$G$2:$G$44), 0)),"") -> NA | G17: =_xlfn.IFNA(INDEX(Data!$N$2:$N$44, MATCH(1,(G$3=Data!$I$2:$I$44)*($C17=Data!$G$2:$G$44), 0)),"") -> NA | H17: =_xlfn.IFNA(INDEX(Data!$N$2:$N$44, MATCH(1,(H$3=Data!$I$2:$I$44)*($C17=Data!$G$2:$G$44), 0)),"") ->  | I17: =_xlfn.IFNA(INDEX(Data!$N$2:$N$44, MATCH(1,(I$3=Data!$I$2:$I$44)*($C17=Data!$G$2:$G$44), 0)),"") ->  | J17: =_xlfn.IFNA(INDEX(Data!$N$2:$N$44, MATCH(1,(J$3=Data!$I$2:$I$44)*($C17=Data!$G$2:$G$44), 0)),"") -> NA

Sheet Outcomes
M2: Indicator score ranking by Outcome | Y2: AL | AL2: AL
AL3: 4 | AM3: 0 | AN3: A
AL4: 3.5 | AM4: 0 | AN4: B+
AL5: 3 | AM5: 0 | AN5: B+
AL6: 2.5 | AM6: 0 | AN6: C+
AL7: 2 | AM7: 0 | AN7: C
AL8: 1.5 | AM8: 0 | AN8: D+
AL9: 1 | AM9: 0 | AN9: D
AL10: 0.5 | AM10: 0 | AN10: D*
AL11: 0 | AM11: 0 | AN11: NA
AL12: 0 | AM12: 0 | AN12: NR
C34: Average: | D34: =AVERAGE(H39:H45) -> 1.5 | M34: Average: | N34: =AVERAGE(AVERAGE(R39:R42),AVERAGE(R45:R46)) -> 1.4375
C35: Performance | D35: =IF(D34>3.5,"4. HIGH", IF(D34>=3,"3. SOUND", IF(D34>=2,"2. BASIC", IF(D34>=1,"1. BELOW BASIC", "" )))) -> 1. BELOW BASIC | M35: Performance | N35: =IF(N34>3.5,"4. HIGH", IF(N34>=3,"3. SOUND", IF(N34>=2,"2. BASIC", IF(N34>=1,"1. BELOW BASIC", "" )))) -> 1. BELOW BASIC | U35: Average: | V35: =AVERAGE(Z41:Z46) -> 1.333333333
U36: Performance | V36: =IF(V35>3.5,"4. HIGH", IF(V35>=3,"3. SOUND", IF(V35>=2,"2. BASIC", IF(V35>=1,"1. BELOW BASIC", "" )))) -> 1. BELOW BASIC
B38: ID | C38: Indicator | D38: 4. HIGH | E38: 3. SOUND | F38: 2. BASIC | G38: 1. BELOW BASIC | H38: Score Num | L38: ID | M38: Indicator | N38: 4. HIGH | O38: 3. SOUND | P38: 2. BASIC | Q38: 1. BELOW BASIC | R38: Score Num | T38: ID | U38: Indicator | V38: 4. HIGH | W38: 3. SOUND | X38: 2. BASIC | Y38: 1. BELOW BASIC | Z38: Score Num
B39: 14 | C39: ="CRPFM-"&B39 -> CRPFM-14 | D39: =IF($H39>3.5,$H39,"") ->  | E39: =IF(AND($H39<3.5,$H39>=3),$H39,"") ->  | F39: =IF(AND($H39<3,$H39>=2),$H39,"") ->  | G39: =IF(AND($H39<1.75,$H39>=1),$H39,"") ->  | H39: =VLOOKUP(B39,'Data Input'!$B:$K,10,FALSE) -> 0 | L39: 11 | M39: ="CRPFM-"&L39 -> CRPFM-11 | N39: =IF($R39>3.5,$R39,"") ->  | O39: =IF(AND($R39<3.5,$R39>=3),$R39,"") ->  | P39: =IF(AND($R39<3,$R39>=2),$R39,"") ->  | Q39: =IF(AND($R39<1.75,$R39>=1),$R39,"") ->  | R39: =VLOOKUP(L39,'Data Input'!$B:$K,10,FALSE) -> 0 | T39: 13 | U39: ="CRPFM-"&T39 -> CRPFM-13 | V39: =IF($Z39>3.5,$Z39,"") ->  | W39: =IF(AND($Z39<3.5,$Z39>=3),$Z39,"") ->  | X39: =IF(AND($Z39<3,$Z39>=2),$Z39,"") ->  | Y39: =IF(AND($Z39<1.75,$Z39>=1),$Z39,"") -> 1.5 | Z39: =VLOOKUP(T39,'Data Input'!$B:$K,10,FALSE) -> 1.5
B40: 10 | C40: CRPFM-10 | F40: =IF(AND($H40<3,$H40>=2),$H40,"")+1.5 -> 4 | H40: =VLOOKUP(B40,'Data Input'!$B:$K,10,FALSE) -> 2.5 | L40: 10 | M40: ="CRPFM-"&L40 -> CRPFM-10 | P40: 2.5 | R40: =VLOOKUP(L40,'Data Input'!$B:$K,10,FALSE) -> 2.5 | T40: 12 | U40: CRPFM-12 | X40: 2.5 | Z40: =VLOOKUP(T40,'Data Input'!$B:$K,10,FALSE) -> 2.5
B41: 7 | C41: CRPFM-7 | G41: 1.5 | H41: =VLOOKUP(B41,'Data Input'!$B:$K,10,FALSE) -> 1.5 | L41: 9 | M41: CRPFM-9 | R41: =VLOOKUP(L41,'Data Input'!$B:$K,10,FALSE) -> 0 | T41: 11 | U41: CRPFM-11 | Z41: =VLOOKUP(T41,'Data Input'!$B:$K,10,FALSE) -> 0
B42: 6 | C42: ="CRPFM-"&B42 -> CRPFM-6 | G42: 1 | H42: =VLOOKUP(B42,'Data Input'!$B:$K,10,FALSE) -> 1 | L42: 5 | M42: CRPFM-5 | Q42: 1 | R42: =VLOOKUP(L42,'Data Input'!$B:$K,10,FALSE) -> 1 | T42: 10 | U42: CRPFM-10 | X42: 2.5 | Z42: =VLOOKUP(T42,'Data Input'!$B:$K,10,FALSE) -> 2.5
B43: 5 | C43: CRPFM-5 | G43: 1 | H43: =VLOOKUP(B43,'Data Input'!$B:$K,10,FALSE) -> 1 | L43: 4 | M43: ="CRPFM-"&L43 -> CRPFM-4 | Q43: 1.5 | R43: =VLOOKUP(L43,'Data Input'!$B:$K,10,FALSE) -> 1.5 | T43: 9 | U43: CRPFM-9 | Z43: =VLOOKUP(T43,'Data Input'!$B:$K,10,FALSE) -> 0
B44: 1 | C44: ="CRPFM-"&B44 -> CRPFM-1 | E44: 3 | H44: =VLOOKUP(B44,'Data Input'!$B:$K,10,FALSE) -> 3 | L44: 3 | M44: CRPFM-3 | Q44: 1 | R44: =VLOOKUP(L44,'Data Input'!$B:$K,10,FALSE) -> 1 | T44: 8 | U44: CRPFM-8 | Y44: 1.5 | Z44: =VLOOKUP(T44,'Data Input'!$B:$K,10,FALSE) -> 1.5
L45: 2 | M45: CRPFM-2 | Q45: 1 | R45: =VLOOKUP(L45,'Data Input'!$B:$K,10,FALSE) -> 1 | T45: 5 | U45: CRPFM-5 | Y45: 1 | Z45: =VLOOKUP(T45,'Data Input'!$B:$K,10,FALSE) -> 1
L46: 1 | M46: CRPFM-1 | O46: 3 | R46: =VLOOKUP(L46,'Data Input'!$B:$K,10,FALSE) -> 3 | T46: 1 | U46: CRPFM-1 | W46: 3 | Z46: =VLOOKUP(T46,'Data Input'!$B:$K,10,FALSE) -> 3

Sheet Profile (hidden)
A1: Years | C1: Score | D1: Comp | E1: Meta
A2: 2000 | C2: A | D2: Yes | E2: Team leader
A3: 2001 | C3: B | D3: No | E3: Country
A4: 2002 | C4: C | E4: Year of assessment
A5: 2003 | C5: D
A6: 2004 | C6: D*
A7: 2005 | C7: NU
A8: 2006 | C8: NA
A9: 2007
A10: 2008
A11: 2009
A12: 2010
A13: 2011
A14: 2012
A15: 2013
A16: 2014
A17: 2015
A18: 2016
A19: 2017
A20: 2018
A21: 2019
A22: 2020
A23: 2021
A24: 2022
A25: 2023
A26: 2024
A27: 2025
A28: 2026
A29: 2027
A30: 2028
A31: 2029
A32: 2030
A33: 2031
A34: 2032
A35: 2033
A36: 2034
A37: NA
A41: Years | C41: Score 2011 FMK | D41: Score 2016 FMK | E41: Comp | F41: Names
A42: 2000 | C42: A | D42: A | E42: Yes | F42: Pillar
A43: 2001 | C43: B | D43: B | E43: No | F43: Indicator
A44: 2002 | C44: C | D44: C | F44: Dimensions
A45: 2003 | C45: D | D45: D | F45: 1. Overall Budget Discipline
A46: 2004 | C46: NU | D46: D* | F46: 2. Strategic allocation of resources
A47: 2005 | C47: NA | D47: NU | F47: 3. Effective service delivery
A48: 2006 | C48: NR | D48: NA | F48: Team Leader
A49: 2007 | F49: Country
A50: 2008 | F50: Overall Rating
A51: 2009 | F51: Current assessment
A52: 2010 | F52: Previous assessment
A53: 2011 | F53: Score by pillar / indicator
A54: 2012 | F54: Indicators / Dimensions
A55: 2013 | F55: Number of dimensions per score
A56: 2014 | F56: Year
A57: 2015 | F57: PEFA scores by indicators
A58: 2016 | F58: PEFA scores by dimension
A59: 2017 | F59: Evolution of scores (2016 Table)
A60: 2018 | F60: Scores - Year
A61: 2019 | F61: 2011 Fmk
A62: 2020 | F62: Justification of PEFA scores
A63: 2021 | F63: 2016 Fmk
A64: 2022 | F64: Scores evolution for indicators
A65: 2023 | F65: Scores evolution for dimensions
A66: 2024 | F66: Score Evolution
A67: 2025 | F67: Scores by pillar
A68: 2026 | F68: 1. Low
A69: 2027 | F69: 2. Basic
A70: 2028 | F70: 3. Good
A71: 2029 | F71: 4. Very good
A72: 2030 | F72: Strength
A73: 2031 | F73: Weakness
A74: 2032 | F74: Average
A75: 2033 | F75: Rationale for the assessment
A76: 2034 | F76: Ranking of indicators according to their score
A77: NA | F77: Cross-tabulation of PEFA indicators and budget results
F78: Numbers
F79: Change in scores compared with the previous assessment (2016 framework)
F80: Change in scores compared with the previous assessment (2011 framework)
F81: Global score
F82: PEFA assessment - 2016 Framework
F83: PEFA assessment - 2011 Framework
F84: Number of indicators/dimensions by scores (2016 fmk)
F85: Number of indicators by scores (2016 fmk)
F86: Number of dimensions by scores (2016 fmk)
F87: Evolution of the number of indicators/dimensions by scores (2016 fmk)
F88: Evolution of the number of indicators by scores (2016 fmk)
F89: Evolution of the number of dimensions by scores (2016 fmk)
F90: Evolution of the number of indicators/dimensions by scores (2011 fmk)
F91: Evolution of the number of indicators by scores (2011 fmk)
F92: Evolution of the number of dimensions by scores (2011 fmk)
F93: Justification of the evolution
F94: Sheets passwords | Z94: Sheets passwords
F95: Data Input : Sec!Pefa2018 | Z95: User's instructions:Indic
F96: ES-Scores: Sec!Pefa2018 | Z96: Data Input:Sec!Pefa2018
F97: ES-Synth table: Sec!Pefa2018 | Z97: Data:Indic
F98: Outcomes: Sec!Pefa2018 | Z98: ES-Indic:Indic
F99: ES-Indic: Indic | Z99: ES-Scores:Sec!Pefa2018
F100: General password : Indic | Z100: ES-Synth table:Sec!Pefa2018
F101: Hidden tables: | Z101: Outcomes:Sec!Pefa2018
F102: Profile | Z102: colors:Indic
Z103: Dimension (FR):Indic
Z104: Dimension (UK):Indic
Z105: Dimension Outcomes:Indic
Z106: Scoring:Indic
Z107: Methodology:Indic
Z108: DimOutput:Indic
Z109: DimIndic:Indic
Z110: DimPillar:Indic
Z111: General password:Indic

Sheet colors (hidden)
A1: 1 | B1: ELEMENTAIRE | C1: Sec!Pefa2018 | E1: Sheets with Charts with numeric data labels data | G1: Sheets with tables
A2: 2 | B2: BASIQUE | E2: ES-Indic | G2: Sheet Name | H2: Numeric Data Labels? | I2: Start row | J2: Start Column | K2: Column used to find last row
A3: 3 | B3: 3. Suffisant | G3: ES-Synth table | H3: N | I3: 3 | J3: 3 | K3: 3
A4: 4 | B4: Avancé
F22: Column1

Sheet Dimension (FR) (hidden)
A1: ID | B1: ID-Dim3 | C1: Dimension Niv 3 | D1: ID-Dim2 | E1: Dimension Niv 2 | F1: ID-Dim1 | G1: Dimension Niv 1
A2: 1.1 | B2: 1.1 | C2: 1.1. Alignement du budget sur les stratégies de lutte contre le changement climatique | D2: 1 | E2: 1 - Alignement du budget sur les stratégies climat | F2: =VLOOKUP($A2,DimPillar!$A$2:$C$30,2,FALSE) -> IV | G2: Stratégie budgétaire et budgétisation fondées sur des politiques
A3: 2.1 | B3: 2.1 | C3: 2.1. Suivi des dépenses liées au climat | D3: 2 | E3: 2 - Suivi des dépenses liées au climat | F3: =VLOOKUP($A3,DimPillar!$A$2:$C$30,2,FALSE) -> II | G3: Transparence
A4: 3.1 | B4: 3.1 | C4: 3.1. Circulaire budgétaire | D4: 3 | E4: 3 - Circulaire budgétaire sensible au climat | F4: =VLOOKUP($A4,DimPillar!$A$2:$C$30,2,FALSE) -> IV | G4: Stratégie budgétaire et budgétisation fondées sur les politiques publiques
A5: 4.1 | B5: 4.1 | C5: 4.1. Contrôle législatif des budgets | D5: 4 | E5: 4 - Examen par le pouvoir législatif | F5: =VLOOKUP($A5,DimPillar!$A$2:$C$30,2,FALSE) -> IV | G5: Stratégie budgétaire et budgétisation fondées sur des politiques
A6: 4.2 | B6: 4.2 | C6: 4.2. Examen législatif des rapports d'audit et d'évaluation | D6: 4 | E6: 4 - Examen par le pouvoir législatif | F6: =VLOOKUP($A6,DimPillar!$A$2:$C$30,2,FALSE) -> VII | G6: Contrôle et audit externes
A7: 5.1 | B7: 5.1 | C7: 5.1. Dispositions relatives au climat dans le cadre réglementaire de la gestion des investissements publics | D7: 5 | E7: 5 - Gestion sensible au climat des investissements publics | F7: =VLOOKUP($A7,DimPillar!$A$2:$C$30,2,FALSE) -> III | G7: Gestion des actifs et des passifs
A8: 5.2 | B8: 5.2 | C8: 5.2. Sélection des projets liés au climat | D8: 5 | E8: 5 - Gestion sensible au climat des investissements publics | F8: =VLOOKUP($A8,DimPillar!$A$2:$C$30,2,FALSE) -> III | G8: Gestion des actifs et des passifs
A9: 5.3 | B9: 5.3 | C9: 5.3. Dispositions relatives au climat pour l'évaluation des projets | D9: 5 | E9: 5 - Gestion sensible au climat des investissements publics | F9: =VLOOKUP($A9,DimPillar!$A$2:$C$30,2,FALSE) -> III | G9: Gestion des actifs et des passifs
A10: 5.4 | B10: 5.4 | C10: 5.4. Rapports des entités chargées de la mise en œuvre | D10: 5 | E10: 5 - Gestion sensible au climat des investissements publics | F10: =VLOOKUP($A10,DimPillar!$A$2:$C$30,2,FALSE) -> III | G10: Gestion des actifs et des passifs
A11: 6.1 | B11: 6.1 | C11: 6.1. Gestion des actifs non financiers adaptée au climat | D11: 6 | E11: 6 - Gestion sensible au climat des actifs non financiers | F11: =VLOOKUP($A11,DimPillar!$A$2:$C$30,2,FALSE) -> III | G11: Gestion des actifs et des passifs
A12: 7.1 | B12: 7.1 | C12: 7.1. Risques fiscaux liés au climat | D12: 7 | E12: 7 - Passifs liés au climat | F12: =VLOOKUP($A12,DimPillar!$A$2:$C$30,2,FALSE) -> III | G12: Gestion des actifs et des passifs
A13: 7.2 | B13: 7.2 | C13: 7.2. Dette et garanties liées au climat | D13: 7 | E13: 7 - Passifs liés au climat | F13: =VLOOKUP($A13,DimPillar!$A$2:$C$30,2,FALSE) -> III | G13: Gestion des actifs et des passifs
A14: 8.1 | B14: 8.1 | C14: 8.1. Cadre pour des marchés publics sensibles au climat | D14: 8 | E14: 8 - Marchés publics sensibles au climat | F14: =VLOOKUP($A14,DimPillar!$A$2:$C$30,2,FALSE) -> V | G14: Prévisibilité et contrôle de l'exécution du budget
A15: 8.2 | B15: 8.2 | C15: 8.2. Opérations de passation de marchés publics sensibles au climat dispositifs de décentralisation | D15: 8 | E15: 8 - Marchés publics sensibles au climat | F15: =VLOOKUP($A15,DimPillar!$A$2:$C$30,2,FALSE) -> V | G15: Prévisibilité et contrôle de l'exécution du budget
A16: 8.3 | B16: 8.3 | C16: 8.3. Suivi des marchés publics sensibles au climat | D16: 8 | E16: 8 - Marchés publics sensibles au climat | F16: =VLOOKUP($A16,DimPillar!$A$2:$C$30,2,FALSE) -> V | G16: Prévisibilité et contrôle de l'exécution du budget
A17: 8.4 | B17: 8.4 | C17: 8.4. Rapport sur les marchés publics sensibles au climat | D17: 8 | E17: 8 - Marchés publics sensibles au climat | F17: =VLOOKUP($A17,DimPillar!$A$2:$C$30,2,FALSE) -> V | G17: Prévisibilité et contrôle de l'exécution du budget
A18: 9.1 | B18: 9.1 | C18: 9.1. Gestion, audit et enquête sur les taxes liées au climat | D18: 9 | E18: 9 - Gestion des recettes de la fiscalité climat | F18: =VLOOKUP($A18,DimPillar!$A$2:$C$30,2,FALSE) -> V | G18: Prévisibilité et contrôle de l'exécution du budget
A19: 9.2 | B19: 9.2 | C19: 9.2. Arriérés de taxes liées au climat | D19: 9 | E19: 9 - Gestion des recettes de la fiscalité climat | F19: =VLOOKUP($A19,DimPillar!$A$2:$C$30,2,FALSE) -> V | G19: Prévisibilité et contrôle de l'exécution du budget
A20: 10.1 | B20: 10.1 | C20: 10.1. Efficacité du système de contrôle | D20: 10 | E20: 10 - Conformité des dépenses liées au climat | F20: =VLOOKUP($A20,DimPillar!$A$2:$C$30,2,FALSE) -> V | G20: Prévisibilité et contrôle de l'exécution du budget
A21: 10.2 | B21: 10.2 | C21: 10.2. Audit de la conformité des transactions | D21: 10 | E21: 10 - Conformité des dépenses liées au climat | F21: =VLOOKUP($A21,DimPillar!$A$2:$C$30,2,FALSE) -> V | G21: Prévisibilité et contrôle de l'exécution du budget
A22: 11.1 | B22: 11.1 | C22: 11.1. Fiscale adaptés au climat | D22: 11 | E22: 11 - Cadre de décentralisation budgétaire sensible au climat | F22: =VLOOKUP($A22,DimPillar!$A$2:$C$30,2,FALSE) -> II | G22: Transparence
A23: 11.2 | B23: 11.2 | C23: 11.2. Transferts fiscaux sensibles au climat | D23: 11 | E23: 11 - Cadre de décentralisation budgétaire sensible au climat | F23: =VLOOKUP($A23,DimPillar!$A$2:$C$30,2,FALSE) -> II | G23: Transparence
A24: 11.3 | B24: 11.3 | C24: 11.3. Dispositifs de GFP sensibles au climat appliqués par les gouvernements infranationaux | D24: 11 | E24: 11 - Cadre de décentralisation budgétaire sensible au climat | F24: =VLOOKUP($A24,DimPillar!$A$2:$C$30,2,FALSE) -> II | G24: Transparence
A25: 12.1 | B25: 12.1 | C25: 12.1. Informations relatives au climat dans les plans de performance | D25: 12 | E25: 12 - Informations sur les performances liées au climat | F25: =VLOOKUP($A25,DimPillar!$A$2:$C$30,2,FALSE) -> II | G25: Transparence
A26: 12.2 | B26: 12.2 | C26: 12.2. Informations relatives au climat dans les rapports de performance | D26: 12 | E26: 12 - Informations sur les performances liées au climat | F26: =VLOOKUP($A26,DimPillar!$A$2:$C$30,2,FALSE) -> II | G26: Transparence
A27: 13.1 | B27: 13.1 | C27: 13.1. Évaluation des dépenses liées au climat | D27: 13 | E27: 13 - Evaluation liée au climat | F27: =VLOOKUP($A27,DimPillar!$A$2:$C$30,2,FALSE) -> II | G27: Transparence
A28: 13.2 | B28: 13.2 | C28: 13.2. Évaluation des taxes liées au climat | D28: 13 | E28: 13 - Evaluation liée au climat | F28: =VLOOKUP($A28,DimPillar!$A$2:$C$30,2,FALSE) -> VII | G28: Contrôle et audit externes
A29: 14.1 | B29: 14.1 | C29: 14.1. Résultat global des dépenses liées au climat | D29: 14 | E29: 14 - Résultat des dépenses pour les actions climatiques | F29: =VLOOKUP($A29,DimPillar!$A$2:$C$30,2,FALSE) -> I | G29: Fiabilité du budget
A30: 14.2 | B30: 14.2 | C30: 14.2. Composition des dépenses liées au climat - résultat | D30: 14 | E30: 14 - Résultat des dépenses pour les actions climatiques | F30: =VLOOKUP($A30,DimPillar!$A$2:$C$30,2,FALSE) -> I | G30: Fiabilité du budget
A31: 1 | B31: 1 | C31: 1 - Alignement du budget sur les stratégies climat
A32: 2 | B32: 2 | C32: 2 - Suivi des dépenses liées au climat
A33: 3 | B33: 3 | C33: 3 - Circulaire budgétaire sensible au climat
A34: 4 | B34: 4 | C34: 4 - Examen par le pouvoir législatif
A35: 5 | B35: 5 | C35: 5 - Gestion sensible au climat des investissements publics
A36: 6 | B36: 6 | C36: 6 - Gestion sensible au climat des actifs non financiers
A37: 7 | B37: 7 | C37: 7 - Passifs liés au climat
A38: 8 | B38: 8 | C38: 8 - Marchés publics sensibles au climat
A39: 9 | B39: 9 | C39: 9 - Gestion des recettes de la fiscalité climat
A40: 10 | B40: 10 | C40: 10 - Conformité des dépenses liées au climat
A41: 11 | B41: 11 | C41: 11 - Cadre de décentralisation budgétaire sensible au climat
A42: 12 | B42: 12 | C42: 12 - Informations sur les performances liées au climat
A43: 13 | B43: 13 | C43: 13 - Evaluation liée au climat
A44: 14 | B44: 14 | C44: 14 - Résultat des dépenses pour les actions climatiques

Sheet Dimension (UK) (hidden)
A1: ID | B1: ID-Dim3 | C1: Dimension Niv 3 | D1: ID-Dim2 | E1: Dimension Niv 2 | F1: ID-Dim1 | G1: Dimension Niv 1
A2: 1.1 | B2: 1.1 | C2: 1.1 Budget alignment with climate change strategies | D2: 1 | E2: =VLOOKUP(D2,DimIndic!$A$2:$B$15,2,FALSE) -> 1 Budget alignment with climate change strategies | F2: =VLOOKUP($A2,DimPillar!$A$2:$C$30,2,FALSE) -> IV | G2: =VLOOKUP($A2,DimPillar!$A$2:$C$30,3,FALSE) -> Policy-based fiscal strategy and budgeting
A3: 2.1 | B3: 2.1 | C3: 2.1 Tracking climate related expenditure | D3: 2 | E3: =VLOOKUP(D3,DimIndic!$A$2:$B$15,2,FALSE) -> 2 Tracking climate related expenditure | F3: =VLOOKUP($A3,DimPillar!$A$2:$C$30,2,FALSE) -> II | G3: =VLOOKUP($A3,DimPillar!$A$2:$C$30,3,FALSE) -> Transparency
A4: 3.1 | B4: 3.1 | C4: 3.1 Budget circular | D4: 3 | E4: =VLOOKUP(D4,DimIndic!$A$2:$B$15,2,FALSE) -> 3 Climate responsive budget circular | F4: =VLOOKUP($A4,DimPillar!$A$2:$C$30,2,FALSE) -> IV | G4: =VLOOKUP($A4,DimPillar!$A$2:$C$30,3,FALSE) -> Policy-based fiscal strategy and budgeting
A5: 4.1 | B5: 4.1 | C5: 4.1 Legislative scrutiny of budget | D5: 4 | E5: =VLOOKUP(D5,DimIndic!$A$2:$B$15,2,FALSE) -> 4 Legislative scrutiny | F5: =VLOOKUP($A5,DimPillar!$A$2:$C$30,2,FALSE) -> IV | G5: =VLOOKUP($A5,DimPillar!$A$2:$C$30,3,FALSE) -> Policy-based fiscal strategy and budgeting
A6: 4.2 | B6: 4.2 | C6: 4.2 Legislative scrutiny of audit and evaluation reports | D6: 4 | E6: =VLOOKUP(D6,DimIndic!$A$2:$B$15,2,FALSE) -> 4 Legislative scrutiny | F6: =VLOOKUP($A6,DimPillar!$A$2:$C$30,2,FALSE) -> VII | G6: =VLOOKUP($A6,DimPillar!$A$2:$C$30,3,FALSE) -> External scrutiny and audit
A7: 5.1 | B7: 5.1 | C7: 5.1 Climate related provisions in regulatory framework for public investment management | D7: 5 | E7: =VLOOKUP(D7,DimIndic!$A$2:$B$15,2,FALSE) -> 5 Climate responsive public investment management | F7: =VLOOKUP($A7,DimPillar!$A$2:$C$30,2,FALSE) -> III | G7: =VLOOKUP($A7,DimPillar!$A$2:$C$30,3,FALSE) -> Management of assets and liabilities
A8: 5.2 | B8: 5.2 | C8: 5.2 Climate related project selection | D8: 5 | E8: =VLOOKUP(D8,DimIndic!$A$2:$B$15,2,FALSE) -> 5 Climate responsive public investment management | F8: =VLOOKUP($A8,DimPillar!$A$2:$C$30,2,FALSE) -> III | G8: =VLOOKUP($A8,DimPillar!$A$2:$C$30,3,FALSE) -> Management of assets and liabilities
A9: 5.3 | B9: 5.3 | C9: 5.3 Climate related provisions for project appraisal | D9: 5 | E9: =VLOOKUP(D9,DimIndic!$A$2:$B$15,2,FALSE) -> 5 Climate responsive public investment management | F9: =VLOOKUP($A9,DimPillar!$A$2:$C$30,2,FALSE) -> III | G9: =VLOOKUP($A9,DimPillar!$A$2:$C$30,3,FALSE) -> Management of assets and liabilities
A10: 5.4 | B10: 5.4 | C10: 5.4 Reporting from entities in charge of implementation | D10: 5 | E10: =VLOOKUP(D10,DimIndic!$A$2:$B$15,2,FALSE) -> 5 Climate responsive public investment management | F10: =VLOOKUP($A10,DimPillar!$A$2:$C$30,2,FALSE) -> III | G10: =VLOOKUP($A10,DimPillar!$A$2:$C$30,3,FALSE) -> Management of assets and liabilities
A11: 6.1 | B11: 6.1 | C11: 6.1 Climate responsive non-financial assets management | D11: 6 | E11: =VLOOKUP(D11,DimIndic!$A$2:$B$15,2,FALSE) -> 6 Climate responsive asset management | F11: =VLOOKUP($A11,DimPillar!$A$2:$C$30,2,FALSE) -> III | G11: =VLOOKUP($A11,DimPillar!$A$2:$C$30,3,FALSE) -> Management of assets and liabilities
A12: 7.1 | B12: 7.1 | C12: 7.1 Climate related fiscal risks | D12: 7 | E12: =VLOOKUP(D12,DimIndic!$A$2:$B$15,2,FALSE) -> 7 Climate related liabilities | F12: =VLOOKUP($A12,DimPillar!$A$2:$C$30,2,FALSE) -> III | G12: =VLOOKUP($A12,DimPillar!$A$2:$C$30,3,FALSE) -> Management of assets and liabilities
A13: 7.2 | B13: 7.2 | C13: 7.2 Climate related debt and guarantees | D13: 7 | E13: =VLOOKUP(D13,DimIndic!$A$2:$B$15,2,FALSE) -> 7 Climate related liabilities | F13: =VLOOKUP($A13,DimPillar!$A$2:$C$30,2,FALSE) -> III | G13: =VLOOKUP($A13,DimPillar!$A$2:$C$30,3,FALSE) -> Management of assets and liabilities
A14: 8.1 | B14: 8.1 | C14: 8.1 Climate responsive procurement framework | D14: 8 | E14: =VLOOKUP(D14,DimIndic!$A$2:$B$15,2,FALSE) -> 8 Climate responsive procurement | F14: =VLOOKUP($A14,DimPillar!$A$2:$C$30,2,FALSE) -> V | G14: =VLOOKUP($A14,DimPillar!$A$2:$C$30,3,FALSE) -> Predictability and control in budget execution
A15: 8.2 | B15: 8.2 | C15: 8.2 Climate responsive public procurement operations | D15: 8 | E15: =VLOOKUP(D15,DimIndic!$A$2:$B$15,2,FALSE) -> 8 Climate responsive procurement | F15: =VLOOKUP($A15,DimPillar!$A$2:$C$30,2,FALSE) -> V | G15: =VLOOKUP($A15,DimPillar!$A$2:$C$30,3,FALSE) -> Predictability and control in budget execution
A16: 8.3 | B16: 8.3 | C16: 8.3 Climate responsive public procurement monitoring | D16: 8 | E16: =VLOOKUP(D16,DimIndic!$A$2:$B$15,2,FALSE) -> 8 Climate responsive procurement | F16: =VLOOKUP($A16,DimPillar!$A$2:$C$30,2,FALSE) -> V | G16: =VLOOKUP($A16,DimPillar!$A$2:$C$30,3,FALSE) -> Predictability and control in budget execution
A17: 8.4 | B17: 8.4 | C17: 8.4 Climate responsive public procurement reporting | D17: 8 | E17: =VLOOKUP(D17,DimIndic!$A$2:$B$15,2,FALSE) -> 8 Climate responsive procurement | F17: =VLOOKUP($A17,DimPillar!$A$2:$C$30,2,FALSE) -> V | G17: =VLOOKUP($A17,DimPillar!$A$2:$C$30,3,FALSE) -> Predictability and control in budget execution
A18: 9.1 | B18: 9.1 | C18: 9.1 Climate related tax management, audit and investigation | D18: 9 | E18: =VLOOKUP(D18,DimIndic!$A$2:$B$15,2,FALSE) -> 9 Climate responsive revenue administration | F18: =VLOOKUP($A18,DimPillar!$A$2:$C$30,2,FALSE) -> V | G18: =VLOOKUP($A18,DimPillar!$A$2:$C$30,3,FALSE) -> Predictability and control in budget execution
A19: 9.2 | B19: 9.2 | C19: 9.2 Climate related tax arrears | D19: 9 | E19: =VLOOKUP(D19,DimIndic!$A$2:$B$15,2,FALSE) -> 9 Climate responsive revenue administration | F19: =VLOOKUP($A19,DimPillar!$A$2:$C$30,2,FALSE) -> V | G19: =VLOOKUP($A19,DimPillar!$A$2:$C$30,3,FALSE) -> Predictability and control in budget execution
A20: 10.1 | B20: 10.1 | C20: 10.1 Effectiveness of the systems of controls | D20: 10 | E20: =VLOOKUP(D20,DimIndic!$A$2:$B$15,2,FALSE) -> 10 Compliance of climate related expenditure | F20: =VLOOKUP($A20,DimPillar!$A$2:$C$30,2,FALSE) -> V | G20: =VLOOKUP($A20,DimPillar!$A$2:$C$30,3,FALSE) -> Predictability and control in budget execution
A21: 10.2 | B21: 10.2 | C21: 10.2 Compliance of transactions | D21: 10 | E21: =VLOOKUP(D21,DimIndic!$A$2:$B$15,2,FALSE) -> 10 Compliance of climate related expenditure | F21: =VLOOKUP($A21,DimPillar!$A$2:$C$30,2,FALSE) -> V | G21: =VLOOKUP($A21,DimPillar!$A$2:$C$30,3,FALSE) -> Predictability and control in budget execution
A22: 11.1 | B22: 11.1 | C22: 11.1 Climate responsive fiscal decentralization arrangements | D22: 11 | E22: =VLOOKUP(D22,DimIndic!$A$2:$B$15,2,FALSE) -> 11 Climate responsive fiscal decentralization framework | F22: =VLOOKUP($A22,DimPillar!$A$2:$C$30,2,FALSE) -> II | G22: =VLOOKUP($A22,DimPillar!$A$2:$C$30,3,FALSE) -> Transparency
A23: 11.2 | B23: 11.2 | C23: 11.2 Climate responsive fiscal transfers | D23: 11 | E23: =VLOOKUP(D23,DimIndic!$A$2:$B$15,2,FALSE) -> 11 Climate responsive fiscal decentralization framework | F23: =VLOOKUP($A23,DimPillar!$A$2:$C$30,2,FALSE) -> II | G23: =VLOOKUP($A23,DimPillar!$A$2:$C$30,3,FALSE) -> Transparency
A24: 11.3 | B24: 11.3 | C24: 11.3 Climate responsive PFM arrangements applied by subnational governments | D24: 11 | E24: =VLOOKUP(D24,DimIndic!$A$2:$B$15,2,FALSE) -> 11 Climate responsive fiscal decentralization framework | F24: =VLOOKUP($A24,DimPillar!$A$2:$C$30,2,FALSE) -> II | G24: =VLOOKUP($A24,DimPillar!$A$2:$C$30,3,FALSE) -> Transparency
A25: 12.1 | B25: 12.1 | C25: 12.1 Climate related information in performance plans | D25: 12 | E25: =VLOOKUP(D25,DimIndic!$A$2:$B$15,2,FALSE) -> 12 Climate related performance information | F25: =VLOOKUP($A25,DimPillar!$A$2:$C$30,2,FALSE) -> II | G25: =VLOOKUP($A25,DimPillar!$A$2:$C$30,3,FALSE) -> Transparency
A26: 12.2 | B26: 12.2 | C26: 12.2 Climate related information in performance reports | D26: 12 | E26: =VLOOKUP(D26,DimIndic!$A$2:$B$15,2,FALSE) -> 12 Climate related performance information | F26: =VLOOKUP($A26,DimPillar!$A$2:$C$30,2,FALSE) -> II | G26: =VLOOKUP($A26,DimPillar!$A$2:$C$30,3,FALSE) -> Transparency
A27: 13.1 | B27: 13.1 | C27: 13.1 Climate related evaluation of expenditure | D27: 13 | E27: =VLOOKUP(D27,DimIndic!$A$2:$B$15,2,FALSE) -> 13 Climate related performance evaluation | F27: =VLOOKUP($A27,DimPillar!$A$2:$C$30,2,FALSE) -> II | G27: =VLOOKUP($A27,DimPillar!$A$2:$C$30,3,FALSE) -> Transparency
A28: 13.2 | B28: 13.2 | C28: 13.2 Climate related evaluation of taxes | D28: 13 | E28: =VLOOKUP(D28,DimIndic!$A$2:$B$15,2,FALSE) -> 13 Climate related performance evaluation | F28: =VLOOKUP($A28,DimPillar!$A$2:$C$30,2,FALSE) -> VII | G28: =VLOOKUP($A28,DimPillar!$A$2:$C$30,3,FALSE) -> External scrutiny and audit
A29: 14.1 | B29: 14.1 | C29: 14.1 Aggregate climate related expenditure outturn | D29: 14 | E29: =VLOOKUP(D29,DimIndic!$A$2:$B$15,2,FALSE) -> 14 Expenditure outturn for climate activities | F29: =VLOOKUP($A29,DimPillar!$A$2:$C$30,2,FALSE) -> I | G29: =VLOOKUP($A29,DimPillar!$A$2:$C$30,3,FALSE) -> Budget reliability
A30: 14.2 | B30: 14.2 | C30: 14.2 Climate related expenditure composition outturn | D30: 14 | E30: =VLOOKUP(D30,DimIndic!$A$2:$B$15,2,FALSE) -> 14 Expenditure outturn for climate activities | F30: =VLOOKUP($A30,DimPillar!$A$2:$C$30,2,FALSE) -> I | G30: =VLOOKUP($A30,DimPillar!$A$2:$C$30,3,FALSE) -> Budget reliability
A31: 1 | B31: 1 | C31: 1 Budget alignment with climate change strategies
A32: 2 | B32: 2 | C32: 2 Tracking climate related expenditure
A33: 3 | B33: 3 | C33: 3 Climate responsive budget circular
A34: 4 | B34: 4 | C34: 4 Legislative scrutiny
A35: 5 | B35: 5 | C35: 5 Climate responsive public investment management
A36: 6 | B36: 6 | C36: 6 Climate responsive asset management
A37: 7 | B37: 7 | C37: 7 Climate related liabilities
A38: 8 | B38: 8 | C38: 8 Climate responsive procurement
A39: 9 | B39: 9 | C39: 9 Climate responsive revenue administration
A40: 10 | B40: 10 | C40: 10 Compliance of climate related expenditure
A41: 11 | B41: 11 | C41: 11 Climate responsive fiscal decentralization framework
A42: 12 | B42: 12 | C42: 12 Climate related performance information
A43: 13 | B43: 13 | C43: 13 Climate related performance evaluation
A44: 14 | B44: 14 | C44: 14 Expenditure outturn for climate activities

Sheet Dimension Outcomes (hidden)
A1: Outcome | B1: PEFA Climate Indicator | C1: Component | D1: Column1 | E1: Column2
A2: Aggregate fiscal discipline | B2: CRPFM–10 Compliance of climate related expenditure | C2: 10.2 | D2: =VLOOKUP(Table1_2[[#This Row],[Component]],'Data Input'!$B:$N,12,FALSE) ->  | E2: =VLOOKUP(Table1_2[[#This Row],[Component]],'Data Input'!$B:$N,10,FALSE) -> 3
A3: Aggregate fiscal discipline | B3: CRPFM–10 Compliance of climate related expenditure | C3: 10.1 | D3: =VLOOKUP(Table1_2[[#This Row],[Component]],'Data Input'!$B:$N,12,FALSE) ->  | E3: =VLOOKUP(Table1_2[[#This Row],[Component]],'Data Input'!$B:$N,10,FALSE) -> 2
A4: Aggregate fiscal discipline | B4: CRPFM–1 Budget alignment with climate change strategies | C4: 1.1 | D4: =VLOOKUP(Table1_2[[#This Row],[Component]],'Data Input'!$B:$N,12,FALSE) ->  | E4: =VLOOKUP(Table1_2[[#This Row],[Component]],'Data Input'!$B:$N,10,FALSE) -> 3
A5: Efficient service delivery | B5: CRPFM-9 Climate responsive revenue administration | C5: 9.2 | D5: =VLOOKUP(Table1_2[[#This Row],[Component]],'Data Input'!$B:$N,12,FALSE) ->  | E5: =VLOOKUP(Table1_2[[#This Row],[Component]],'Data Input'!$B:$N,10,FALSE) -> 0
A6: Efficient service delivery | B6: CRPFM-13 Climate related performance evaluation | C6: 13.1 | D6: =VLOOKUP(Table1_2[[#This Row],[Component]],'Data Input'!$B:$N,12,FALSE) ->  | E6: =VLOOKUP(Table1_2[[#This Row],[Component]],'Data Input'!$B:$N,10,FALSE) -> 1
A7: Efficient service delivery | B7: CRPFM–10 Compliance of climate related expenditure | C7: 10.1 | D7: =VLOOKUP(Table1_2[[#This Row],[Component]],'Data Input'!$B:$N,12,FALSE) ->  | E7: =VLOOKUP(Table1_2[[#This Row],[Component]],'Data Input'!$B:$N,10,FALSE) -> 2
A8: Efficient service delivery | B8: CRPFM–5 Climate responsive public investment management | C8: 5.4 | D8: =VLOOKUP(Table1_2[[#This Row],[Component]],'Data Input'!$B:$N,12,FALSE) ->  | E8: =VLOOKUP(Table1_2[[#This Row],[Component]],'Data Input'!$B:$N,10,FALSE) -> 1
A9: Efficient service delivery | B9: CRPFM–8 Climate responsive procurement | C9: 8.3 | D9: =VLOOKUP(Table1_2[[#This Row],[Component]],'Data Input'!$B:$N,12,FALSE) ->  | E9: =VLOOKUP(Table1_2[[#This Row],[Component]],'Data Input'!$B:$N,10,FALSE) -> 2
A10: Efficient service delivery | B10: CRPFM–8 Climate responsive procurement | C10: 8.4 | D10: =VLOOKUP(Table1_2[[#This Row],[Component]],'Data Input'!$B:$N,12,FALSE) ->  | E10: =VLOOKUP(Table1_2[[#This Row],[Component]],'Data Input'!$B:$N,10,FALSE) -> 1
A11: Efficient service delivery | B11: CRPFM–8 Climate responsive procurement | C11: 8.2 | D11: =VLOOKUP(Table1_2[[#This Row],[Component]],'Data Input'!$B:$N,12,FALSE) ->  | E11: =VLOOKUP(Table1_2[[#This Row],[Component]],'Data Input'!$B:$N,10,FALSE) -> 2
A12: Efficient service delivery | B12: CRPFM-9 Climate responsive revenue administration | C12: 9.1 | D12: =VLOOKUP(Table1_2[[#This Row],[Component]],'Data Input'!$B:$N,12,FALSE) ->  | E12: =VLOOKUP(Table1_2[[#This Row],[Component]],'Data Input'!$B:$N,10,FALSE) -> 0
A13: Efficient service delivery | B13: CRPFM–8 Climate responsive procurement | C13: 8.1 | D13: =VLOOKUP(Table1_2[[#This Row],[Component]],'Data Input'!$B:$N,12,FALSE) ->  | E13: =VLOOKUP(Table1_2[[#This Row],[Component]],'Data Input'!$B:$N,10,FALSE) -> 2
A14: Efficient service delivery | B14: CRPFM–1 Budget alignment with climate change strategies | C14: 1.1 | D14: =VLOOKUP(Table1_2[[#This Row],[Component]],'Data Input'!$B:$N,12,FALSE) ->  | E14: =VLOOKUP(Table1_2[[#This Row],[Component]],'Data Input'!$B:$N,10,FALSE) -> 3
A15: Efficient service delivery | B15: CRPFM–10 Compliance of climate related expenditure | C15: 10.2 | D15: =VLOOKUP(Table1_2[[#This Row],[Component]],'Data Input'!$B:$N,12,FALSE) ->  | E15: =VLOOKUP(Table1_2[[#This Row],[Component]],'Data Input'!$B:$N,10,FALSE) -> 3
A16: Efficient service delivery | B16: CRPFM-13 Climate related performance evaluation | C16: 13.2 | D16: =VLOOKUP(Table1_2[[#This Row],[Component]],'Data Input'!$B:$N,12,FALSE) ->  | E16: =VLOOKUP(Table1_2[[#This Row],[Component]],'Data Input'!$B:$N,10,FALSE) -> 2
A17: Efficient service delivery | B17: CRPFM–4 Legislative scrutiny | C17: 4.2 | D17: =VLOOKUP(Table1_2[[#This Row],[Component]],'Data Input'!$B:$N,12,FALSE) ->  | E17: =VLOOKUP(Table1_2[[#This Row],[Component]],'Data Input'!$B:$N,10,FALSE) -> 2
A18: Efficient service delivery | B18: CRPFM–12 Climate related performance information | C18: 12.1 | D18: =VLOOKUP(Table1_2[[#This Row],[Component]],'Data Input'!$B:$N,12,FALSE) ->  | E18: =VLOOKUP(Table1_2[[#This Row],[Component]],'Data Input'!$B:$N,10,FALSE) -> 3
A19: Efficient service delivery | B19: CRPFM–12 Climate related performance information | C19: 12.2 | D19: =VLOOKUP(Table1_2[[#This Row],[Component]],'Data Input'!$B:$N,12,FALSE) ->  | E19: =VLOOKUP(Table1_2[[#This Row],[Component]],'Data Input'!$B:$N,10,FALSE) -> 2
A20: Efficient service delivery | B20: CRPFM–11 Climate responsive fiscal decentralization framework | C20: 11.2 | D20: =VLOOKUP(Table1_2[[#This Row],[Component]],'Data Input'!$B:$N,12,FALSE) ->  | E20: =VLOOKUP(Table1_2[[#This Row],[Component]],'Data Input'!$B:$N,10,FALSE) -> 0
A21: Efficient service delivery | B21: CRPFM–11 Climate responsive fiscal decentralization framework | C21: 11.3 | D21: =VLOOKUP(Table1_2[[#This Row],[Component]],'Data Input'!$B:$N,12,FALSE) ->  | E21: =VLOOKUP(Table1_2[[#This Row],[Component]],'Data Input'!$B:$N,10,FALSE) -> 0
A22: Strategic allocation of resources | B22: CRPFM–14 Expenditure outturn for climate activities | C22: 14.2 | D22: =VLOOKUP(Table1_2[[#This Row],[Component]],'Data Input'!$B:$N,12,FALSE) ->  | E22: =VLOOKUP(Table1_2[[#This Row],[Component]],'Data Input'!$B:$N,10,FALSE) -> 0
A23: Strategic allocation of resources | B23: CRPFM-9 Climate responsive revenue administration | C23: 9.2 | D23: =VLOOKUP(Table1_2[[#This Row],[Component]],'Data Input'!$B:$N,12,FALSE) ->  | E23: =VLOOKUP(Table1_2[[#This Row],[Component]],'Data Input'!$B:$N,10,FALSE) -> 0
A24: Strategic allocation of resources | B24: CRPFM-9 Climate responsive revenue administration | C24: 9.1 | D24: =VLOOKUP(Table1_2[[#This Row],[Component]],'Data Input'!$B:$N,12,FALSE) ->  | E24: =VLOOKUP(Table1_2[[#This Row],[Component]],'Data Input'!$B:$N,10,FALSE) -> 0
A25: Strategic allocation of resources | B25: CRPFM–14 Expenditure outturn for climate activities | C25: 14.1 | D25: =VLOOKUP(Table1_2[[#This Row],[Component]],'Data Input'!$B:$N,12,FALSE) ->  | E25: =VLOOKUP(Table1_2[[#This Row],[Component]],'Data Input'!$B:$N,10,FALSE) -> 0
A26: Strategic allocation of resources | B26: CRPFM–11 Climate responsive fiscal decentralization framework | C26: 11.1 | D26: =VLOOKUP(Table1_2[[#This Row],[Component]],'Data Input'!$B:$N,12,FALSE) ->  | E26: =VLOOKUP(Table1_2[[#This Row],[Component]],'Data Input'!$B:$N,10,FALSE) -> 0
A27: Strategic allocation of resources | B27: CRPFM–11 Climate responsive fiscal decentralization framework | C27: 11.2 | D27: =VLOOKUP(Table1_2[[#This Row],[Component]],'Data Input'!$B:$N,12,FALSE) ->  | E27: =VLOOKUP(Table1_2[[#This Row],[Component]],'Data Input'!$B:$N,10,FALSE) -> 0
A28: Strategic allocation of resources | B28: CRPFM–11 Climate responsive fiscal decentralization framework | C28: 11.3 | D28: =VLOOKUP(Table1_2[[#This Row],[Component]],'Data Input'!$B:$N,12,FALSE) ->  | E28: =VLOOKUP(Table1_2[[#This Row],[Component]],'Data Input'!$B:$N,10,FALSE) -> 0
A29: Strategic allocation of resources | B29: CRPFM–3 Climate responsive budget circular | C29: 3.1 | D29: =VLOOKUP(Table1_2[[#This Row],[Component]],'Data Input'!$B:$N,12,FALSE) ->  | E29: =VLOOKUP(Table1_2[[#This Row],[Component]],'Data Input'!$B:$N,10,FALSE) -> 1
A30: Strategic allocation of resources | B30: CRPFM–4 Legislative scrutiny | C30: 4.1 | D30: =VLOOKUP(Table1_2[[#This Row],[Component]],'Data Input'!$B:$N,12,FALSE) ->  | E30: =VLOOKUP(Table1_2[[#This Row],[Component]],'Data Input'!$B:$N,10,FALSE) -> 1
A31: Strategic allocation of resources | B31: CRPFM–2 Tracking climate related expenditure | C31: 2.1 | D31: =VLOOKUP(Table1_2[[#This Row],[Component]],'Data Input'!$B:$N,12,FALSE) ->  | E31: =VLOOKUP(Table1_2[[#This Row],[Component]],'Data Input'!$B:$N,10,FALSE) -> 1
A32: Strategic allocation of resources | B32: CRPFM–6 Climate responsive asset management | C32: 6.1 | D32: =VLOOKUP(Table1_2[[#This Row],[Component]],'Data Input'!$B:$N,12,FALSE) ->  | E32: =VLOOKUP(Table1_2[[#This Row],[Component]],'Data Input'!$B:$N,10,FALSE) -> 1
A33: Strategic allocation of resources | B33: CRPFM–7 Climate related liabilities | C33: 7.1 | D33: =VLOOKUP(Table1_2[[#This Row],[Component]],'Data Input'!$B:$N,12,FALSE) ->  | E33: =VLOOKUP(Table1_2[[#This Row],[Component]],'Data Input'!$B:$N,10,FALSE) -> 1
A34: Strategic allocation of resources | B34: CRPFM–7 Climate related liabilities | C34: 7.2 | D34: =VLOOKUP(Table1_2[[#This Row],[Component]],'Data Input'!$B:$N,12,FALSE) ->  | E34: =VLOOKUP(Table1_2[[#This Row],[Component]],'Data Input'!$B:$N,10,FALSE) -> 2
A35: Strategic allocation of resources | B35: CRPFM–5 Climate responsive public investment management | C35: 5.1 | D35: =VLOOKUP(Table1_2[[#This Row],[Component]],'Data Input'!$B:$N,12,FALSE) ->  | E35: =VLOOKUP(Table1_2[[#This Row],[Component]],'Data Input'!$B:$N,10,FALSE) -> 1
A36: Strategic allocation of resources | B36: CRPFM–5 Climate responsive public investment management | C36: 5.2 | D36: =VLOOKUP(Table1_2[[#This Row],[Component]],'Data Input'!$B:$N,12,FALSE) ->  | E36: =VLOOKUP(Table1_2[[#This Row],[Component]],'Data Input'!$B:$N,10,FALSE) -> 1
A37: Strategic allocation of resources | B37: CRPFM–5 Climate responsive public investment management | C37: 5.3 | D37: =VLOOKUP(Table1_2[[#This Row],[Component]],'Data Input'!$B:$N,12,FALSE) ->  | E37: =VLOOKUP(Table1_2[[#This Row],[Component]],'Data Input'!$B:$N,10,FALSE) -> 1

Sheet Scoring (hidden)
A1: ID | B1: Score | C1: Justification
A2: 1.1 | B2: A | C2: The system in place fulfills 8 elements, including at least 4 basic elements (1-6).
A3: 1.1 | B3: B | C3: The system in place fulfills 6 elements, including at least 3 basic elements (1-6).
A4: 1.1 | B4: C | C4: The system in place fulfills at least 3 basic elements (1-6).
A5: 1.1 | B5: D | C5: Performance is less than required for a C score.
A6: 2.1 | B6: A | C6: The system in place to track climate related expenditure fulfills 7 elements, including Element 1 and at least 3 other basic elements (2-5).
A7: 2.1 | B7: B | C7: The system in place to track climate related expenditure fulfills 5 elements, including Element 1 and at least 3 other basic elements (2-5).
A8: 2.1 | B8: C | C8: The system in place to track climate related expenditure fulfills at least 3 basic elements, including Element 1 (2-5).
A9: 2.1 | B9: D | C9: Performance is less than required for a C score.
A10: 3.1 | B10: A | C10: The budget circular provides a methodology to track climate change related expenditure, as well as expenditures that are counter to climate policy. It contains guidance on how to factor climate change mitigation and adaptation planned expenditure into budget proposals, and on how to limit expenditures that are counter to climate. It refers to the national climate change strategies.
A11: 3.1 | B11: B | C11: The budget circular provides a methodology to track climate change related expenditure. It contains guidance on how to factor climate change mitigation and adaptation planned expenditure into budget proposals and refers to the national climate change strategies.
A12: 3.1 | B12: C | C12: The budget circular contains guidance on how to factor climate change mitigation or adaptation planned expenditure into budget proposals.
A13: 3.1 | B13: D | C13: Performance is less than required for a C score.
A14: 4.1 | B14: A | C14: The legislature’s scrutiny of the proposed budget meets five criteria.
A15: 4.1 | B15: B | C15: The legislature’s scrutiny of the proposed budget meets four criteria.
A16: 4.1 | B16: C | C16: The legislature’s scrutiny of the proposed budget meets two criteria.
A17: 4.1 | B17: D | C17: Performance is less than required for a C score.
A18: 4.2 | B18: A | C18: The legislature’s scrutiny of audit and evaluation reports meets five criteria.
A19: 4.2 | B19: B | C19: The legislature’s scrutiny of audit and evaluation reports meets four criteria.
A20: 4.2 | B20: C | C20: The legislature’s scrutiny of audit and evaluation reports meets two criteria.
A21: 4.2 | B21: D | C21: Performance is less than required for a C score.
A22: 5.1 | B22: A | C22: The legal or regulatory framework describes the objectives and requirements for investment programs or projects in relation to climate change mitigation and adaptation. Requirements include the mandatory assessment of new significant investment projects with an impact on national mitigation targets and climate vulnerabilities. There is a high level of compliance of investment project proposals with the climate related objectives and requirements. The scope of climate related objectives and requirements covers central government and public corporations.
A23: 5.1 | B23: B | C23: The legal or regulatory framework describes the objectives and requirements for investment programs or projects in relation to climate change mitigation or adaptation. There is a high level of compliance of investment project proposals with the climate related objectives or requirements. The scope of climate related objectives and requirements covers central government.
A24: 5.1 | B24: C | C24: The legal or regulatory framework describes the objectives and requirements for investment programs or projects in relation to climate change mitigation or adaptation. The scope of climate related objectives and requirements covers central government.
A25: 5.1 | B25: D | C25: Performance is less than required for a C score.
A26: 5.2 | B26: A | C26: Published climate assessment and prioritization criteria are used to select new investment projects. Climate assessment criteria cover the climate impact of the project and its exposure to climate risks, based on adequate hazard and exceedance data (OR based on adequate hazard and available data).
A27: 5.2 | B27: B | C27: Climate assessment and prioritization criteria are used to select new investment projects. Climate assessment criteria cover the climate impact of the project or its exposure to climate risks.
A28: 5.2 | B28: C | C28: Climate assessment and prioritization criteria are used to select new investment projects.
A29: 5.2 | B29: D | C29: Performance is less than required for a C score.
A30: 5.3 | B30: A | C30: National guidelines for projects appraisal require the evaluation of climate change impacts of new investment projects and provide a methodology. They also require adaptation measures in the project design to address climate risks. Climate change impacts are reviewed by an entity other than the sponsoring entity. The appraisal results are published.
A31: 5.3 | B31: B | C31: National guidelines for projects appraisal require the evaluation of climate change impacts of new investment projects. They also require adaptation measures in the project design to address climate risks.
A32: 5.3 | B32: C | C32: Guidelines for projects appraisal recommend the evaluation of climate change impacts of new investment projects and adaptation measures in the project design to address climate risks.
A33: 5.3 | B33: D | C33: Performance is less than required for a C score.
A34: 5.4 | B34: A | C34: The government requires extra budgetary units and public corporations in charge of implementing public investment projects to incorporate specific climate objectives, targets and indicators in their performance contracts or statement of corporate intent. All entities report back within six months of the end of the fiscal year. Reporting covers the use of climate related funding they received from the government to implement investment projects and results against objectives, targets and indicators
A35: 5.4 | B35: B | C35: The government requires extra budgetary units and public corporations in charge of implementing public investment projects to incorporate specific climate objectives, targets and indicators in their performance contracts or statement of corporate intent. Most entities report back within six months of the end of the fiscal year. Reporting covers climate related funding they received from the government to implement investment projects and results against these objectives, targets and indicators.
A36: 5.4 | B36: C | C36: The government requires extra budgetary units and public corporations in charge of implementing public investment projects to incorporate specific climate objectives, targets and indicators in their performance contracts or statement of corporate intent. Most entities report back within nine months of the end of the fiscal year. Reporting covers climate related funding they received from the government to implement investment projects and results against these objectives, targets and indicators
A37: 5.4 | B37: D | C37: Performance is less than required for a C score.
A38: 6.1 | B38: A | C38: Exposure and sensitivity of public lands, buildings, and infrastructures to climate variability, extreme weather events and transition risks are identified for the relevant assets. Information is included in the register. Contribution to emission and capture of GHG of relevant non-financial assets is identified. Procedures and rules for the disposal, transfer, and use of lands and subsoils provide climate related arrangements and are complied with.
A39: 6.1 | B39: B | C39: Exposure and sensitivity of public lands, buildings, and infrastructures to climate variability, extreme weather events and transition risks are identified for the relevant assets. Information is included in the register. Procedures and rules on disposal, transfer, and use of lands and subsoils provide climate related arrangements.
A40: 6.1 | B40: C | C40: Exposure and sensitivity of relevant fixed assets to climate variability, extreme weather events and transition risks are identified for the relevant assets.
A41: 6.1 | B41: D | C41: Performance is less than required for a C score.
A42: 7.1 | B42: A | C42: The government publishes a report consolidating climate related fiscal risks. The report includes a quantitative and qualitative assessment of climate related fiscal risks. It considers impacts of such fiscal risks on expenditure and revenue.
A43: 7.1 | B43: B | C43: The government produces a report consolidating climate related fiscal risks. The report includes a qualitative assessment of climate related fiscal risks. It considers impacts of such fiscal risks on expenditure and revenue.
A44: 7.1 | B44: C | C44: The government produces a report consolidating climate related fiscal risks.
A45: 7.1 | B45: D | C45: Performance is less than required for a C score.
A46: 7.2 | B46: A | C46: The purposes for which the government can borrow, as specified in the legal framework, allow to cover climate related liabilities. The legal or regulatory framework specifies arrangements for SNGs and public corporations. It also refers to a methodology to identify projects eligible to climate finance. Mandatory climate related reporting is produced in a timely way.
A47: 7.2 | B47: B | C47: The purposes for which the government can borrow, as specified in the legal framework, allow to cover climate related liabilities. The legal or regulatory framework specifies arrangements for SNGs and public corporations. Mandatory climate related reporting is produced in a timely way.
A48: 7.2 | B48: C | C48: The legal or regulatory framework specifies arrangements for SNGs and public corporations. Mandatory climate related reporting is produced.
A49: 7.2 | B49: D | C49: Performance is less than required for a C score.
A50: 8.1 | B50: A | C50: The framework establishes clear criteria to determine what products or services count as climate responsive and the scope of procurement operations subject to climate responsive procurement principles. It sets quantitative targets, priorities and timeframes. Quantitative targets have been reached during the last completed fiscal year. There is an operational body, unit or team in charge of the development of the framework, and support to the users.
A51: 8.1 | B51: B | C51: The framework establishes clear criteria to determine what products or services count as climate responsive and the scope of procurement operations subject to climate responsive procurement principles. It sets quantitative targets, priorities and timeframes.
A52: 8.1 | B52: C | C52: The framework establishes clear criteria to determine what products or services count as climate responsive and the scope of procurement operations subject to climate responsive procurement principles.
A53: 8.1 | B53: D | C53: Performance is less than required for a C score.
A54: 8.2 | B54: A | C54: Climate responsive standards are used to help determine tender requirements and specifications, or award criteria. Climate responsive criteria are included in contract performance clauses. Climate responsive procurement examples or templates are included into framework agreements for commonly procured goods. Life-cycle costing is included as a cost element at the award stage of a procurement procedure. There are simplified procedures and templates to expedite procurement for response to climate induced disasters. Circumstances of their activation are clearly defined.
A55: 8.2 | B55: B | C55: Climate responsive standards are used to help determine tender requirements and specifications, or award criteria. Climate responsive criteria are included in contract performance clauses. Climate responsive procurement examples or templates are included into framework agreements for commonly procured goods. There are simplified procedures and templates to expedite procurement for response to climate induced disasters. Circumstances of their activation are clearly defined.
A56: 8.2 | B56: C | C56: Climate responsive standards are used to help determine tender requirements and specifications, or award criteria. There are simplified procedures and templates to expedite procurement for response to climate induced disasters.
A57: 8.2 | B57: D | C57: Performance is less than required for a C score.
A58: 8.3 | B58: A | C58: There is a high-level of compliance of contract awards and implementation with climate responsive specifications of tenders and contracts. There is an operational system in place for ensuring the compliance of emergency procedures used in case of climate induced disasters. Procurement operations related to climate induced disasters were compliant with emergency procedures. Procurement databases or records capture specific information on climate responsive procurement and include emergency procurement. There are no material concerns about their completeness and accuracy.
A59: 8.3 | B59: B | C59: Compliance of contract awards and implementation with climate responsive specifications of tenders and contracts is verified. There is an operational system in place for ensuring the compliance of emergency procedures used in case of climate induced disasters. Procurement databases or records capture specific information on climate responsive procurement and include emergency procurement. Their completeness and accuracy are verified.
A60: 8.3 | B60: C | C60: Compliance of contract awards and implementation with climate responsive specifications of tenders and contracts is verified. There is an operational system in place for ensuring the compliance of emergency procedures used in case of climate induced disasters. Procurement databases or records capture specific information on climate responsive procurement and include emergency procurement.
A61: 8.3 | B61: D | C61: Performance is less than required for a C score.
A62: 8.4 | B62: A | C62: A report on climate responsive procurement, which includes statistics and refers to the targets and priorities set in the national framework, is published and submitted to the legislature. Benefits and outcomes of climate responsive procurement have been assessed at least once during the last three completed fiscal years. Indicators of performance for public procurement include indicators on climate responsive procurement. A report on emergency procurement operations, which includes an analysis of their implementation, is published.
A63: 8.4 | B63: B | C63: A report on climate responsive procurement, which includes statistics and refers to the targets and priorities set in the national framework, is published and submitted to the legislature. A report on emergency procurement operations is published.
A64: 8.4 | B64: C | C64: A statistical report on climate responsive procurement is produced. Emergency procurement operations are reported.
A65: 8.4 | B65: D | C65: Performance is less than required for a C score.
A66: 9.1 | B66: A | C66: For climate related taxes, a structured and systematic approach for assessing and prioritizing compliance risk, is used. GHG emitters are registered in a database, which is accurate and comprehensive, and linked to the taxpayer database. A documented compliance improvement plan exists comprising mitigation activities in respect of identified high risks covering climate related taxes. Planned audit and investigations have been completed as intended. Penalties for non-compliance exist and are effective.
A67: 9.1 | B67: B | C67: For climate related taxes, a structured and systematic approach for assessing and prioritizing compliance risk, is used. GHG emitters are registered in a database, which is linked to the taxpayer database. Accuracy and completeness of the emitters’ database are regularly controlled. A documented compliance improvement plan exists comprising mitigation activities in respect of identified high risks covering climate related taxes. Planned audit and investigations have been completed as intended.
A68: 9.1 | B68: C | C68: For climate related taxes, a partly structured and systematic approach for assessing and prioritizing compliance risk, is used. GHG emitters are registered in a database, which may not be fully and consistently linked with the taxpayer database. Part of the planned audit and investigations have been completed.
A69: 9.1 | B69: D | C69: Performance is less than required for a C score.
A70: 9.2 | B70: A | C70: The stock of total climate related tax arrears at the end of the last completed fiscal year is below 10 percent of the total climate related tax arrears collection for the year.
A71: 9.2 | B71: B | C71: The stock of total climate related tax arrears at the end of the last completed fiscal year is below 20 percent of the total climate related tax arrears collection for the year.
A72: 9.2 | B72: C | C72: The stock of total climate related tax arrears at the end of the last completed fiscal year is below 40 percent of the total climate related tax arrears collection for the year.
A73: 9.2 | B73: D | C73: Performance is less than required for a C score.
A74: 10.1 | B74: A | C74: The legal or regulatory framework provides a system of controls of the climate conditionalities of transactions. Controls are performed at the commitment and payment stage. Evidence shows that the control system is effective, covers all categories of climate related transactions, and that emergency payments are compliant with the procedures. The control system has been audited at least once during the last three completed fiscal years.
A75: 10.1 | B75: B | C75: The legal and regulatory framework provides a system of controls of the climate conditionalities of transactions. Controls are performed at least at payment stage. Evidence shows that the control system is effective, covers the major categories of climate related transactions, and that emergency payments are compliant with the procedures. The control system has been partially audited at least once during the last three completed fiscal years.
A76: 10.1 | B76: C | C76: The legal and regulatory framework provides a system of controls of the climate conditionalities of transactions procedures. Controls are performed at least at payment stage. Evidence shows that the control system is partially effective and provides partial coverage.
A77: 10.1 | B77: D | C77: Performance is less than required for a C score.
A78: 10.2 | B78: A | C78: Audits and fraud investigations are conducted for all categories of climate related transactions to ascertain that public monies have been used for the proper climate objectives. They include the use of climate related monies by receiving entities. There is an effective mechanism for recovering undue transactions.
A79: 10.2 | B79: B | C79: Audits and fraud investigations are conducted for the major categories of climate related transactions to ascertain that public monies have been used for the proper climate objectives. They include the use of climate related monies by receiving entities. There is a mechanism for recovering undue transactions.
A80: 10.2 | B80: C | C80: Audits and fraud investigations are conducted for climate related transactions to ascertain that public monies have been used for the proper climate objectives, but their coverage is partial.
A81: 10.2 | B81: D | C81: Performance is less than required for a C score.
A82: 11.1 | B82: A | C82: The legal and regulatory framework clearly states the competencies and mandates of SNGs related to climate change mitigation and adaptation. Resources allocated to SNGs allow them to implement their competencies and mandates related to climate change. Evaluation of the implementation of these mandates and competencies has been conducted and published at least once during the last three completed fiscal years.
A83: 11.1 | B83: B | C83: The legal and regulatory framework clearly states the competencies and mandates of SNGs related to climate change mitigation and adaptation. Evaluation of the implementation of these mandates and competencies has been conducted at least once during the last three completed fiscal years.
A84: 11.1 | B84: C | C84: The legal and regulatory framework clearly states the competencies and mandates of SNGs related to climate change mitigation and adaptation.
A85: 11.1 | B85: D | C85: Performance is less than required for a C score.
A86: 11.2 | B86: A | C86: Climate change related conditional transfers are associated with objectives aligned with the national climate change strategy. SNGs report annually to central government on the use of climate related transfers from CG. The horizontal allocation of unconditional transfers is partly based on climate related criteria and/or in case of performance-based transfers, climate change is considered as part of the performance indicators.
A87: 11.2 | B87: B | C87: Climate change related conditional transfers are associated with objectives aligned with the national climate change strategy. SNGs report annually to central government on the use of climate related transfers from central government.
A88: 11.2 | B88: C | C88: Climate change related conditional transfers are associated with objectives aligned with the national climate change strategy.
A89: 11.2 | B89: D | C89: Performance is less than required for a C score.
A90: 11.3 | B90: A | C90: At least Four of the following elements are fulfilled.
A91: 11.3 | B91: B | C91: Three of the following elements are fulfilled.
A92: 11.3 | B92: C | C92: Two of the following elements are fulfilled.
A93: 11.3 | B93: D | C93: Performance is less than required for a C score.
A94: 11.3 | B94: A | C94: 4 criteria met | D94: 3 criteria met | E94: 2 criteria met
A95: 11.3 | B95: B | C95: 2 criteria met | D95: 2 criteria met | E95: 1 criterion met
A96: 11.3 | B96: C | C96: 1 criterion met | D96: 1 criterion met
A97: 12.1 | B97: A | C97: Climate related objectives, key performance indicators, outputs AND outcomes are assigned to climate related programs and activities. Indicators are consistent with those established in the national climate change strategy/plan. Performance information is available in the budget or supporting documentation submitted to the legislature and published.
A98: 12.1 | B98: B | C98: Climate related objectives, key performance indicators, outputs OR outcomes are assigned to climate related programs and activities. Performance information is available in the budget or supporting documentation submitted to the legislature and published.
A99: 12.1 | B99: C | C99: Performance targets are assigned to climate related programs and activities. Performance information is available in the budget or supporting documentation submitted to the legislature.
A100: 12.1 | B100: D | C100: Performance is less than required for a C score.
A101: 12.2 | B101: A | C101: Climate related achieved outcomes AND produced outputs are reported for climate related programs and activities. Performance is reported against indicators that are consistent with those established in the national climate change strategy/plan. Reports are submitted to the legislature and published.
A102: 12.2 | B102: B | C102: Climate related achieved outcomes OR produced outputs are reported for climate related programs and activities. Reports are submitted to the legislature and published.
A103: 12.2 | B103: C | C103: Achieved performance is reported for climate related programs and activities. Reports are submitted to the legislature.
A104: 12.2 | B104: D | C104: Performance is less than required for a C score.
A105: 13.1 | B105: A | C105: Independent evaluation of climate related programs and activities has been carried out and published at least once in the last three years. Evaluation of programs and activities indirectly contributing to climate change adaptation and mitigation, including programs and activities that undermine climate policy, have included a part devoted to impact on climate.
A106: 13.1 | B106: B | C106: Evaluation of climate related programs and activities has been carried out and published at least once in the last three years.
A107: 13.1 | B107: C | C107: Evaluation of climate related programs and activities has been carried out at least once in the last three years.
A108: 13.1 | B108: D | C108: Performance is less than required for a C score.
A109: 13.2 | B109: A | C109: Independent evaluation of the contribution of the tax policy to climate change has been carried out and published at least once in the last three years. It includes both the climate related taxes and the taxes that are likely to undermine climate policy goals.
A110: 13.2 | B110: B | C110: Evaluation of the contribution of climate related taxes to climate change has been carried out and published at least once in the last three years.
A111: 13.2 | B111: C | C111: Evaluation of the contribution of climate related taxes to climate change has been carried out at least once in the last three years.
A112: 13.2 | B112: D | C112: Performance is less than required for a C score.
A113: 14.1 | B113: A | C113: Aggregate climate related expenditure outturn was between 95% and 105% of the approved aggregate expenditure for climate actions in at least two of the last three years.
A114: 14.1 | B114: B | C114: Aggregate climate related expenditure outturn was between 90% and 110% of the approved aggregate expenditure for climate actions in at least two of the last three years.
A115: 14.1 | B115: C | C115: Aggregate climate related expenditure outturn was between 85% and 115% of the approved aggregate expenditure for climate actions in at least two of the last three years.
A116: 14.1 | B116: D | C116: Performance is less than required for a C score.
A117: 14.2 | B117: A | C117: Variance in climate related expenditure composition by program, administrative or functional classification was less than 5% in at least two of the last three years.
A118: 14.2 | B118: B | C118: Variance in climate related expenditure composition by program, administrative or functional classification was less than 10% in at least two of the last three years.
A119: 14.2 | B119: C | C119: Variance in climate related expenditure composition by program, administrative or functional classification was less than 15% in at least two of the last three years.
A120: 14.2 | B120: D | C120: Performance is less than required for a C score.

Sheet Methodology (hidden)
A1: Indicator | B1: Score | C1: Justification
A2: CRPFM—1.1. BUDGET ALIGNMENT WITH CLIMATE CHANGE STRATEGIES | B2: A | C2: The system in place fulfills 8 elements, including at least 4 basic elements (1-6).
B3: B | C3: The system in place fulfills 6 elements, including at least 3 basic elements (1-6).
B4: C | C4: The system in place fulfills at least 3 basic elements (1-6).
B5: D | C5: Performance is less than required for a C score.
A6: CRPFM—2.1. TRACKING CLIMATE RELATED EXPENDITURE | B6: A | C6: The system in place to track climate related expenditure fulfills 7 elements, including Element 1 and at least 3 other basic elements (2-5).
B7: B | C7: The system in place to track climate related expenditure fulfills 5 elements, including Element 1 and at least 3 other basic elements (2-5).
B8: C | C8: The system in place to track climate related expenditure fulfills at least 3 basic elements, including Element 1 (2-5).
B9: D | C9: Performance is less than required for a C score.
A10: CRPFM—3.1. BUDGET CIRCULAR | B10: A | C10: The budget circular provides a methodology to track climate change related expenditure, as well as expenditures that are counter to climate policy. It contains guidance on how to factor climate change mitigation and adaptation planned expenditure into budget proposals, and on how to limit expenditures that are counter to climate. It refers to the national climate change strategies.
B11: B | C11: The budget circular provides a methodology to track climate change related expenditure. It contains guidance on how to factor climate change mitigation and adaptation planned expenditure into budget proposals and refers to the national climate change strategies.
B12: C | C12: The budget circular contains guidance on how to factor climate change mitigation or adaptation planned expenditure into budget proposals.
B13: D | C13: Performance is less than required for a C score.
A14: CRPFM—4.1. LEGISLATIVE SCRUTINY OF BUDGETS | B14: A | C14: The legislature’s scrutiny of the proposed budget meets five criteria.
B15: B | C15: The legislature’s scrutiny of the proposed budget meets four criteria.
B16: C | C16: The legislature’s scrutiny of the proposed budget meets two criteria.
B17: D | C17: Performance is less than required for a C score.
A18: CRPFM—4.2. LEGISLATIVE SCRUTINY OF AUDIT AND EVALUATION REPORTS | B18: A | C18: The legislature’s scrutiny of audit and evaluation reports meets five criteria.
B19: B | C19: The legislature’s scrutiny of audit and evaluation reports meets four criteria.
B20: C | C20: The legislature’s scrutiny of audit and evaluation reports meets two criteria.
B21: D | C21: Performance is less than required for a C score.
A22: CRPFM—5.1. CLIMATE RELATED PROVISIONS IN REGULATORY FRAMEWORK FOR PUBLIC INVESTMENT MANAGEMENT | B22: A | C22: The legal or regulatory framework describes the objectives and requirements for investment programs or projects in relation to climate change mitigation and adaptation. Requirements include the mandatory assessment of new significant investment projects with an impact on national mitigation targets and climate vulnerabilities. There is a high level of compliance of investment project proposals with the climate related objectives and requirements. The scope of climate related objectives and requirements covers central government and public corporations.
B23: B | C23: The legal or regulatory framework describes the objectives and requirements for investment programs or projects in relation to climate change mitigation or adaptation. There is a high level of compliance of investment project proposals with the climate related objectives or requirements. The scope of climate related objectives and requirements covers central government.
B24: C | C24: The legal or regulatory framework describes the objectives and requirements for investment programs or projects in relation to climate change mitigation or adaptation. The scope of climate related objectives and requirements covers central government.
B25: D | C25: Performance is less than required for a C score.
A26: CRPFM—5.2. CLIMATE RELATED PROJECT SELECTION | B26: A | C26: Published climate assessment and prioritization criteria are used to select new investment projects. Climate assessment criteria cover the climate impact of the project and its exposure to climate risks, based on adequate hazard and exceedance data (OR based on adequate hazard and available data).
B27: B | C27: Climate assessment and prioritization criteria are used to select new investment projects. Climate assessment criteria cover the climate impact of the project or its exposure to climate risks.
B28: C | C28: Climate assessment and prioritization criteria are used to select new investment projects.
B29: D | C29: Performance is less than required for a C score.
A30: CRPFM—5.3. CLIMATE RELATED PROVISIONS FOR PROJECT APPRAISAL | B30: A | C30: National guidelines for projects appraisal require the evaluation of climate change impacts of new investment projects and provide a methodology. They also require adaptation measures in the project design to address climate risks. Climate change impacts are reviewed by an entity other than the sponsoring entity. The appraisal results are published.
B31: B | C31: National guidelines for projects appraisal require the evaluation of climate change impacts of new investment projects. They also require adaptation measures in the project design to address climate risks.
B32: C | C32: Guidelines for projects appraisal recommend the evaluation of climate change impacts of new investment projects and adaptation measures in the project design to address climate risks.
B33: D | C33: Performance is less than required for a C score.
A34: CRPFM—5.4. REPORTING FROM ENTITIES IN CHARGE OF IMPLEMENTATION | B34: A | C34: The government requires extra budgetary units and public corporations in charge of implementing public investment projects to incorporate specific climate objectives, targets and indicators in their performance contracts or statement of corporate intent. All entities report back within six months of the end of the fiscal year. Reporting covers the use of climate related funding they received from the government to implement investment projects and results against objectives, targets and indicators
B35: B | C35: The government requires extra budgetary units and public corporations in charge of implementing public investment projects to incorporate specific climate objectives, targets and indicators in their performance contracts or statement of corporate intent. Most entities report back within six months of the end of the fiscal year. Reporting covers climate related funding they received from the government to implement investment projects and results against these objectives, targets and indicators.
B36: C | C36: The government requires extra budgetary units and public corporations in charge of implementing public investment projects to incorporate specific climate objectives, targets and indicators in their performance contracts or statement of corporate intent. Most entities report back within nine months of the end of the fiscal year. Reporting covers climate related funding they received from the government to implement investment projects and results against these objectives, targets and indicators
B37: D | C37: Performance is less than required for a C score.
A38: CRPFM—6.1. CLIMATE RESPONSIVE NON-FINANCIAL ASSET MANAGEMENT | B38: A | C38: Exposure and sensitivity of public lands, buildings, and infrastructures to climate variability, extreme weather events and transition risks are identified for the relevant assets. Information is included in the register. Contribution to emission and capture of GHG of relevant non-financial assets is identified. Procedures and rules for the disposal, transfer, and use of lands and subsoils provide climate related arrangements and are complied with.
B39: B | C39: Exposure and sensitivity of public lands, buildings, and infrastructures to climate variability, extreme weather events and transition risks are identified for the relevant assets. Information is included in the register. Procedures and rules on disposal, transfer, and use of lands and subsoils provide climate related arrangements.
B40: C | C40: Exposure and sensitivity of relevant fixed assets to climate variability, extreme weather events and transition risks are identified for the relevant assets.
B41: D | C41: Performance is less than required for a C score.
A42: CRPFM—7.1. CLIMATE RELATED FISCAL RISKS | B42: A | C42: The government publishes a report consolidating climate related fiscal risks. The report includes a quantitative and qualitative assessment of climate related fiscal risks. It considers impacts of such fiscal risks on expenditure and revenue.
B43: B | C43: The government produces a report consolidating climate related fiscal risks. The report includes a qualitative assessment of climate related fiscal risks. It considers impacts of such fiscal risks on expenditure and revenue.
B44: C | C44: The government produces a report consolidating climate related fiscal risks.
B45: D | C45: Performance is less than required for a C score.
A46: CRPFM—7.2. CLIMATE RELATED DEBT AND GUARANTEES | B46: A | C46: The purposes for which the government can borrow, as specified in the legal framework, allow to cover climate related liabilities. The legal or regulatory framework specifies arrangements for SNGs and public corporations. It also refers to a methodology to identify projects eligible to climate finance. Mandatory climate related reporting is produced in a timely way.
B47: B | C47: The purposes for which the government can borrow, as specified in the legal framework, allow to cover climate related liabilities. The legal or regulatory framework specifies arrangements for SNGs and public corporations. Mandatory climate related reporting is produced in a timely way.
B48: C | C48: The legal or regulatory framework specifies arrangements for SNGs and public corporations. Mandatory climate related reporting is produced.
B49: D | C49: Performance is less than required for a C score.
A50: CRPFM—8.I. CLIMATE RESPONSIVE PUBLIC PROCUREMENT FRAMEWORK | B50: A | C50: The framework establishes clear criteria to determine what products or services count as climate responsive and the scope of procurement operations subject to climate responsive procurement principles. It sets quantitative targets, priorities and timeframes. Quantitative targets have been reached during the last completed fiscal year. There is an operational body, unit or team in charge of the development of the framework, and support to the users.
B51: B | C51: The framework establishes clear criteria to determine what products or services count as climate responsive and the scope of procurement operations subject to climate responsive procurement principles. It sets quantitative targets, priorities and timeframes.
B52: C | C52: The framework establishes clear criteria to determine what products or services count as climate responsive and the scope of procurement operations subject to climate responsive procurement principles.
B53: D | C53: Performance is less than required for a C score.
A54: CRPFM—8.2. CLIMATE RESPONSIVE PUBLIC PROCUREMENT OPERATIONS | B54: A | C54: Climate responsive standards are used to help determine tender requirements and specifications, or award criteria. Climate responsive criteria are included in contract performance clauses. Climate responsive procurement examples or templates are included into framework agreements for commonly procured goods. Life-cycle costing is included as a cost element at the award stage of a procurement procedure. There are simplified procedures and templates to expedite procurement for response to climate induced disasters. Circumstances of their activation are clearly defined.
B55: B | C55: Climate responsive standards are used to help determine tender requirements and specifications, or award criteria. Climate responsive criteria are included in contract performance clauses. Climate responsive procurement examples or templates are included into framework agreements for commonly procured goods. There are simplified procedures and templates to expedite procurement for response to climate induced disasters. Circumstances of their activation are clearly defined.
B56: C | C56: Climate responsive standards are used to help determine tender requirements and specifications, or award criteria. There are simplified procedures and templates to expedite procurement for response to climate induced disasters.
B57: D | C57: Performance is less than required for a C score.
A58: CRPFM—8.3. CLIMATE RESPONSIVE PUBLIC PROCUREMENT MONITORING | B58: A | C58: There is a high-level of compliance of contract awards and implementation with climate responsive specifications of tenders and contracts. There is an operational system in place for ensuring the compliance of emergency procedures used in case of climate induced disasters. Procurement operations related to climate induced disasters were compliant with emergency procedures. Procurement databases or records capture specific information on climate responsive procurement and include emergency procurement. There are no material concerns about their completeness and accuracy.
B59: B | C59: Compliance of contract awards and implementation with climate responsive specifications of tenders and contracts is verified. There is an operational system in place for ensuring the compliance of emergency procedures used in case of climate induced disasters. Procurement databases or records capture specific information on climate responsive procurement and include emergency procurement. Their completeness and accuracy are verified.
B60: C | C60: Compliance of contract awards and implementation with climate responsive specifications of tenders and contracts is verified. There is an operational system in place for ensuring the compliance of emergency procedures used in case of climate induced disasters. Procurement databases or records capture specific information on climate responsive procurement and include emergency procurement.
B61: D | C61: Performance is less than required for a C score.
A62: CRPFM—8.4. CLIMATE RESPONSIVE PUBLIC PROCUREMENT REPORTING | B62: A | C62: A report on climate responsive procurement, which includes statistics and refers to the targets and priorities set in the national framework, is published and submitted to the legislature. Benefits and outcomes of climate responsive procurement have been assessed at least once during the last three completed fiscal years. Indicators of performance for public procurement include indicators on climate responsive procurement. A report on emergency procurement operations, which includes an analysis of their implementation, is published.
B63: B | C63: A report on climate responsive procurement, which includes statistics and refers to the targets and priorities set in the national framework, is published and submitted to the legislature. A report on emergency procurement operations is published.
B64: C | C64: A statistical report on climate responsive procurement is produced. Emergency procurement operations are reported.
B65: D | C65: Performance is less than required for a C score.
A66: CRPFM—9.1. CLIMATE RELATED TAX MANAGEMENT, AUDIT AND INVESTIGATION | B66: A | C66: For climate related taxes, a structured and systematic approach for assessing and prioritizing compliance risk, is used. GHG emitters are registered in a database, which is accurate and comprehensive, and linked to the taxpayer database. A documented compliance improvement plan exists comprising mitigation activities in respect of identified high risks covering climate related taxes. Planned audit and investigations have been completed as intended. Penalties for non-compliance exist and are effective.
B67: B | C67: For climate related taxes, a structured and systematic approach for assessing and prioritizing compliance risk, is used. GHG emitters are registered in a database, which is linked to the taxpayer database. Accuracy and completeness of the emitters’ database are regularly controlled. A documented compliance improvement plan exists comprising mitigation activities in respect of identified high risks covering climate related taxes. Planned audit and investigations have been completed as intended.
B68: C | C68: For climate related taxes, a partly structured and systematic approach for assessing and prioritizing compliance risk, is used. GHG emitters are registered in a database, which may not be fully and consistently linked with the taxpayer database. Part of the planned audit and investigations have been completed.
B69: D | C69: Performance is less than required for a C score.
A70: CRPFM—9.2. CLIMATE RELATED TAX ARREARS | B70: A | C70: The stock of total climate related tax arrears at the end of the last completed fiscal year is below 10 percent of the total climate related tax arrears collection for the year.
B71: B | C71: The stock of total climate related tax arrears at the end of the last completed fiscal year is below 20 percent of the total climate related tax arrears collection for the year.
B72: C | C72: The stock of total climate related tax arrears at the end of the last completed fiscal year is below 40 percent of the total climate related tax arrears collection for the year.
B73: D | C73: Performance is less than required for a C score.
A74: CRPFM—10.1. EFFECTIVENESS OF THE SYSTEM OF CONTROLS | B74: A | C74: Audits and fraud investigations are conducted for all categories of climate related transactions to ascertain that public monies have been used for the proper climate objectives. They include the use of climate related monies by receiving entities. There is an effective mechanism for recovering undue transactions.
B75: B | C75: Audits and fraud investigations are conducted for the major categories of climate related transactions to ascertain that public monies have been used for the proper climate objectives. They include the use of climate related monies by receiving entities. There is a mechanism for recovering undue transactions.
B76: C | C76: Audits and fraud investigations are conducted for climate related transactions to ascertain that public monies have been used for the proper climate objectives, but their coverage is partial.
B77: D | C77: Performance is less than required for a C score.
A78: CRPFM—10.2. AUDIT OF THE COMPLIANCE OF TRANSACTIONS | B78: A | C78: The legal and regulatory framework clearly states the competencies and mandates of SNGs related to climate change mitigation and adaptation. Resources allocated to SNGs allow them to implement their competencies and mandates related to climate change. Evaluation of the implementation of these mandates and competencies has been conducted and published at least once during the last three completed fiscal years.
B79: B | C79: The legal and regulatory framework clearly states the competencies and mandates of SNGs related to climate change mitigation and adaptation. Evaluation of the implementation of these mandates and competencies has been conducted at least once during the last three completed fiscal years.
B80: C | C80: The legal and regulatory framework clearly states the competencies and mandates of SNGs related to climate change mitigation and adaptation.
B81: D | C81: Performance is less than required for a C score.
A82: CRPFM—11.1. CLIMATE RESPONSIVE FISCAL DECENTRALIZATION ARRANGEMENTS | B82: A | C82: Climate change related conditional transfers are associated with objectives aligned with the national climate change strategy. SNGs report annually to central government on the use of climate related transfers from CG. The horizontal allocation of unconditional transfers is partly based on climate related criteria and/or in case of performance-based transfers, climate change is considered as part of the performance indicators.
B83: B | C83: Climate change related conditional transfers are associated with objectives aligned with the national climate change strategy. SNGs report annually to central government on the use of climate related transfers from central government.
B84: C | C84: Climate change related conditional transfers are associated with objectives aligned with the national climate change strategy.
B85: D | C85: Performance is less than required for a C score.
A86: CRPFM—11.2. CLIMATE RESPONSIVE FISCAL TRANSFERS | B86: A | C86: At least Four of the following elements are fulfilled.
B87: B | C87: Three of the following elements are fulfilled.
B88: C | C88: Two of the following elements are fulfilled.
B89: D | C89: Performance is less than required for a C score.
A90: CRPFM—11.3. CLIMATE RESPONSIVE PFM ARRANGEMENTS APPLIED BY SUBNATIONAL GOVERNMENTS | B90: A | C90: Climate related objectives, key performance indicators, outputs AND outcomes are assigned to climate related programs and activities. Indicators are consistent with those established in the national climate change strategy/plan. Performance information is available in the budget or supporting documentation submitted to the legislature and published.
B91: B | C91: Climate related objectives, key performance indicators, outputs OR outcomes are assigned to climate related programs and activities. Performance information is available in the budget or supporting documentation submitted to the legislature and published.
B92: C | C92: Performance targets are assigned to climate related programs and activities. Performance information is available in the budget or supporting documentation submitted to the legislature.
B93: D | C93: Performance is less than required for a C score.
A94: CRPFM—12.1. CLIMATE RELATED INFORMATION IN PERFORMANCE PLANS | B94: A | C94: Climate related achieved outcomes AND produced outputs are reported for climate related programs and activities. Performance is reported against indicators that are consistent with those established in the national climate change strategy/plan. Reports are submitted to the legislature and published.
B95: B | C95: Climate related achieved outcomes OR produced outputs are reported for climate related programs and activities. Reports are submitted to the legislature and published.
B96: C | C96: Achieved performance is reported for climate related programs and activities. Reports are submitted to the legislature.
B97: D | C97: Performance is less than required for a C score.
A98: CRPFM—12.2. CLIMATE RELATED INFORMATION IN PERFORMANCE REPORTS | B98: A | C98: Independent evaluation of climate related programs and activities has been carried out and published at least once in the last three years. Evaluation of programs and activities indirectly contributing to climate change adaptation and mitigation, including programs and activities that undermine climate policy, have included a part devoted to impact on climate.
B99: B | C99: Evaluation of climate related programs and activities has been carried out and published at least once in the last three years.
B100: C | C100: Evaluation of climate related programs and activities has been carried out at least once in the last three years.
B101: D | C101: Performance is less than required for a C score.
A102: CRPFM—14.1. AGGREGATE CLIMATE RELATED EXPENDITURE OUTTURN | B102: A | C102: Independent evaluation of the contribution of the tax policy to climate change has been carried out and published at least once in the last three years. It includes both the climate related taxes and the taxes that are likely to undermine climate policy goals.
B103: B | C103: Evaluation of the contribution of climate related taxes to climate change has been carried out and published at least once in the last three years.
B104: C | C104: Evaluation of the contribution of climate related taxes to climate change has been carried out at least once in the last three years.
B105: D | C105: Performance is less than required for a C score.
A106: CRPFM—14.2. CLIMATE RELATED EXPENDITURE COMPOSITION OUTTURN | B106: A | C106: Aggregate climate related expenditure outturn was between 95% and 105% of the approved aggregate expenditure for climate actions in at least two of the last three years.
B107: B | C107: Aggregate climate related expenditure outturn was between 90% and 110% of the approved aggregate expenditure for climate actions in at least two of the last three years.
B108: C | C108: Aggregate climate related expenditure outturn was between 85% and 115% of the approved aggregate expenditure for climate actions in at least two of the last three years.
B109: D | C109: Performance is less than required for a C score.
B110: A | C110: Variance in climate related expenditure composition by program, administrative or functional classification was less than 5% in at least two of the last three years.
B111: B | C111: Variance in climate related expenditure composition by program, administrative or functional classification was less than 10% in at least two of the last three years.
B112: C | C112: Variance in climate related expenditure composition by program, administrative or functional classification was less than 15% in at least two of the last three years.
B113: D | C113: Performance is less than required for a C score.

Sheet DimOutput (hidden)
A1: Dimension | B1: ID-Indic | C1: ID-Output | D1: Output
A2: 1.1 | B2: 1 | C2: O-1 | D2: Aggregate fiscal discipline
A3: 5.1 | B3: 5 | C3: O-1 | D3: Aggregate fiscal discipline
A4: 6.1 | B4: 6 | C4: O-1 | D4: Aggregate fiscal discipline
A5: 7.1 | B5: 7 | C5: O-1 | D5: Aggregate fiscal discipline
A6: 7.2 | B6: 7 | C6: O-1 | D6: Aggregate fiscal discipline
A7: 1.1 | B7: 1 | C7: O-2 | D7: Strategic allocation of resources
A8: 3.1 | B8: 3 | C8: O-2 | D8: Strategic allocation of resources
A9: 4.1 | B9: 4 | C9: O-2 | D9: Strategic allocation of resources
A10: 2.1 | B10: 2 | C10: O-2 | D10: Strategic allocation of resources
A11: 11.1 | B11: 11 | C11: O-2 | D11: Strategic allocation of resources
A12: 11.2 | B12: 11 | C12: O-2 | D12: Strategic allocation of resources
A13: 11.3 | B13: 11 | C13: O-2 | D13: Strategic allocation of resources
A14: 5.2 | B14: 5 | C14: O-2 | D14: Strategic allocation of resources
A15: 5.3 | B15: 5 | C15: O-2 | D15: Strategic allocation of resources
A16: 14.1 | B16: 14 | C16: O-2 | D16: Strategic allocation of resources
A17: 14.2 | B17: 14 | C17: O-2 | D17: Strategic allocation of resources
A18: 1.1 | B18: 1 | C18: O-3 | D18: Efficient service delivery
A19: 11.3 | B19: 11 | C19: O-3 | D19: Efficient service delivery
A20: 12.1 | B20: 12 | C20: O-3 | D20: Efficient service delivery
A21: 12.2 | B21: 12 | C21: O-3 | D21: Efficient service delivery
A22: 13.1 | B22: 13 | C22: O-3 | D22: Efficient service delivery
A23: 5.4 | B23: 5 | C23: O-3 | D23: Efficient service delivery
A24: 8.1 | B24: 8 | C24: O-3 | D24: Efficient service delivery
A25: 8.2 | B25: 8 | C25: O-3 | D25: Efficient service delivery
A26: 8.3 | B26: 8 | C26: O-3 | D26: Efficient service delivery
A27: 8.4 | B27: 8 | C27: O-3 | D27: Efficient service delivery
A28: 9.1 | B28: 9 | C28: O-3 | D28: Efficient service delivery
A29: 9.2 | B29: 9 | C29: O-3 | D29: Efficient service delivery
A30: 10.1 | B30: 10 | C30: O-3 | D30: Efficient service delivery
A31: 10.2 | B31: 10 | C31: O-3 | D31: Efficient service delivery
A32: 4.2 | B32: 4 | C32: O-3 | D32: Efficient service delivery
A33: 13.2 | B33: 13 | C33: O-3 | D33: Efficient service delivery
A34: 14.1 | B34: 14 | C34: O-3 | D34: Efficient service delivery
A35: 14.2 | B35: 14 | C35: O-3 | D35: Efficient service delivery

Sheet DimIndic (hidden)
A1: ID-Indic | B1: Indicator
A2: 1 | B2: 1 Budget alignment with climate change strategies
A3: 2 | B3: 2 Tracking climate related expenditure
A4: 3 | B4: 3 Climate responsive budget circular
A5: 4 | B5: 4 Legislative scrutiny
A6: 5 | B6: 5 Climate responsive public investment management
A7: 6 | B7: 6 Climate responsive asset management
A8: 7 | B8: 7 Climate related liabilities
A9: 8 | B9: 8 Climate responsive procurement
A10: 9 | B10: 9 Climate responsive revenue administration
A11: 10 | B11: 10 Compliance of climate related expenditure
A12: 11 | B12: 11 Climate responsive fiscal decentralization framework
A13: 12 | B13: 12 Climate related performance information
A14: 13 | B14: 13 Climate related performance evaluation
A15: 14 | B15: 14 Expenditure outturn for climate activities

Sheet DimPillar (hidden)
A1: Dimension | B1: ID_Pilar | C1: Pilar
A2: 1.1 | B2: IV | C2: Policy-based fiscal strategy and budgeting
A3: 3.1 | B3: IV | C3: Policy-based fiscal strategy and budgeting
A4: 4.1 | B4: IV | C4: Policy-based fiscal strategy and budgeting
A5: 2.1 | B5: II | C5: Transparency
A6: 11.1 | B6: II | C6: Transparency
A7: 11.2 | B7: II | C7: Transparency
A8: 11.3 | B8: II | C8: Transparency
A9: 12.1 | B9: II | C9: Transparency
A10: 12.2 | B10: II | C10: Transparency
A11: 13.1 | B11: II | C11: Transparency
A12: 5.1 | B12: III | C12: Management of assets and liabilities
A13: 5.2 | B13: III | C13: Management of assets and liabilities
A14: 5.3 | B14: III | C14: Management of assets and liabilities
A15: 5.4 | B15: III | C15: Management of assets and liabilities
A16: 6.1 | B16: III | C16: Management of assets and liabilities
A17: 7.1 | B17: III | C17: Management of assets and liabilities
A18: 7.2 | B18: III | C18: Management of assets and liabilities
A19: 8.1 | B19: V | C19: Predictability and control in budget execution
A20: 8.2 | B20: V | C20: Predictability and control in budget execution
A21: 8.3 | B21: V | C21: Predictability and control in budget execution
A22: 8.4 | B22: V | C22: Predictability and control in budget execution
A23: 9.1 | B23: V | C23: Predictability and control in budget execution
A24: 9.2 | B24: V | C24: Predictability and control in budget execution
A25: 10.1 | B25: V | C25: Predictability and control in budget execution
A26: 10.2 | B26: V | C26: Predictability and control in budget execution
A27: 4.2 | B27: VII | C27: External scrutiny and audit
A28: 13.2 | B28: VII | C28: External scrutiny and audit
A29: 14.1 | B29: I | C29: Budget reliability
A30: 14.2 | B30: I | C30: Budget reliability
